VENDOR,CATEGORY,AMOUNT,PAYMENT DATE
"A M C MECHANICAL, INC.",OUTSIDE SERVICES,"$1,901.73 ",1/6/2015
"A M C MECHANICAL, INC.",OUTSIDE SERVICES,"$5,213.85 ",1/12/2015
"A M C MECHANICAL, INC.",OUTSIDE SERVICES,"$1,459.80 ",1/13/2015
"A M C MECHANICAL, INC.",OUTSIDE SERVICES,"$5,152.40 ",2/4/2015
"A M C MECHANICAL, INC.",OUTSIDE SERVICES,"$2,317.17 ",2/5/2015
"A M C MECHANICAL, INC.",OUTSIDE SERVICES,"$2,850.52 ",3/16/2015
"A M C MECHANICAL, INC.",OUTSIDE SERVICES,"$3,732.46 ",3/31/2015
"A M C MECHANICAL, INC.",OUTSIDE SERVICES,"$1,357.23 ",4/6/2015
"A M C MECHANICAL, INC.",OUTSIDE SERVICES,"$16,932.99 ",4/14/2015
"A M C MECHANICAL, INC.",OUTSIDE SERVICES,"$5,781.40 ",4/15/2015
"A M C MECHANICAL, INC.",OUTSIDE SERVICES,$794 ,4/20/2015
"A M C MECHANICAL, INC.",OUTSIDE SERVICES,"$10,127.55 ",5/26/2015
"A M C MECHANICAL, INC.",OUTSIDE SERVICES,"$4,437.93 ",6/15/2015
"A M C MECHANICAL, INC.",OUTSIDE SERVICES,"$5,277.07 ",7/9/2015
"A M C MECHANICAL, INC.",OUTSIDE SERVICES,"$11,033 ",7/13/2015
"A M C MECHANICAL, INC.",OUTSIDE SERVICES,"$4,227.64 ",7/21/2015
"A M C MECHANICAL, INC.",OUTSIDE SERVICES,$412.25 ,7/27/2015
"A M C MECHANICAL, INC.",OUTSIDE SERVICES,"$16,722.91 ",8/12/2015
"A M C MECHANICAL, INC.",OUTSIDE SERVICES,$373.75 ,8/17/2015
"A M C MECHANICAL, INC.",OUTSIDE SERVICES,$800.25 ,8/24/2015
"A M C MECHANICAL, INC.",OUTSIDE SERVICES,"$6,028.64 ",9/14/2015
"A M C MECHANICAL, INC.",OUTSIDE SERVICES,$339.50 ,9/28/2015
"A M C MECHANICAL, INC.",OUTSIDE SERVICES,"$11,517.57 ",10/22/2015
"A M C MECHANICAL, INC.",OUTSIDE SERVICES,$533.50 ,10/26/2015
"A M C MECHANICAL, INC.",OUTSIDE SERVICES,"$13,095.55 ",11/17/2015
"A M C MECHANICAL, INC.",OUTSIDE SERVICES,"$2,695.30 ",11/23/2015
"A M C MECHANICAL, INC.",OUTSIDE SERVICES,"$1,785.18 ",11/30/2015
A-ALERT EXTERMINATING SERVICE,OUTSIDE SERVICES,$75 ,4/13/2015
A-ALERT EXTERMINATING SERVICE,OUTSIDE SERVICES,$360 ,4/13/2015
A-ALERT EXTERMINATING SERVICE,OUTSIDE SERVICES,$75 ,4/15/2015
A-ALERT EXTERMINATING SERVICE,OUTSIDE SERVICES,$150 ,4/27/2015
A-ALERT EXTERMINATING SERVICE,OUTSIDE SERVICES,$330 ,5/13/2015
A-ALERT EXTERMINATING SERVICE,OUTSIDE SERVICES,"$1,455 ",5/13/2015
A-ALERT EXTERMINATING SERVICE,OUTSIDE SERVICES,$35 ,5/26/2015
A-ALERT EXTERMINATING SERVICE,OUTSIDE SERVICES,$270 ,6/4/2015
A-ALERT EXTERMINATING SERVICE,OUTSIDE SERVICES,$75 ,6/9/2015
A-ALERT EXTERMINATING SERVICE,OUTSIDE SERVICES,$135 ,6/9/2015
A-ALERT EXTERMINATING SERVICE,OUTSIDE SERVICES,$525 ,6/15/2015
A-ALERT EXTERMINATING SERVICE,OUTSIDE SERVICES,$905 ,6/22/2015
A-ALERT EXTERMINATING SERVICE,OUTSIDE SERVICES,$155 ,6/23/2015
A-ALERT EXTERMINATING SERVICE,OUTSIDE SERVICES,$155 ,6/25/2015
A-ALERT EXTERMINATING SERVICE,OUTSIDE SERVICES,$415 ,7/9/2015
A-ALERT EXTERMINATING SERVICE,OUTSIDE SERVICES,$30 ,7/13/2015
A-ALERT EXTERMINATING SERVICE,OUTSIDE SERVICES,$680 ,7/13/2015
A-ALERT EXTERMINATING SERVICE,OUTSIDE SERVICES,$75 ,7/23/2015
A-ALERT EXTERMINATING SERVICE,OUTSIDE SERVICES,$345 ,7/23/2015
A-ALERT EXTERMINATING SERVICE,OUTSIDE SERVICES,$180 ,8/19/2015
A-ALERT EXTERMINATING SERVICE,OUTSIDE SERVICES,"$1,700 ",8/19/2015
A-ALERT EXTERMINATING SERVICE,MATERIALS - NON-INVENTORY,$75 ,8/24/2015
A-ALERT EXTERMINATING SERVICE,OUTSIDE SERVICES,$440 ,8/24/2015
A-ALERT EXTERMINATING SERVICE,OUTSIDE SERVICES,$70 ,8/26/2015
A-ALERT EXTERMINATING SERVICE,OUTSIDE SERVICES,$345 ,9/14/2015
A-ALERT EXTERMINATING SERVICE,OUTSIDE SERVICES,$225 ,9/14/2015
A-ALERT EXTERMINATING SERVICE,OUTSIDE SERVICES,$220 ,9/14/2015
A-ALERT EXTERMINATING SERVICE,OUTSIDE SERVICES,$75 ,9/16/2015
A-ALERT EXTERMINATING SERVICE,OUTSIDE SERVICES,$270 ,10/12/2015
A-ALERT EXTERMINATING SERVICE,OUTSIDE SERVICES,$105 ,10/12/2015
A-ALERT EXTERMINATING SERVICE,OUTSIDE SERVICES,"$1,115 ",10/12/2015
A-ALERT EXTERMINATING SERVICE,OUTSIDE SERVICES,$330 ,12/28/2015
"A-TIRE COUNTY SERVICE, INC.",OUTSIDE SERVICES,"$6,203.80 ",1/26/2015
"A-TIRE COUNTY SERVICE, INC.",OUTSIDE SERVICES,"$4,834.32 ",2/5/2015
"A-TIRE COUNTY SERVICE, INC.",MISCELLANEOUS OTHER EXPENSE,$83.50 ,2/5/2015
"A-TIRE COUNTY SERVICE, INC.",OUTSIDE SERVICES,$60 ,3/9/2015
"A-TIRE COUNTY SERVICE, INC.",OUTSIDE SERVICES,"$2,948.69 ",3/9/2015
"A-TIRE COUNTY SERVICE, INC.",MISCELLANEOUS OTHER EXPENSE,$53.50 ,3/9/2015
"A-TIRE COUNTY SERVICE, INC.",OUTSIDE SERVICES,"$4,052.17 ",3/12/2015
"A-TIRE COUNTY SERVICE, INC.",OUTSIDE SERVICES,$861.88 ,3/16/2015
"A-TIRE COUNTY SERVICE, INC.",MISCELLANEOUS OTHER EXPENSE,$107 ,3/16/2015
"A-TIRE COUNTY SERVICE, INC.",OUTSIDE SERVICES,$102.28 ,3/17/2015
"A-TIRE COUNTY SERVICE, INC.",OUTSIDE SERVICES,$195 ,4/1/2015
"A-TIRE COUNTY SERVICE, INC.",OUTSIDE SERVICES,$60 ,4/1/2015
"A-TIRE COUNTY SERVICE, INC.",MISCELLANEOUS OTHER EXPENSE,$53.50 ,4/14/2015
"A-TIRE COUNTY SERVICE, INC.",OUTSIDE SERVICES,$516.11 ,4/16/2015
"A-TIRE COUNTY SERVICE, INC.",OUTSIDE SERVICES,"$2,895.61 ",4/27/2015
"A-TIRE COUNTY SERVICE, INC.",OUTSIDE SERVICES,$502.83 ,5/20/2015
"A-TIRE COUNTY SERVICE, INC.",MISCELLANEOUS OTHER EXPENSE,$53.50 ,5/20/2015
"A-TIRE COUNTY SERVICE, INC.",OUTSIDE SERVICES,"$6,511.01 ",5/26/2015
"A-TIRE COUNTY SERVICE, INC.",MISCELLANEOUS OTHER EXPENSE,$107 ,5/26/2015
"A-TIRE COUNTY SERVICE, INC.",OUTSIDE SERVICES,$364.50 ,6/15/2015
"A-TIRE COUNTY SERVICE, INC.",OUTSIDE SERVICES,"$1,031.22 ",6/15/2015
"A-TIRE COUNTY SERVICE, INC.",MISCELLANEOUS OTHER EXPENSE,$137 ,6/15/2015
"A-TIRE COUNTY SERVICE, INC.",OUTSIDE SERVICES,$46.72 ,6/22/2015
"A-TIRE COUNTY SERVICE, INC.",MISCELLANEOUS OTHER EXPENSE,$53.50 ,6/22/2015
"A-TIRE COUNTY SERVICE, INC.",OUTSIDE SERVICES,$240 ,8/10/2015
"A-TIRE COUNTY SERVICE, INC.",OUTSIDE SERVICES,"$17,813.15 ",8/10/2015
"A-TIRE COUNTY SERVICE, INC.",MISCELLANEOUS OTHER EXPENSE,$23.50 ,8/10/2015
"A-TIRE COUNTY SERVICE, INC.",OUTSIDE SERVICES,$517.80 ,8/27/2015
"A-TIRE COUNTY SERVICE, INC.",OUTSIDE SERVICES,$300.67 ,8/31/2015
"A-TIRE COUNTY SERVICE, INC.",OUTSIDE SERVICES,"$3,077.28 ",9/3/2015
"A-TIRE COUNTY SERVICE, INC.",OUTSIDE SERVICES,$168.78 ,10/1/2015
"A-TIRE COUNTY SERVICE, INC.",OUTSIDE SERVICES,$676.33 ,10/5/2015
"A-TIRE COUNTY SERVICE, INC.",MISCELLANEOUS OTHER EXPENSE,$53.50 ,10/5/2015
"A-TIRE COUNTY SERVICE, INC.",OUTSIDE SERVICES,$240 ,10/12/2015
"A-TIRE COUNTY SERVICE, INC.",OUTSIDE SERVICES,"$2,404.91 ",10/12/2015
"A-TIRE COUNTY SERVICE, INC.",MISCELLANEOUS OTHER EXPENSE,$214 ,10/12/2015
"A-TIRE COUNTY SERVICE, INC.",OUTSIDE SERVICES,"$2,243.55 ",10/26/2015
"A-TIRE COUNTY SERVICE, INC.",MISCELLANEOUS OTHER EXPENSE,$106.50 ,10/26/2015
"A-TIRE COUNTY SERVICE, INC.",OUTSIDE SERVICES,$565.11 ,10/29/2015
"A-TIRE COUNTY SERVICE, INC.",OUTSIDE SERVICES,"$1,244.29 ",11/2/2015
"A-TIRE COUNTY SERVICE, INC.",OUTSIDE SERVICES,"$4,100.14 ",11/23/2015
"A-TIRE COUNTY SERVICE, INC.",MISCELLANEOUS OTHER EXPENSE,$53.50 ,11/23/2015
"A-TIRE COUNTY SERVICE, INC.",OUTSIDE SERVICES,$825.89 ,11/30/2015
"A-TIRE COUNTY SERVICE, INC.",OUTSIDE SERVICES,"$4,183.19 ",11/30/2015
"A-TIRE COUNTY SERVICE, INC.",MISCELLANEOUS OTHER EXPENSE,$214 ,11/30/2015
"A-TIRE COUNTY SERVICE, INC.",OUTSIDE SERVICES,"$2,814.85 ",12/15/2015
"A-TIRE COUNTY SERVICE, INC.",MISCELLANEOUS OTHER EXPENSE,$213.50 ,12/15/2015
"A-TIRE COUNTY SERVICE, INC.",MISCELLANEOUS OTHER EXPENSE,$218.69 ,12/22/2015
"A-TIRE COUNTY SERVICE, INC.",OUTSIDE SERVICES,"$1,406.26 ",12/28/2015
"A-TIRE COUNTY SERVICE, INC.",MISCELLANEOUS OTHER EXPENSE,$23.50 ,12/28/2015
"ABACUS SCALE CO., INC.",OUTSIDE SERVICES,$537 ,4/15/2015
ABAG TRAINING CENTER,PROFESSIONAL SERVICES,$130 ,10/19/2015
ABAVITA TECHWORKS LLC,MATERIALS & ASSETS - CAPITAL,"$11,890.78 ",3/12/2015
ABAVITA TECHWORKS LLC,MATERIALS & ASSETS - CAPITAL,"$3,342.46 ",3/26/2015
ABAVITA TECHWORKS LLC,MATERIALS & ASSETS - CAPITAL,"$15,233.24 ",7/15/2015
ABAVITA TECHWORKS LLC,MATERIALS & ASSETS - CAPITAL,"$15,233.24 ",8/6/2015
ABAVITA TECHWORKS LLC,MATERIALS & ASSETS - CAPITAL,"$15,233.24 ",9/8/2015
ABAVITA TECHWORKS LLC,MATERIALS & ASSETS - CAPITAL,"$15,233.24 ",9/28/2015
"ABM JANITORIAL SERVICE MIDWEST, INC",OUTSIDE SERVICES,"$22,933.60 ",1/12/2015
"ABM JANITORIAL SERVICE MIDWEST, INC",OUTSIDE SERVICES,"$146,337.88 ",1/14/2015
"ABM JANITORIAL SERVICE MIDWEST, INC",OUTSIDE SERVICES,$122.66 ,1/15/2015
"ABM JANITORIAL SERVICE MIDWEST, INC",MISCELLANEOUS OTHER EXPENSE,"$10,495.17 ",1/15/2015
"ABM JANITORIAL SERVICE MIDWEST, INC",OUTSIDE SERVICES,"$73,168.94 ",2/17/2015
"ABM JANITORIAL SERVICE MIDWEST, INC",OUTSIDE SERVICES,"$40,387.18 ",4/28/2015
"ABM JANITORIAL SERVICE MIDWEST, INC",OUTSIDE SERVICES,"$32,320.33 ",7/27/2015
ABT,MATERIALS - NON-INVENTORY,$593 ,1/26/2015
ABT,MATERIALS - NON-INVENTORY,$318.26 ,2/9/2015
ABT,MATERIALS - NON-INVENTORY,$662 ,3/24/2015
ABT,MATERIALS - NON-INVENTORY,$486 ,4/2/2015
ABT,MATERIALS - NON-INVENTORY,$437 ,5/11/2015
ABT,MATERIALS - NON-INVENTORY,$652 ,5/11/2015
ABT,MATERIALS - NON-INVENTORY,"$1,875 ",5/11/2015
ABT,MATERIALS - NON-INVENTORY,"$2,133 ",5/11/2015
ABT,MATERIALS - NON-INVENTORY,$345 ,5/13/2015
ABT,MATERIALS - NON-INVENTORY,$124 ,5/26/2015
ABT,MATERIALS - NON-INVENTORY,$655 ,6/1/2015
ABT,MISCELLANEOUS OTHER EXPENSE,$129 ,6/1/2015
ABT,MATERIALS - NON-INVENTORY,$170 ,6/11/2015
ABT,MATERIALS - NON-INVENTORY,$486 ,6/11/2015
ABT,MATERIALS - NON-INVENTORY,$681 ,6/15/2015
ABT,MATERIALS - NON-INVENTORY,$154.87 ,6/22/2015
ABT,MATERIALS - NON-INVENTORY,$197 ,7/21/2015
ABT,MATERIALS - NON-INVENTORY,$476.87 ,7/21/2015
ABT,MATERIALS - NON-INVENTORY,$721.29 ,7/21/2015
ABT,MATERIALS - NON-INVENTORY,$309.74 ,7/21/2015
ABT,MATERIALS - NON-INVENTORY,$226 ,9/14/2015
ABT,MATERIALS - NON-INVENTORY,$504 ,9/14/2015
ABT,MATERIALS - NON-INVENTORY,$312.58 ,9/28/2015
ABT,MATERIALS - NON-INVENTORY,$257 ,9/28/2015
ABT,MATERIALS - NON-INVENTORY,$437.26 ,9/28/2015
ABT,MATERIALS - NON-INVENTORY,$527 ,11/17/2015
ABT,MISCELLANEOUS OTHER EXPENSE,"$1,115 ",11/30/2015
ACCENTURE LLP,OUTSIDE SERVICES,"$94,672.50 ",1/13/2015
ACCENTURE LLP,OUTSIDE SERVICES,"$1,640 ",1/13/2015
ACCENTURE LLP,OUTSIDE SERVICES,"$17,228 ",1/13/2015
ACCENTURE LLP,OUTSIDE SERVICES,"$153,360.50 ",3/26/2015
ACCENTURE LLP,OUTSIDE SERVICES,"$60,755 ",3/26/2015
ACCENTURE LLP,OUTSIDE SERVICES,"$89,040.50 ",3/30/2015
ACCENTURE LLP,OUTSIDE SERVICES,"$41,500 ",3/30/2015
ACCENTURE LLP,OUTSIDE SERVICES,"$123,693.50 ",4/21/2015
ACCENTURE LLP,OUTSIDE SERVICES,"$3,745 ",4/21/2015
ACCENTURE LLP,OUTSIDE SERVICES,"$1,180 ",4/21/2015
ACCENTURE LLP,OUTSIDE SERVICES,"$100,073 ",5/26/2015
ACCENTURE LLP,OUTSIDE SERVICES,"$3,055 ",5/26/2015
ACCENTURE LLP,OUTSIDE SERVICES,"$121,175.50 ",7/6/2015
ACCENTURE LLP,OUTSIDE SERVICES,"$1,900 ",7/6/2015
ACCENTURE LLP,OUTSIDE SERVICES,"$137,385.50 ",7/13/2015
ACCENTURE LLP,OUTSIDE SERVICES,"$1,710 ",7/13/2015
ACCENTURE LLP,OUTSIDE SERVICES,"$227,055.50 ",8/27/2015
ACCENTURE LLP,OUTSIDE SERVICES,"$1,710 ",8/27/2015
ACCENTURE LLP,OUTSIDE SERVICES,"$32,475 ",8/27/2015
ACCENTURE LLP,OUTSIDE SERVICES,"$284,660 ",9/23/2015
ACCENTURE LLP,OUTSIDE SERVICES,$456 ,9/23/2015
ACCENTURE LLP,OUTSIDE SERVICES,"$169,006 ",10/20/2015
ACCENTURE LLP,OUTSIDE SERVICES,"$3,900 ",10/20/2015
ACCENTURE LLP,OUTSIDE SERVICES,"$134,075 ",10/20/2015
ACCENTURE LLP,OUTSIDE SERVICES,"$90,296 ",12/28/2015
ACCENTURE LLP,OUTSIDE SERVICES,"$3,150 ",12/28/2015
ACCENTURE LLP,OUTSIDE SERVICES,"$137,013.50 ",12/28/2015
ACCENTURE LLP,OUTSIDE SERVICES,"$85,957 ",12/29/2015
ACCENTURE LLP,OUTSIDE SERVICES,"$3,000 ",12/29/2015
ACCENTURE LLP,OUTSIDE SERVICES,"$191,300 ",12/29/2015
"ACCUNET SOLUTIONS, INC.",PROFESSIONAL SERVICES,"$1,656.20 ",1/20/2015
ACCURATE FORMS & SUPPLIES,MATERIALS - NON-INVENTORY,"$1,100 ",1/15/2015
ACCURATE FORMS & SUPPLIES,MATERIALS - NON-INVENTORY,"$1,202 ",2/4/2015
ACCURATE FORMS & SUPPLIES,MATERIALS - NON-INVENTORY,"$1,100 ",2/12/2015
ACCURATE FORMS & SUPPLIES,MATERIALS - NON-INVENTORY,"$1,277 ",2/18/2015
ACCURATE FORMS & SUPPLIES,MATERIALS - NON-INVENTORY,"$1,688 ",2/26/2015
ACCURATE FORMS & SUPPLIES,MATERIALS - NON-INVENTORY,"$1,173.50 ",3/9/2015
ACCURATE FORMS & SUPPLIES,MATERIALS - NON-INVENTORY,"$1,173.50 ",4/9/2015
ACCURATE FORMS & SUPPLIES,MATERIALS - NON-INVENTORY,"$1,173.50 ",5/19/2015
ACCURATE FORMS & SUPPLIES,MATERIALS - NON-INVENTORY,"$3,741 ",5/26/2015
ACCURATE FORMS & SUPPLIES,MATERIALS - NON-INVENTORY,"$2,420.50 ",6/15/2015
ACCURATE FORMS & SUPPLIES,MATERIALS - NON-INVENTORY,"$4,334.30 ",8/5/2015
ACCURATE FORMS & SUPPLIES,MATERIALS - NON-INVENTORY,"$3,165.80 ",8/26/2015
ACCURATE FORMS & SUPPLIES,MATERIALS - NON-INVENTORY,"$1,907.65 ",9/8/2015
ACCURATE FORMS & SUPPLIES,MATERIALS - NON-INVENTORY,"$1,802.35 ",9/28/2015
ACCURATE FORMS & SUPPLIES,MATERIALS - NON-INVENTORY,"$1,296.90 ",10/12/2015
ACCURATE FORMS & SUPPLIES,MATERIALS - NON-INVENTORY,"$1,363.45 ",10/19/2015
ACCURATE FORMS & SUPPLIES,OUTSIDE SERVICES,"$1,363.45 ",11/2/2015
ACCURATE FORMS & SUPPLIES,MATERIALS - NON-INVENTORY,"$1,363.45 ",11/10/2015
"ACCURATE REPORTING CO., INC.",PROFESSIONAL SERVICES,"$1,063.75 ",1/13/2015
"ACCURATE REPORTING CO., INC.",PROFESSIONAL SERVICES,$884.20 ,1/20/2015
"ACCURATE REPORTING CO., INC.",OUTSIDE SERVICES - CAPITAL,"$4,146.20 ",1/26/2015
"ACCURATE REPORTING CO., INC.",MISCELLANEOUS OTHER EXPENSE,$53.10 ,1/26/2015
"ACCURATE REPORTING CO., INC.",MISCELLANEOUS OTHER EXPENSE,$369.20 ,1/28/2015
"ACCURATE REPORTING CO., INC.",CLAIM EXPENSE,$240 ,1/28/2015
"ACCURATE REPORTING CO., INC.",PROFESSIONAL SERVICES,$551.20 ,1/28/2015
"ACCURATE REPORTING CO., INC.",CLAIM EXPENSE,$692.90 ,1/29/2015
"ACCURATE REPORTING CO., INC.",MISCELLANEOUS OTHER EXPENSE,$114.45 ,2/9/2015
"ACCURATE REPORTING CO., INC.",PROFESSIONAL SERVICES,$511.30 ,2/17/2015
"ACCURATE REPORTING CO., INC.",PROFESSIONAL SERVICES,$299.05 ,2/19/2015
"ACCURATE REPORTING CO., INC.",MISCELLANEOUS OTHER EXPENSE,$104.30 ,2/23/2015
"ACCURATE REPORTING CO., INC.",MISCELLANEOUS OTHER EXPENSE,$156.30 ,2/24/2015
"ACCURATE REPORTING CO., INC.",PROFESSIONAL SERVICES,$505.45 ,3/3/2015
"ACCURATE REPORTING CO., INC.",MISCELLANEOUS OTHER EXPENSE,$370 ,3/9/2015
"ACCURATE REPORTING CO., INC.",MISCELLANEOUS OTHER EXPENSE,$912.30 ,3/26/2015
"ACCURATE REPORTING CO., INC.",PROFESSIONAL SERVICES,$683.10 ,4/6/2015
"ACCURATE REPORTING CO., INC.",PROFESSIONAL SERVICES,$929 ,4/13/2015
"ACCURATE REPORTING CO., INC.",PROFESSIONAL SERVICES,$956.80 ,4/29/2015
"ACCURATE REPORTING CO., INC.",PROFESSIONAL SERVICES,"$1,156.75 ",4/30/2015
"ACCURATE REPORTING CO., INC.",PROFESSIONAL SERVICES,$62 ,5/5/2015
"ACCURATE REPORTING CO., INC.",PROFESSIONAL SERVICES,$144.20 ,5/11/2015
"ACCURATE REPORTING CO., INC.",PROFESSIONAL SERVICES,"$1,592.40 ",5/12/2015
"ACCURATE REPORTING CO., INC.",MISCELLANEOUS OTHER EXPENSE,$495.30 ,6/22/2015
"ACCURATE REPORTING CO., INC.",PROFESSIONAL SERVICES,"$1,057.60 ",6/23/2015
"ACCURATE REPORTING CO., INC.",MISCELLANEOUS OTHER EXPENSE,$62 ,7/6/2015
"ACCURATE REPORTING CO., INC.",PROFESSIONAL SERVICES,$297.95 ,7/6/2015
"ACCURATE REPORTING CO., INC.",MISCELLANEOUS OTHER EXPENSE,"$1,279.10 ",7/7/2015
"ACCURATE REPORTING CO., INC.",OUTSIDE SERVICES - CAPITAL,$144.80 ,7/20/2015
"ACCURATE REPORTING CO., INC.",MISCELLANEOUS OTHER EXPENSE,"$2,437.15 ",8/10/2015
"ACCURATE REPORTING CO., INC.",PROFESSIONAL SERVICES,$244.15 ,8/10/2015
"ACCURATE REPORTING CO., INC.",MISCELLANEOUS OTHER EXPENSE,"$1,312.35 ",8/24/2015
"ACCURATE REPORTING CO., INC.",MISCELLANEOUS OTHER EXPENSE,"$1,245 ",8/27/2015
"ACCURATE REPORTING CO., INC.",PROFESSIONAL SERVICES,"$1,600 ",8/31/2015
"ACCURATE REPORTING CO., INC.",PROFESSIONAL SERVICES,$709.55 ,9/8/2015
"ACCURATE REPORTING CO., INC.",MISCELLANEOUS OTHER EXPENSE,"$1,190.80 ",9/14/2015
"ACCURATE REPORTING CO., INC.",MISCELLANEOUS OTHER EXPENSE,"$2,556.35 ",9/21/2015
"ACCURATE REPORTING CO., INC.",MISCELLANEOUS OTHER EXPENSE,"$1,871.80 ",9/23/2015
"ACCURATE REPORTING CO., INC.",MISCELLANEOUS OTHER EXPENSE,$677.60 ,9/28/2015
"ACCURATE REPORTING CO., INC.",MISCELLANEOUS OTHER EXPENSE,"$2,811.20 ",10/12/2015
"ACCURATE REPORTING CO., INC.",PROFESSIONAL SERVICES,$400.20 ,11/2/2015
"ACCURATE REPORTING CO., INC.",OUTSIDE SERVICES - CAPITAL,$296.25 ,11/11/2015
"ACCURATE REPORTING CO., INC.",PROFESSIONAL SERVICES,"$1,360.05 ",11/16/2015
ACE BAKERY,MISCELLANEOUS OTHER EXPENSE,$350 ,1/28/2015
ACE BAKERY,MISCELLANEOUS OTHER EXPENSE,$40 ,1/28/2015
ACE BAKERY,MISCELLANEOUS OTHER EXPENSE,$640 ,3/30/2015
ACE BAKERY,MISCELLANEOUS OTHER EXPENSE,$40 ,8/3/2015
ACE BAKERY,MISCELLANEOUS OTHER EXPENSE,$405 ,8/3/2015
ACE BAKERY,MISCELLANEOUS OTHER EXPENSE,$140 ,8/10/2015
ACE BAKERY,MISCELLANEOUS OTHER EXPENSE,"$1,842 ",8/10/2015
ACE BAKERY,MISCELLANEOUS OTHER EXPENSE,$220 ,10/13/2015
ACE BAKERY,MISCELLANEOUS OTHER EXPENSE,"$2,325 ",10/13/2015
ACE COFFEE BAR INC.,MATERIALS - NON-INVENTORY,$35.50 ,1/12/2015
ACE COFFEE BAR INC.,MATERIALS - NON-INVENTORY,$302.50 ,1/12/2015
ACE COFFEE BAR INC.,MATERIALS - NON-INVENTORY,$361 ,2/26/2015
ACE COFFEE BAR INC.,MATERIALS - NON-INVENTORY,$443 ,4/27/2015
ACE COFFEE BAR INC.,MATERIALS - NON-INVENTORY,$311.75 ,6/29/2015
ACE COFFEE BAR INC.,MATERIALS - NON-INVENTORY,$161.75 ,8/10/2015
ACE COFFEE BAR INC.,MATERIALS - NON-INVENTORY,$21 ,10/12/2015
ACE COFFEE BAR INC.,MATERIALS - NON-INVENTORY,$452.50 ,10/12/2015
ACE COFFEE BAR INC.,MATERIALS - NON-INVENTORY,$391.50 ,11/30/2015
ACI WORLDWIDE CORP.,BANK CHARGES,$325 ,1/20/2015
ACI WORLDWIDE CORP.,BANK CHARGES,$325 ,2/26/2015
ACI WORLDWIDE CORP.,BANK CHARGES,$682.50 ,4/28/2015
ACI WORLDWIDE CORP.,BANK CHARGES,"$3,469.75 ",5/11/2015
ACI WORLDWIDE CORP.,BANK CHARGES,$341.25 ,5/20/2015
ACI WORLDWIDE CORP.,BANK CHARGES,$341.25 ,6/11/2015
ACI WORLDWIDE CORP.,BANK CHARGES,"$48,548 ",6/15/2015
ACI WORLDWIDE CORP.,BANK CHARGES,$330 ,7/20/2015
ACI WORLDWIDE CORP.,BANK CHARGES,$885 ,7/23/2015
ACI WORLDWIDE CORP.,BANK CHARGES,"$21,747 ",10/1/2015
ACI WORLDWIDE CORP.,BANK CHARGES,"$20,814 ",10/29/2015
ACI WORLDWIDE CORP.,BANK CHARGES,$180 ,11/16/2015
ACI WORLDWIDE CORP.,BANK CHARGES,"$15,765 ",11/24/2015
ACI WORLDWIDE CORP.,BANK CHARGES,$180 ,12/9/2015
ACI WORLDWIDE CORP.,BANK CHARGES,"$1,365 ",12/15/2015
"ACORN GARAGE, INC.",OUTSIDE SERVICES,$631.68 ,1/12/2015
"ACORN GARAGE, INC.",MISCELLANEOUS OTHER EXPENSE,$59.97 ,1/12/2015
"ACORN GARAGE, INC.",OUTSIDE SERVICES,"$1,601.18 ",1/20/2015
"ACORN GARAGE, INC.",OUTSIDE SERVICES,"$1,775.81 ",1/22/2015
"ACORN GARAGE, INC.",MISCELLANEOUS OTHER EXPENSE,$25 ,1/22/2015
"ACORN GARAGE, INC.",OUTSIDE SERVICES,"$6,246.11 ",2/9/2015
"ACORN GARAGE, INC.",MISCELLANEOUS OTHER EXPENSE,$361.85 ,2/9/2015
"ACORN GARAGE, INC.",MISCELLANEOUS OTHER EXPENSE,$59.97 ,2/12/2015
"ACORN GARAGE, INC.",OUTSIDE SERVICES,$127.05 ,2/26/2015
"ACORN GARAGE, INC.",OUTSIDE SERVICES,"$2,339.76 ",2/26/2015
"ACORN GARAGE, INC.",MISCELLANEOUS OTHER EXPENSE,$179.91 ,2/26/2015
"ACORN GARAGE, INC.",OUTSIDE SERVICES,$821.26 ,3/9/2015
"ACORN GARAGE, INC.",MISCELLANEOUS OTHER EXPENSE,$299.85 ,3/9/2015
"ACORN GARAGE, INC.",MISCELLANEOUS OTHER EXPENSE,$59.97 ,3/10/2015
"ACORN GARAGE, INC.",OUTSIDE SERVICES,"$4,860.21 ",3/12/2015
"ACORN GARAGE, INC.",MISCELLANEOUS OTHER EXPENSE,$119.94 ,3/12/2015
"ACORN GARAGE, INC.",OUTSIDE SERVICES,"$2,227.13 ",3/16/2015
"ACORN GARAGE, INC.",MISCELLANEOUS OTHER EXPENSE,$59.97 ,3/16/2015
"ACORN GARAGE, INC.",MISCELLANEOUS OTHER EXPENSE,$59.97 ,3/17/2015
"ACORN GARAGE, INC.",OUTSIDE SERVICES,$148.03 ,3/18/2015
"ACORN GARAGE, INC.",MISCELLANEOUS OTHER EXPENSE,$179.91 ,3/18/2015
"ACORN GARAGE, INC.",OUTSIDE SERVICES,"$2,009.76 ",3/26/2015
"ACORN GARAGE, INC.",MISCELLANEOUS OTHER EXPENSE,$179.91 ,3/26/2015
"ACORN GARAGE, INC.",OUTSIDE SERVICES,$485.18 ,4/2/2015
"ACORN GARAGE, INC.",MISCELLANEOUS OTHER EXPENSE,$119.94 ,4/2/2015
"ACORN GARAGE, INC.",OUTSIDE SERVICES,$496.65 ,4/13/2015
"ACORN GARAGE, INC.",MISCELLANEOUS OTHER EXPENSE,$119.94 ,4/13/2015
"ACORN GARAGE, INC.",OUTSIDE SERVICES,"$2,119.27 ",4/27/2015
"ACORN GARAGE, INC.",MISCELLANEOUS OTHER EXPENSE,$191.91 ,4/27/2015
"ACORN GARAGE, INC.",OUTSIDE SERVICES,$178.35 ,4/28/2015
"ACORN GARAGE, INC.",OUTSIDE SERVICES,"$6,356.57 ",5/5/2015
"ACORN GARAGE, INC.",MISCELLANEOUS OTHER EXPENSE,$323.85 ,5/5/2015
"ACORN GARAGE, INC.",OUTSIDE SERVICES,"$1,947.45 ",6/15/2015
"ACORN GARAGE, INC.",MISCELLANEOUS OTHER EXPENSE,$131.94 ,6/15/2015
"ACORN GARAGE, INC.",OUTSIDE SERVICES,"$1,771.64 ",6/22/2015
"ACORN GARAGE, INC.",MISCELLANEOUS OTHER EXPENSE,$59.97 ,6/22/2015
"ACORN GARAGE, INC.",OUTSIDE SERVICES,$139.90 ,6/29/2015
"ACORN GARAGE, INC.",OUTSIDE SERVICES,$373.68 ,6/30/2015
"ACORN GARAGE, INC.",OUTSIDE SERVICES,"$1,536.10 ",7/6/2015
"ACORN GARAGE, INC.",MISCELLANEOUS OTHER EXPENSE,$131.94 ,7/6/2015
"ACORN GARAGE, INC.",OUTSIDE SERVICES,$139.54 ,7/9/2015
"ACORN GARAGE, INC.",OUTSIDE SERVICES,"$1,922.30 ",7/20/2015
"ACORN GARAGE, INC.",MISCELLANEOUS OTHER EXPENSE,$59.97 ,7/20/2015
"ACORN GARAGE, INC.",OUTSIDE SERVICES,"$2,556.99 ",7/21/2015
"ACORN GARAGE, INC.",MISCELLANEOUS OTHER EXPENSE,$10 ,7/21/2015
"ACORN GARAGE, INC.",MISCELLANEOUS OTHER EXPENSE,$59.97 ,7/21/2015
"ACORN GARAGE, INC.",MISCELLANEOUS OTHER EXPENSE,$59.97 ,8/10/2015
"ACORN GARAGE, INC.",OUTSIDE SERVICES,"$4,611.54 ",8/27/2015
"ACORN GARAGE, INC.",MISCELLANEOUS OTHER EXPENSE,$251.88 ,8/27/2015
"ACORN GARAGE, INC.",MISCELLANEOUS OTHER EXPENSE,$59.97 ,9/3/2015
"ACORN GARAGE, INC.",OUTSIDE SERVICES,"$3,761.79 ",10/1/2015
"ACORN GARAGE, INC.",MISCELLANEOUS OTHER EXPENSE,$444.79 ,10/1/2015
"ACORN GARAGE, INC.",OUTSIDE SERVICES,"$3,486.76 ",10/5/2015
"ACORN GARAGE, INC.",MISCELLANEOUS OTHER EXPENSE,$131.94 ,10/5/2015
"ACORN GARAGE, INC.",MISCELLANEOUS OTHER EXPENSE,$119.94 ,10/12/2015
"ACORN GARAGE, INC.",OUTSIDE SERVICES,"$1,081.70 ",10/29/2015
"ACORN GARAGE, INC.",OUTSIDE SERVICES,$360.75 ,11/2/2015
"ACORN GARAGE, INC.",MISCELLANEOUS OTHER EXPENSE,$59.97 ,11/2/2015
"ACORN GARAGE, INC.",OUTSIDE SERVICES,"$5,751.74 ",11/5/2015
"ACORN GARAGE, INC.",MISCELLANEOUS OTHER EXPENSE,$119.94 ,11/5/2015
"ACORN GARAGE, INC.",OUTSIDE SERVICES,$110.93 ,12/15/2015
"ACORN GARAGE, INC.",MISCELLANEOUS OTHER EXPENSE,$25 ,12/15/2015
"ACORN GARAGE, INC.",OUTSIDE SERVICES,"$4,447.74 ",12/28/2015
"ACORN GARAGE, INC.",MISCELLANEOUS OTHER EXPENSE,$241.91 ,12/28/2015
"ADAMS & WESTLAKE, LTD.",MATERIALS - INVENTORY,"$9,289.13 ",1/20/2015
"ADAMS & WESTLAKE, LTD.",MATERIALS - INVENTORY,"$5,461.07 ",2/9/2015
"ADAMS & WESTLAKE, LTD.",MATERIALS - INVENTORY,"$1,250 ",3/25/2015
"ADAMS & WESTLAKE, LTD.",MATERIALS - INVENTORY,"$2,629.30 ",3/30/2015
"ADAMS & WESTLAKE, LTD.",MATERIALS - INVENTORY,$848.10 ,3/31/2015
"ADAMS & WESTLAKE, LTD.",MATERIALS - INVENTORY,"$7,715.79 ",4/15/2015
"ADAMS & WESTLAKE, LTD.",MATERIALS - INVENTORY,"$6,566.75 ",4/27/2015
"ADAMS & WESTLAKE, LTD.",MATERIALS - INVENTORY,$985 ,5/19/2015
"ADAMS & WESTLAKE, LTD.",MATERIALS - INVENTORY,"$27,053.78 ",7/7/2015
"ADAMS & WESTLAKE, LTD.",MATERIALS - INVENTORY,"$6,243.40 ",7/9/2015
"ADAMS & WESTLAKE, LTD.",MATERIALS - INVENTORY,"$2,311.92 ",7/13/2015
"ADAMS & WESTLAKE, LTD.",MATERIALS - INVENTORY,"$8,404.25 ",8/5/2015
"ADAMS & WESTLAKE, LTD.",MATERIALS - INVENTORY,"$6,821.94 ",8/10/2015
"ADAMS & WESTLAKE, LTD.",MATERIALS - INVENTORY,"$3,828.06 ",8/17/2015
"ADAMS & WESTLAKE, LTD.",MATERIALS - INVENTORY,"$33,372.87 ",9/14/2015
"ADAMS & WESTLAKE, LTD.",MATERIALS - INVENTORY,$897.50 ,10/22/2015
"ADAMS & WESTLAKE, LTD.",MATERIALS - INVENTORY,"$20,113.20 ",11/2/2015
"ADAMS & WESTLAKE, LTD.",MATERIALS - INVENTORY,"$2,552.04 ",11/9/2015
"ADAMS & WESTLAKE, LTD.",MATERIALS - INVENTORY,"$6,450.08 ",11/16/2015
"ADAMS & WESTLAKE, LTD.",MATERIALS - NON-INVENTORY,$403.30 ,11/16/2015
"ADAMS & WESTLAKE, LTD.",MATERIALS - INVENTORY,"$3,190.05 ",11/23/2015
"ADAMS & WESTLAKE, LTD.",MATERIALS - INVENTORY,$897.50 ,12/21/2015
"ADDISON ELECTRIC, INC.",MATERIALS - INVENTORY,$114 ,2/9/2015
"ADDISON ELECTRIC, INC.",MATERIALS - INVENTORY,$378 ,3/30/2015
"ADDISON ELECTRIC, INC.",MATERIALS - INVENTORY,"$1,200 ",4/29/2015
"ADDISON ELECTRIC, INC.",MATERIALS - INVENTORY,$76 ,7/2/2015
"ADDISON ELECTRIC, INC.",MATERIALS - INVENTORY,$413 ,7/7/2015
"ADDISON ELECTRIC, INC.",MATERIALS - INVENTORY,"$1,310 ",7/9/2015
"ADDISON ELECTRIC, INC.",MATERIALS - INVENTORY,$694 ,9/28/2015
"ADDISON ELECTRIC, INC.",MATERIALS - INVENTORY,"$1,217.50 ",11/16/2015
ADORAMA INC,MATERIALS - NON-INVENTORY,$140 ,5/20/2015
ADVANCE SEARCH TECHNICAL STAFFING,PROFESSIONAL SERVICES,"$18,000 ",12/10/2015
ADVANTECH CORPORATION,MATERIALS - NON-INVENTORY,"$1,164.56 ",6/29/2015
ADVANTECH CORPORATION,MISCELLANEOUS OTHER EXPENSE,$82.94 ,6/29/2015
"AECOM TECHNICAL SERVICES, INC.",ENGINEERING & DESIGN,"$74,071.04 ",1/20/2015
"AECOM TECHNICAL SERVICES, INC.",ENGINEERING & DESIGN,"$21,844.87 ",2/17/2015
"AECOM TECHNICAL SERVICES, INC.",ENGINEERING & DESIGN,"$35,517.02 ",2/24/2015
"AECOM TECHNICAL SERVICES, INC.",ENG. MANAGEMENT & INSPECTIONS,"$30,895.22 ",3/19/2015
"AECOM TECHNICAL SERVICES, INC.",ENGINEERING & DESIGN,"$53,140.14 ",3/30/2015
"AECOM TECHNICAL SERVICES, INC.",ENG. MANAGEMENT & INSPECTIONS,"$37,961.47 ",5/4/2015
"AECOM TECHNICAL SERVICES, INC.",ENG. MANAGEMENT & INSPECTIONS,"$21,096.84 ",5/26/2015
"AECOM TECHNICAL SERVICES, INC.",ENGINEERING & DESIGN,"$25,157.76 ",6/25/2015
"AECOM TECHNICAL SERVICES, INC.",ENGINEERING & DESIGN,"$2,630.68 ",7/14/2015
"AECOM TECHNICAL SERVICES, INC.",ENG. MANAGEMENT & INSPECTIONS,"$83,283.13 ",7/23/2015
"AECOM TECHNICAL SERVICES, INC.",ENGINEERING & DESIGN,"$14,808.25 ",8/6/2015
"AECOM TECHNICAL SERVICES, INC.",ENGINEERING & DESIGN,"$29,372.45 ",8/19/2015
"AECOM TECHNICAL SERVICES, INC.",ENG. MANAGEMENT & INSPECTIONS,"$80,252.08 ",8/27/2015
"AECOM TECHNICAL SERVICES, INC.",OUTSIDE SERVICES - CAPITAL,"$6,923.82 ",10/13/2015
"AECOM TECHNICAL SERVICES, INC.",ENG. MANAGEMENT & INSPECTIONS,"$17,782.09 ",10/19/2015
"AECOM TECHNICAL SERVICES, INC.",ENG. MANAGEMENT & INSPECTIONS,"$30,544.05 ",10/22/2015
"AECOM TECHNICAL SERVICES, INC.",ENGINEERING & DESIGN,"$13,796.92 ",11/16/2015
"AECOM TECHNICAL SERVICES, INC.",ENGINEERING & DESIGN,"$13,532.10 ",12/2/2015
"AECOM TECHNICAL SERVICES, INC.",ENGINEERING & DESIGN,"$7,906.58 ",12/15/2015
"AECOM TECHNICAL SERVICES, INC.",ENG. MANAGEMENT & INSPECTIONS,"$33,930.16 ",12/17/2015
"AECOM USA, INC.",ENG. MANAGEMENT & INSPECTIONS,$575.34 ,10/8/2015
"AFC INTERNATIONAL, INC.",MATERIALS - NON-INVENTORY,"$1,450.42 ",7/1/2015
"AFC INTERNATIONAL, INC.",MATERIALS - NON-INVENTORY,"$1,450.43 ",7/1/2015
"AFC INTERNATIONAL, INC.",MATERIALS - NON-INVENTORY,"$8,820 ",7/21/2015
"AFC INTERNATIONAL, INC.",MISCELLANEOUS OTHER EXPENSE,$37.30 ,7/21/2015
"AFC INTERNATIONAL, INC.",MATERIALS - NON-INVENTORY,"$4,751.90 ",7/23/2015
AFFIRM AGENCY,MISCELLANEOUS OTHER EXPENSE,"$128,248.20 ",9/14/2015
AFFIRM AGENCY,MISCELLANEOUS OTHER EXPENSE,"$61,335.45 ",10/1/2015
AFFIRM AGENCY,MISCELLANEOUS OTHER EXPENSE,"$4,051.75 ",11/16/2015
AFFIRM AGENCY,MISCELLANEOUS OTHER EXPENSE,$965 ,12/15/2015
AICPA RENEWAL PROCESSING,MISCELLANEOUS OTHER EXPENSE,$245 ,7/9/2015
AICPA RENEWAL PROCESSING,MISCELLANEOUS OTHER EXPENSE,$245 ,7/15/2015
AIR BRAKE ASSN.,MISCELLANEOUS OTHER EXPENSE,$50 ,6/30/2015
"AIRCRAFT & COMMERCIAL ENTERPRISES,",MATERIALS - NON-INVENTORY,"$9,968.70 ",1/26/2015
"AIRCRAFT & COMMERCIAL ENTERPRISES,",MATERIALS - NON-INVENTORY,"$5,350 ",4/9/2015
"AIRCRAFT & COMMERCIAL ENTERPRISES,",MATERIALS - NON-INVENTORY,"$2,457.40 ",5/26/2015
"AIRCRAFT & COMMERCIAL ENTERPRISES,",MATERIALS - NON-INVENTORY,"$1,670 ",5/27/2015
"AIRCRAFT & COMMERCIAL ENTERPRISES,",MATERIALS - NON-INVENTORY,"$19,825.90 ",9/3/2015
"AIRCRAFT & COMMERCIAL ENTERPRISES,",MATERIALS - NON-INVENTORY,$375.60 ,9/3/2015
"AIRCRAFT & COMMERCIAL ENTERPRISES,",MATERIALS - NON-INVENTORY,"$13,509.55 ",9/3/2015
"AIRCRAFT & COMMERCIAL ENTERPRISES,",MATERIALS - NON-INVENTORY,"$1,195 ",10/22/2015
"AIRCRAFT & COMMERCIAL ENTERPRISES,",MATERIALS - NON-INVENTORY,"$2,249 ",10/26/2015
"AIRGAS USA, LLC",OUTSIDE SERVICES,$250 ,6/10/2015
"AIRGAS USA, LLC",OUTSIDE SERVICES,$331 ,7/2/2015
"AIRGAS USA, LLC",MATERIALS - NON-INVENTORY,"$1,197 ",11/23/2015
"AIRGAS USA, LLC",MISCELLANEOUS OTHER EXPENSE,$5.50 ,11/23/2015
"AIRLINE TOWING, INC.",MISCELLANEOUS OTHER EXPENSE,$100 ,4/9/2015
"AIRLINE TOWING, INC.",MISCELLANEOUS OTHER EXPENSE,$150 ,4/13/2015
"AKA COMP SOLUTIONS, INC.",OUTSIDE SERVICES,"$15,380.89 ",3/9/2015
"AKA COMP SOLUTIONS, INC.",OUTSIDE SERVICES,"$23,823.12 ",5/11/2015
"AKA COMP SOLUTIONS, INC.",MISCELLANEOUS OTHER EXPENSE,$200 ,5/11/2015
"AKA COMP SOLUTIONS, INC.",MATERIALS & ASSETS - CAPITAL,"$26,045.75 ",7/27/2015
ALAINE KOSCHNITZKI,CLAIM EXPENSE,"$8,500 ",1/27/2015
"ALCO SPRING INDUSTRIES, INC.",MATERIALS - INVENTORY,$980 ,1/13/2015
"ALCO SPRING INDUSTRIES, INC.",MISCELLANEOUS OTHER EXPENSE,$66.12 ,1/13/2015
"ALCO SPRING INDUSTRIES, INC.",MATERIALS - INVENTORY,"$1,225 ",9/14/2015
"ALCO SPRING INDUSTRIES, INC.",MISCELLANEOUS OTHER EXPENSE,$70 ,9/14/2015
"ALCOHOL & DRUG TESTING SERVICES,LLC",MISCELLANEOUS OTHER EXPENSE,"$5,459.62 ",1/20/2015
"ALCOHOL & DRUG TESTING SERVICES,LLC",MISCELLANEOUS OTHER EXPENSE,"$12,653.48 ",2/4/2015
"ALCOHOL & DRUG TESTING SERVICES,LLC",MISCELLANEOUS OTHER EXPENSE,"$9,089.24 ",4/9/2015
"ALCOHOL & DRUG TESTING SERVICES,LLC",MISCELLANEOUS OTHER EXPENSE,"$14,053.86 ",4/20/2015
"ALCOHOL & DRUG TESTING SERVICES,LLC",MISCELLANEOUS OTHER EXPENSE,"$4,349.62 ",5/5/2015
"ALCOHOL & DRUG TESTING SERVICES,LLC",MISCELLANEOUS OTHER EXPENSE,"$7,479.24 ",5/20/2015
"ALCOHOL & DRUG TESTING SERVICES,LLC",MISCELLANEOUS OTHER EXPENSE,"$4,244.62 ",6/30/2015
"ALCOHOL & DRUG TESTING SERVICES,LLC",MISCELLANEOUS OTHER EXPENSE,"$4,064.62 ",7/9/2015
"ALCOHOL & DRUG TESTING SERVICES,LLC",MISCELLANEOUS OTHER EXPENSE,"$3,314.62 ",8/3/2015
"ALCOHOL & DRUG TESTING SERVICES,LLC",MISCELLANEOUS OTHER EXPENSE,"$3,899.62 ",8/19/2015
"ALCOHOL & DRUG TESTING SERVICES,LLC",MISCELLANEOUS OTHER EXPENSE,"$12,748.86 ",8/31/2015
"ALCOHOL & DRUG TESTING SERVICES,LLC",MISCELLANEOUS OTHER EXPENSE,"$4,739.62 ",10/5/2015
"ALCOHOL & DRUG TESTING SERVICES,LLC",MISCELLANEOUS OTHER EXPENSE,"$5,379.62 ",10/22/2015
"ALCOHOL & DRUG TESTING SERVICES,LLC",MISCELLANEOUS OTHER EXPENSE,"$9,404.24 ",11/24/2015
"ALEXANDRA ROTH,CSR,LTD",CLAIM EXPENSE,$91.40 ,1/28/2015
ALFRED BENESCH & CO.,ENG. MANAGEMENT & INSPECTIONS,"$197,150.24 ",1/20/2015
ALFRED BENESCH & CO.,ENG. MANAGEMENT & INSPECTIONS,"$157,600.23 ",2/3/2015
ALFRED BENESCH & CO.,MATERIALS - NON-INVENTORY,"$3,846.24 ",2/25/2015
ALFRED BENESCH & CO.,ENG. MANAGEMENT & INSPECTIONS,"$226,373.30 ",3/12/2015
ALFRED BENESCH & CO.,ENGINEERING & DESIGN,"$27,005.92 ",5/4/2015
ALFRED BENESCH & CO.,CONSTRUCTION,"$27,005.93 ",5/4/2015
ALFRED BENESCH & CO.,ENG. MANAGEMENT & INSPECTIONS,"$415,054.36 ",5/5/2015
ALFRED BENESCH & CO.,ENG. MANAGEMENT & INSPECTIONS,"$173,520.77 ",5/11/2015
ALFRED BENESCH & CO.,ENGINEERING & DESIGN,"$105,092.86 ",5/14/2015
ALFRED BENESCH & CO.,CONSTRUCTION,"$105,092.86 ",5/14/2015
ALFRED BENESCH & CO.,ENG. MANAGEMENT & INSPECTIONS,"$199,823.47 ",6/23/2015
ALFRED BENESCH & CO.,ENG. MANAGEMENT & INSPECTIONS,"$189,266.46 ",7/23/2015
ALFRED BENESCH & CO.,ENGINEERING & DESIGN,"$177,588.54 ",7/23/2015
ALFRED BENESCH & CO.,CONSTRUCTION,"$177,588.55 ",7/23/2015
ALFRED BENESCH & CO.,ENG. MANAGEMENT & INSPECTIONS,"$215,586.81 ",8/6/2015
ALFRED BENESCH & CO.,ENG. MANAGEMENT & INSPECTIONS,"$214,002.57 ",8/19/2015
ALFRED BENESCH & CO.,ENGINEERING & DESIGN,"$120,524.70 ",10/5/2015
ALFRED BENESCH & CO.,CONSTRUCTION,"$120,524.71 ",10/5/2015
ALFRED BENESCH & CO.,ENG. MANAGEMENT & INSPECTIONS,"$184,658.16 ",10/27/2015
ALFRED BENESCH & CO.,ENG. MANAGEMENT & INSPECTIONS,"$192,734.85 ",11/10/2015
ALFRED BENESCH & CO.,ENGINEERING & DESIGN,"$120,620.63 ",11/10/2015
ALFRED BENESCH & CO.,CONSTRUCTION,"$120,620.62 ",11/10/2015
ALFRED BENESCH & CO.,ENG. MANAGEMENT & INSPECTIONS,"$155,175.73 ",11/18/2015
ALFRED BENESCH & CO.,ENGINEERING & DESIGN,"$135,328.26 ",12/2/2015
ALFRED BENESCH & CO.,CONSTRUCTION,"$135,328.27 ",12/2/2015
ALFRED BENESCH & CO.,ENGINEERING & DESIGN,"$443,735.28 ",12/7/2015
ALFRED BENESCH & CO.,CONSTRUCTION,"$443,735.30 ",12/7/2015
"ALGEBRA, INC.",OUTSIDE SERVICES,"$2,400 ",7/7/2015
"ALIGN ELEVATION, LLC",OUTSIDE SERVICES,"$13,336.36 ",1/5/2015
"ALIGN ELEVATION, LLC",OUTSIDE SERVICES,$486 ,1/8/2015
"ALIGN ELEVATION, LLC",OUTSIDE SERVICES,"$10,548.33 ",1/20/2015
"ALIGN ELEVATION, LLC",OUTSIDE SERVICES,"$5,279 ",3/30/2015
"ALIGN ELEVATION, LLC",OUTSIDE SERVICES,"$13,818.74 ",4/2/2015
"ALIGN ELEVATION, LLC",OUTSIDE SERVICES,"$3,580 ",4/7/2015
"ALIGN ELEVATION, LLC",OUTSIDE SERVICES,$188 ,4/13/2015
"ALIGN ELEVATION, LLC",OUTSIDE SERVICES,"$1,564.56 ",4/14/2015
"ALIGN ELEVATION, LLC",OUTSIDE SERVICES,"$1,598 ",4/20/2015
"ALIGN ELEVATION, LLC",OUTSIDE SERVICES,$282 ,4/23/2015
"ALIGN ELEVATION, LLC",OUTSIDE SERVICES,"$5,969.80 ",4/27/2015
"ALIGN ELEVATION, LLC",OUTSIDE SERVICES,"$4,076.96 ",4/28/2015
"ALIGN ELEVATION, LLC",OUTSIDE SERVICES,"$35,627.28 ",4/30/2015
"ALIGN ELEVATION, LLC",OUTSIDE SERVICES,$470 ,5/6/2015
"ALIGN ELEVATION, LLC",OUTSIDE SERVICES,$468 ,5/11/2015
"ALIGN ELEVATION, LLC",OUTSIDE SERVICES,"$1,324.10 ",5/13/2015
"ALIGN ELEVATION, LLC",OUTSIDE SERVICES,$675 ,5/20/2015
"ALIGN ELEVATION, LLC",OUTSIDE SERVICES,"$10,306.58 ",5/26/2015
"ALIGN ELEVATION, LLC",OUTSIDE SERVICES,"$4,779.80 ",5/28/2015
"ALIGN ELEVATION, LLC",OUTSIDE SERVICES,"$4,452.62 ",6/2/2015
"ALIGN ELEVATION, LLC",OUTSIDE SERVICES,"$16,912.91 ",6/4/2015
"ALIGN ELEVATION, LLC",OUTSIDE SERVICES,"$5,989.17 ",6/8/2015
"ALIGN ELEVATION, LLC",OUTSIDE SERVICES,"$3,999.77 ",6/29/2015
"ALIGN ELEVATION, LLC",MATERIALS - NON-INVENTORY,$830.02 ,7/6/2015
"ALIGN ELEVATION, LLC",OUTSIDE SERVICES,"$7,780.30 ",7/6/2015
"ALIGN ELEVATION, LLC",OUTSIDE SERVICES,$799.81 ,7/9/2015
"ALIGN ELEVATION, LLC",OUTSIDE SERVICES,"$4,662.36 ",7/13/2015
"ALIGN ELEVATION, LLC",OUTSIDE SERVICES,"$1,576.36 ",7/20/2015
"ALIGN ELEVATION, LLC",OUTSIDE SERVICES,"$2,593.84 ",7/21/2015
"ALIGN ELEVATION, LLC",OUTSIDE SERVICES,"$2,282.36 ",8/5/2015
"ALIGN ELEVATION, LLC",OUTSIDE SERVICES - CAPITAL,"$41,871.66 ",8/10/2015
"ALIGN ELEVATION, LLC",OUTSIDE SERVICES,"$3,924 ",8/10/2015
"ALIGN ELEVATION, LLC",OUTSIDE SERVICES,"$14,423.13 ",8/24/2015
"ALIGN ELEVATION, LLC",OUTSIDE SERVICES,"$3,932 ",9/29/2015
"ALIGN ELEVATION, LLC",OUTSIDE SERVICES,"$25,547.50 ",10/12/2015
"ALIGN ELEVATION, LLC",OUTSIDE SERVICES,"$5,424.63 ",10/13/2015
"ALIGN ELEVATION, LLC",OUTSIDE SERVICES,"$11,311.70 ",10/14/2015
"ALIGN ELEVATION, LLC",OUTSIDE SERVICES,$361.80 ,10/19/2015
"ALIGN ELEVATION, LLC",OUTSIDE SERVICES,$812.13 ,12/3/2015
"ALIGN ELEVATION, LLC",OUTSIDE SERVICES,"$6,414.50 ",12/3/2015
"ALIGN ELEVATION, LLC",OUTSIDE SERVICES,"$11,736.98 ",12/9/2015
"ALIGN ELEVATION, LLC",OUTSIDE SERVICES,"$13,392.54 ",12/17/2015
"ALIGN ELEVATION, LLC",OUTSIDE SERVICES,"$35,820.15 ",12/21/2015
"ALIGN ELEVATION, LLC",OUTSIDE SERVICES,$709.39 ,12/22/2015
"ALIGN ELEVATION, LLC",OUTSIDE SERVICES,$338.04 ,12/22/2015
"ALIGN ELEVATION, LLC",OUTSIDE SERVICES,$986.04 ,12/28/2015
ALL AMERICAN POLY CORP.,MATERIALS - INVENTORY,"$3,041.16 ",1/22/2015
ALL AMERICAN POLY CORP.,MATERIALS - INVENTORY,"$10,092.62 ",1/26/2015
ALL AMERICAN POLY CORP.,MATERIALS - INVENTORY,"$19,510.30 ",3/5/2015
ALL AMERICAN POLY CORP.,MATERIALS - INVENTORY,"$3,401.60 ",3/26/2015
ALL AMERICAN POLY CORP.,MATERIALS - INVENTORY,"$13,426.54 ",3/30/2015
ALL AMERICAN POLY CORP.,MATERIALS - INVENTORY,"$1,521.86 ",4/6/2015
ALL AMERICAN POLY CORP.,MATERIALS - INVENTORY,"$3,111.95 ",4/7/2015
ALL AMERICAN POLY CORP.,MATERIALS - INVENTORY,$323.60 ,4/21/2015
ALL AMERICAN POLY CORP.,MATERIALS - INVENTORY,"$1,643.88 ",4/27/2015
ALL AMERICAN POLY CORP.,MATERIALS - INVENTORY,"$9,360.60 ",5/11/2015
ALL AMERICAN POLY CORP.,MATERIALS - INVENTORY,"$7,492.14 ",6/4/2015
ALL AMERICAN POLY CORP.,MATERIALS - INVENTORY,"$4,967.60 ",6/22/2015
ALL AMERICAN POLY CORP.,MATERIALS - INVENTORY,"$2,136.02 ",7/6/2015
ALL AMERICAN POLY CORP.,MATERIALS - INVENTORY,"$15,522.06 ",7/29/2015
ALL AMERICAN POLY CORP.,MATERIALS - INVENTORY,"$6,740.50 ",8/10/2015
ALL AMERICAN POLY CORP.,MATERIALS - INVENTORY,$323.60 ,8/24/2015
ALL AMERICAN POLY CORP.,MATERIALS - INVENTORY,"$3,763 ",8/26/2015
ALL AMERICAN POLY CORP.,MATERIALS - INVENTORY,"$8,325.84 ",9/14/2015
ALL AMERICAN POLY CORP.,MATERIALS - INVENTORY,"$2,568.50 ",10/5/2015
ALL AMERICAN POLY CORP.,MATERIALS - INVENTORY,"$2,896.22 ",10/21/2015
ALL AMERICAN POLY CORP.,MATERIALS - INVENTORY,"$1,174.20 ",10/22/2015
ALL AMERICAN POLY CORP.,MATERIALS - INVENTORY,"$8,403.10 ",10/29/2015
ALL AMERICAN POLY CORP.,MATERIALS - INVENTORY,"$6,759.60 ",11/11/2015
ALLAN BAKER INC DBA KORRECT OPTICAL,MISCELLANEOUS OTHER EXPENSE,"$4,852 ",1/15/2015
ALLAN BAKER INC DBA KORRECT OPTICAL,MISCELLANEOUS OTHER EXPENSE,"$2,333 ",3/4/2015
ALLAN BAKER INC DBA KORRECT OPTICAL,MISCELLANEOUS OTHER EXPENSE,"$1,950 ",3/26/2015
ALLAN BAKER INC DBA KORRECT OPTICAL,MISCELLANEOUS OTHER EXPENSE,"$2,292 ",3/30/2015
ALLAN BAKER INC DBA KORRECT OPTICAL,MISCELLANEOUS OTHER EXPENSE,$382 ,6/1/2015
ALLAN BAKER INC DBA KORRECT OPTICAL,MISCELLANEOUS OTHER EXPENSE,$336 ,6/9/2015
ALLAN BAKER INC DBA KORRECT OPTICAL,MISCELLANEOUS OTHER EXPENSE,"$4,315 ",8/24/2015
ALLAN BAKER INC DBA KORRECT OPTICAL,MISCELLANEOUS OTHER EXPENSE,"$4,777 ",11/12/2015
ALLIANCE PAPER & FOODSERVICE EQUIP.,MATERIALS - NON-INVENTORY,"$2,856 ",5/4/2015
ALLIANCE PAPER & FOODSERVICE EQUIP.,MISCELLANEOUS OTHER EXPENSE,$25.13 ,5/4/2015
"ALLIED CLEANING SERVICES, INC.",MISCELLANEOUS OTHER EXPENSE,"$7,052.27 ",1/20/2015
"ALLIED CLEANING SERVICES, INC.",MISCELLANEOUS OTHER EXPENSE,"$1,555.25 ",1/22/2015
"ALLIED CLEANING SERVICES, INC.",MISCELLANEOUS OTHER EXPENSE,"$8,431.02 ",2/5/2015
"ALLIED CLEANING SERVICES, INC.",MISCELLANEOUS OTHER EXPENSE,"$8,065.99 ",3/3/2015
"ALLIED CLEANING SERVICES, INC.",MISCELLANEOUS OTHER EXPENSE,"$8,369.79 ",4/21/2015
"ALLIED CLEANING SERVICES, INC.",MISCELLANEOUS OTHER EXPENSE,$372.88 ,6/22/2015
"ALLIED CLEANING SERVICES, INC.",MISCELLANEOUS OTHER EXPENSE,"$3,751.25 ",7/23/2015
"ALLIED CLEANING SERVICES, INC.",MISCELLANEOUS OTHER EXPENSE,"$1,802.12 ",8/26/2015
"ALLIED CLEANING SERVICES, INC.",MISCELLANEOUS OTHER EXPENSE,$563.02 ,9/3/2015
"ALLIED CLEANING SERVICES, INC.",MISCELLANEOUS OTHER EXPENSE,"$9,096.49 ",10/5/2015
ALLIED ELECTRONICS INC.,MATERIALS - INVENTORY,$219.64 ,3/30/2015
ALLIED ELECTRONICS INC.,MATERIALS - NON-INVENTORY,$539.46 ,4/13/2015
ALLIED ELECTRONICS INC.,MATERIALS - NON-INVENTORY,$53 ,5/12/2015
ALLIED ELECTRONICS INC.,MATERIALS - NON-INVENTORY,$543.98 ,5/28/2015
ALLIED ELECTRONICS INC.,MATERIALS - NON-INVENTORY,$108.18 ,6/25/2015
ALLIED ELECTRONICS INC.,MATERIALS - NON-INVENTORY,$420 ,9/14/2015
ALLOY SLING CHAIN INDUSTRIES,OUTSIDE SERVICES,$320.79 ,6/29/2015
ALLOY SLING CHAIN INDUSTRIES,OUTSIDE SERVICES,$419.87 ,10/8/2015
"ALSIP LAWNMOWER, INC.",OUTSIDE SERVICES,"$1,329.34 ",8/10/2015
"ALSIP LAWNMOWER, INC.",OUTSIDE SERVICES,$391.89 ,8/19/2015
"ALSTOM SIGNALING OPERATION, LLC",MATERIALS - INVENTORY,"$131,322.72 ",12/28/2015
"ALSTOM SIGNALING OPERATION, LLC",MATERIALS - NON-INVENTORY,"$1,664 ",12/28/2015
"ALSTOM SIGNALING OPERATION, LLC",OUTSIDE SERVICES,"$4,941 ",12/28/2015
"ALSTOM SIGNALING, INC.",MATERIALS - INVENTORY,"$1,701.50 ",1/22/2015
"ALSTOM SIGNALING, INC.",MATERIALS - INVENTORY,$698.04 ,1/26/2015
"ALSTOM SIGNALING, INC.",MATERIALS - INVENTORY,"$22,345 ",1/29/2015
"ALSTOM SIGNALING, INC.",CONSTRUCTION,"$458,790.93 ",2/3/2015
"ALSTOM SIGNALING, INC.",CONSTRUCTION,"$458,790.92 ",2/3/2015
"ALSTOM SIGNALING, INC.",MATERIALS - NON-INVENTORY,$763.05 ,3/10/2015
"ALSTOM SIGNALING, INC.",OUTSIDE SERVICES - CAPITAL,"$34,993.35 ",3/24/2015
"ALSTOM SIGNALING, INC.",MATERIALS - INVENTORY,"$3,671.58 ",3/24/2015
"ALSTOM SIGNALING, INC.",MATERIALS - INVENTORY,"$4,416.74 ",3/31/2015
"ALSTOM SIGNALING, INC.",MATERIALS - NON-INVENTORY,$763.05 ,3/31/2015
"ALSTOM SIGNALING, INC.",OUTSIDE SERVICES,$850 ,4/14/2015
"ALSTOM SIGNALING, INC.",CONSTRUCTION,"$65,044.20 ",4/28/2015
"ALSTOM SIGNALING, INC.",CONSTRUCTION,"$65,044.20 ",4/28/2015
"ALSTOM SIGNALING, INC.",CONSTRUCTION,"$114,617.50 ",4/29/2015
"ALSTOM SIGNALING, INC.",MATERIALS - INVENTORY,"$2,435.48 ",4/29/2015
"ALSTOM SIGNALING, INC.",MATERIALS - INVENTORY,"$3,884.76 ",5/5/2015
"ALSTOM SIGNALING, INC.",OUTSIDE SERVICES,"$1,486.25 ",5/5/2015
"ALSTOM SIGNALING, INC.",CONSTRUCTION,"$158,740 ",5/11/2015
"ALSTOM SIGNALING, INC.",CONSTRUCTION,"$158,740 ",5/11/2015
"ALSTOM SIGNALING, INC.",OUTSIDE SERVICES - CAPITAL,"$584,692.18 ",5/11/2015
"ALSTOM SIGNALING, INC.",MATERIALS - INVENTORY,"$29,517.31 ",5/19/2015
"ALSTOM SIGNALING, INC.",MATERIALS - NON-INVENTORY,$763.05 ,5/19/2015
"ALSTOM SIGNALING, INC.",MATERIALS - INVENTORY,"$4,079.52 ",5/20/2015
"ALSTOM SIGNALING, INC.",CONSTRUCTION,"$94,800 ",6/8/2015
"ALSTOM SIGNALING, INC.",CONSTRUCTION,"$94,800 ",6/8/2015
"ALSTOM SIGNALING, INC.",OUTSIDE SERVICES,$763.05 ,6/9/2015
"ALSTOM SIGNALING, INC.",MATERIALS - NON-INVENTORY,"$10,565.50 ",6/22/2015
"ALSTOM SIGNALING, INC.",OUTSIDE SERVICES - CAPITAL,"$202,895.85 ",6/25/2015
"ALSTOM SIGNALING, INC.",MATERIALS - INVENTORY,"$5,483.53 ",7/2/2015
"ALSTOM SIGNALING, INC.",CONSTRUCTION,"$176,926.60 ",7/9/2015
"ALSTOM SIGNALING, INC.",CONSTRUCTION,"$176,926.59 ",7/9/2015
"ALSTOM SIGNALING, INC.",MATERIALS - INVENTORY,"$7,769.52 ",7/13/2015
"ALSTOM SIGNALING, INC.",CONSTRUCTION,"$23,750 ",7/23/2015
"ALSTOM SIGNALING, INC.",CONSTRUCTION,"$318,108.52 ",7/27/2015
"ALSTOM SIGNALING, INC.",CONSTRUCTION,"$318,108.51 ",7/27/2015
"ALSTOM SIGNALING, INC.",MATERIALS - INVENTORY,"$3,825.36 ",8/10/2015
"ALSTOM SIGNALING, INC.",OUTSIDE SERVICES - CAPITAL,"$90,000 ",8/12/2015
"ALSTOM SIGNALING, INC.",CONSTRUCTION,"$124,955 ",8/24/2015
"ALSTOM SIGNALING, INC.",CONSTRUCTION,"$139,205 ",8/24/2015
"ALSTOM SIGNALING, INC.",MATERIALS - INVENTORY,"$27,862.26 ",9/28/2015
"ALSTOM SIGNALING, INC.",MATERIALS - NON-INVENTORY,"$3,889.88 ",9/28/2015
"ALSTOM SIGNALING, INC.",MATERIALS & ASSETS - CAPITAL,"$299,250 ",9/29/2015
"ALSTOM SIGNALING, INC.",OUTSIDE SERVICES - CAPITAL,"$371,416.27 ",10/5/2015
"ALSTOM SIGNALING, INC.",MATERIALS - INVENTORY,"$5,528.88 ",10/8/2015
"ALSTOM SIGNALING, INC.",MATERIALS - NON-INVENTORY,"$3,514 ",10/8/2015
"ALSTOM SIGNALING, INC.",MATERIALS - INVENTORY,"$73,241.05 ",11/2/2015
"ALSTOM SIGNALING, INC.",OUTSIDE SERVICES,"$6,250 ",11/2/2015
"ALSTOM SIGNALING, INC.",MATERIALS - INVENTORY,"$12,647.41 ",11/9/2015
"ALSTOM SIGNALING, INC.",CONSTRUCTION,"$176,070.43 ",11/10/2015
"ALSTOM SIGNALING, INC.",CONSTRUCTION,"$191,897.42 ",11/10/2015
"ALSTOM SIGNALING, INC.",MATERIALS - INVENTORY,"$1,718.94 ",11/16/2015
"ALSTOM SIGNALING, INC.",MATERIALS - NON-INVENTORY,"$3,889.88 ",11/16/2015
"ALSTOM SIGNALING, INC.",OUTSIDE SERVICES - CAPITAL,"$34,478.20 ",12/3/2015
"ALSTOM SIGNALING, INC.",CONSTRUCTION,"$64,918.34 ",12/7/2015
"ALSTOM SIGNALING, INC.",CONSTRUCTION,"$64,918.34 ",12/7/2015
"ALSTOM SIGNALING, INC.",MATERIALS & ASSETS - CAPITAL,"$415,188.52 ",12/17/2015
"ALSTOM TRANSPORTATION, INC.",MATERIALS - INVENTORY,"$81,640 ",1/29/2015
"ALSTOM TRANSPORTATION, INC.",MATERIALS - INVENTORY,"$255,920 ",2/4/2015
"ALSTOM TRANSPORTATION, INC.",MATERIALS - INVENTORY,"$87,140 ",2/9/2015
"ALSTOM TRANSPORTATION, INC.",MATERIALS - INVENTORY,"$87,140 ",5/11/2015
"ALSTOM TRANSPORTATION, INC.",MATERIALS - INVENTORY,"$46,320 ",5/28/2015
"ALSTOM TRANSPORTATION, INC.",MATERIALS - INVENTORY,"$40,820 ",6/15/2015
"ALSTOM TRANSPORTATION, INC.",MATERIALS - INVENTORY,"$250,420 ",7/2/2015
"ALSTOM TRANSPORTATION, INC.",MATERIALS - INVENTORY,"$40,820 ",7/7/2015
"ALSTOM TRANSPORTATION, INC.",MATERIALS - INVENTORY,"$46,320 ",7/14/2015
"ALSTOM TRANSPORTATION, INC.",MATERIALS - INVENTORY,"$40,820 ",8/24/2015
"ALSTOM TRANSPORTATION, INC.",MATERIALS - INVENTORY,"$40,820 ",9/28/2015
"ALSTOM TRANSPORTATION, INC.",MATERIALS - INVENTORY,"$81,640 ",11/2/2015
"ALSTOM TRANSPORTATION, INC.",MATERIALS - INVENTORY,"$46,320 ",11/10/2015
"ALSTOM TRANSPORTATION, INC.",MATERIALS - INVENTORY,"$40,820 ",11/11/2015
"ALTERNATE POWER, INC.",OUTSIDE SERVICES,"$1,613.45 ",1/22/2015
"ALTERNATE POWER, INC.",OUTSIDE SERVICES,$813.83 ,1/26/2015
"ALTERNATE POWER, INC.",OUTSIDE SERVICES,$506.40 ,3/26/2015
"ALTERNATE POWER, INC.",OUTSIDE SERVICES,$619.81 ,5/26/2015
"ALTERNATE POWER, INC.",OUTSIDE SERVICES,"$1,432.69 ",6/25/2015
"ALTERNATE POWER, INC.",OUTSIDE SERVICES,"$1,076.77 ",7/1/2015
"ALTERNATE POWER, INC.",OUTSIDE SERVICES,$646 ,7/21/2015
"ALTERNATE POWER, INC.",MATERIALS - NON-INVENTORY,"$2,454.12 ",9/14/2015
"ALTERNATE POWER, INC.",OUTSIDE SERVICES,"$1,792.29 ",9/14/2015
"ALTERNATE POWER, INC.",MATERIALS - NON-INVENTORY,"$1,495 ",9/28/2015
"ALVAREZ, INC.",OUTSIDE SERVICES,"$5,186 ",10/26/2015
"ALVAREZ, INC.",OUTSIDE SERVICES,"$4,770 ",12/15/2015
"AMALGAMATED SERVICES, INC.",OUTSIDE SERVICES,"$1,827.95 ",1/26/2015
"AMALGAMATED SERVICES, INC.",OUTSIDE SERVICES,"$1,353.07 ",2/4/2015
"AMALGAMATED SERVICES, INC.",OUTSIDE SERVICES,"$2,365.30 ",2/9/2015
"AMALGAMATED SERVICES, INC.",OUTSIDE SERVICES,"$3,923.88 ",3/2/2015
"AMALGAMATED SERVICES, INC.",OUTSIDE SERVICES,$794.88 ,3/10/2015
"AMALGAMATED SERVICES, INC.",OUTSIDE SERVICES,"$7,050.10 ",5/13/2015
"AMALGAMATED SERVICES, INC.",OUTSIDE SERVICES,"$6,012.36 ",5/20/2015
"AMALGAMATED SERVICES, INC.",OUTSIDE SERVICES,"$5,371.06 ",5/26/2015
"AMALGAMATED SERVICES, INC.",OUTSIDE SERVICES,"$1,589.76 ",5/27/2015
"AMALGAMATED SERVICES, INC.",OUTSIDE SERVICES,$869.62 ,6/30/2015
"AMALGAMATED SERVICES, INC.",OUTSIDE SERVICES,"$2,548.13 ",7/20/2015
"AMALGAMATED SERVICES, INC.",OUTSIDE SERVICES,"$2,954.78 ",7/23/2015
"AMALGAMATED SERVICES, INC.",OUTSIDE SERVICES,"$1,608 ",7/27/2015
"AMALGAMATED SERVICES, INC.",OUTSIDE SERVICES,"$5,131.25 ",8/17/2015
"AMALGAMATED SERVICES, INC.",OUTSIDE SERVICES,"$1,072 ",8/19/2015
"AMALGAMATED SERVICES, INC.",OUTSIDE SERVICES,"$7,159.90 ",8/24/2015
"AMALGAMATED SERVICES, INC.",OUTSIDE SERVICES,"$1,857.76 ",8/26/2015
"AMALGAMATED SERVICES, INC.",OUTSIDE SERVICES,"$5,226.36 ",9/14/2015
"AMALGAMATED SERVICES, INC.",OUTSIDE SERVICES,"$7,351.88 ",9/16/2015
"AMALGAMATED SERVICES, INC.",OUTSIDE SERVICES,"$2,551.71 ",9/28/2015
"AMALGAMATED SERVICES, INC.",OUTSIDE SERVICES,"$3,755.38 ",10/1/2015
"AMALGAMATED SERVICES, INC.",OUTSIDE SERVICES,"$1,340 ",10/5/2015
"AMALGAMATED SERVICES, INC.",OUTSIDE SERVICES,"$12,715.74 ",10/22/2015
"AMALGAMATED SERVICES, INC.",OUTSIDE SERVICES,"$2,144 ",10/29/2015
"AMALGAMATED SERVICES, INC.",OUTSIDE SERVICES,"$3,318 ",11/16/2015
"AMALGAMATED SERVICES, INC.",OUTSIDE SERVICES,"$14,589.16 ",11/23/2015
"AMALGAMATED SERVICES, INC.",OUTSIDE SERVICES,$794.88 ,12/21/2015
"AMALGAMATED SERVICES, INC.",OUTSIDE SERVICES,"$11,741.39 ",12/22/2015
"AMBER MECHANICAL CONTRACTORS, INC.",CONSTRUCTION,"$3,000 ",6/23/2015
AMERICAN ASSN.OF RAILROAD SUPERINT.,MISCELLANEOUS OTHER EXPENSE,$75 ,4/6/2015
AMERICAN ASSN.OF RAILROAD SUPERINT.,PROFESSIONAL SERVICES,"$1,980 ",10/29/2015
AMERICAN ASSOCIATION FOR ACCESS,PROFESSIONAL SERVICES,"$1,080 ",8/5/2015
"AMERICAN ASSOCIATION FOR ACCESS,",PROFESSIONAL SERVICES,$475 ,12/28/2015
AMERICAN BATTERY CHARGING INC.,MATERIALS - INVENTORY,"$3,950 ",4/6/2015
"AMERICAN CALIBRATION, INC.",OUTSIDE SERVICES,$396 ,2/5/2015
"AMERICAN CALIBRATION, INC.",OUTSIDE SERVICES,"$2,252.75 ",3/26/2015
"AMERICAN CALIBRATION, INC.",OUTSIDE SERVICES,$66 ,3/31/2015
"AMERICAN CALIBRATION, INC.",OUTSIDE SERVICES,"$1,800 ",4/14/2015
"AMERICAN CALIBRATION, INC.",OUTSIDE SERVICES,$66 ,5/4/2015
"AMERICAN CALIBRATION, INC.",OUTSIDE SERVICES,$132 ,5/5/2015
"AMERICAN CALIBRATION, INC.",OUTSIDE SERVICES,$99 ,5/5/2015
"AMERICAN CALIBRATION, INC.",OUTSIDE SERVICES,$99 ,5/5/2015
"AMERICAN CALIBRATION, INC.",OUTSIDE SERVICES,$99 ,5/5/2015
"AMERICAN CALIBRATION, INC.",OUTSIDE SERVICES,$706.75 ,5/26/2015
"AMERICAN CALIBRATION, INC.",OUTSIDE SERVICES,$750 ,5/26/2015
"AMERICAN CALIBRATION, INC.",OUTSIDE SERVICES,"$1,216.25 ",5/26/2015
"AMERICAN CALIBRATION, INC.",OUTSIDE SERVICES,"$1,765.75 ",5/26/2015
"AMERICAN CALIBRATION, INC.",OUTSIDE SERVICES,$511 ,6/22/2015
"AMERICAN CALIBRATION, INC.",OUTSIDE SERVICES,$992.50 ,6/30/2015
"AMERICAN CALIBRATION, INC.",OUTSIDE SERVICES,$933.75 ,7/20/2015
"AMERICAN CALIBRATION, INC.",MATERIALS - NON-INVENTORY,"$1,429.95 ",7/21/2015
"AMERICAN CALIBRATION, INC.",OUTSIDE SERVICES,$297 ,7/21/2015
"AMERICAN CALIBRATION, INC.",MATERIALS - NON-INVENTORY,$330 ,7/23/2015
"AMERICAN CALIBRATION, INC.",OUTSIDE SERVICES,$264 ,7/23/2015
"AMERICAN CALIBRATION, INC.",OUTSIDE SERVICES,$174.40 ,7/23/2015
"AMERICAN CALIBRATION, INC.",OUTSIDE SERVICES,$746.15 ,7/23/2015
"AMERICAN CALIBRATION, INC.",OUTSIDE SERVICES,"$1,111.75 ",7/23/2015
"AMERICAN CALIBRATION, INC.",OUTSIDE SERVICES,$396 ,7/23/2015
"AMERICAN CALIBRATION, INC.",OUTSIDE SERVICES,$109 ,7/27/2015
"AMERICAN CALIBRATION, INC.",OUTSIDE SERVICES,$222.70 ,8/27/2015
"AMERICAN CALIBRATION, INC.",OUTSIDE SERVICES,$584.95 ,8/27/2015
"AMERICAN CALIBRATION, INC.",OUTSIDE SERVICES,"$2,863.50 ",8/27/2015
"AMERICAN CALIBRATION, INC.",OUTSIDE SERVICES,$176 ,8/27/2015
"AMERICAN CALIBRATION, INC.",MATERIALS - NON-INVENTORY,$66 ,8/31/2015
"AMERICAN CALIBRATION, INC.",OUTSIDE SERVICES,$153.47 ,10/1/2015
"AMERICAN CALIBRATION, INC.",OUTSIDE SERVICES,"$1,309.75 ",10/1/2015
"AMERICAN CALIBRATION, INC.",MATERIALS - NON-INVENTORY,"$3,090.04 ",10/5/2015
"AMERICAN CALIBRATION, INC.",OUTSIDE SERVICES,$121 ,10/5/2015
"AMERICAN CALIBRATION, INC.",OUTSIDE SERVICES,$546.42 ,10/5/2015
"AMERICAN CALIBRATION, INC.",OUTSIDE SERVICES,$305.20 ,10/5/2015
"AMERICAN CALIBRATION, INC.",OUTSIDE SERVICES,$130.80 ,10/5/2015
"AMERICAN CALIBRATION, INC.",OUTSIDE SERVICES,"$2,789.75 ",10/5/2015
"AMERICAN CALIBRATION, INC.",OUTSIDE SERVICES,$164.40 ,10/5/2015
"AMERICAN CALIBRATION, INC.",OUTSIDE SERVICES,$367.43 ,10/26/2015
"AMERICAN CALIBRATION, INC.",OUTSIDE SERVICES,$50.63 ,10/26/2015
"AMERICAN CALIBRATION, INC.",OUTSIDE SERVICES,$239.80 ,10/26/2015
"AMERICAN CALIBRATION, INC.",OUTSIDE SERVICES,$109.50 ,10/26/2015
"AMERICAN CALIBRATION, INC.",OUTSIDE SERVICES,$75 ,11/2/2015
"AMERICAN CALIBRATION, INC.",OUTSIDE SERVICES,$822 ,11/2/2015
"AMERICAN CALIBRATION, INC.",OUTSIDE SERVICES,$231 ,11/2/2015
"AMERICAN CALIBRATION, INC.",OUTSIDE SERVICES,"$1,017.98 ",11/2/2015
"AMERICAN CALIBRATION, INC.",OUTSIDE SERVICES,$264 ,11/2/2015
"AMERICAN CALIBRATION, INC.",OUTSIDE SERVICES,$32.70 ,11/11/2015
"AMERICAN CALIBRATION, INC.",OUTSIDE SERVICES,$466.80 ,11/11/2015
"AMERICAN CALIBRATION, INC.",MATERIALS - NON-INVENTORY,$66 ,11/16/2015
"AMERICAN CALIBRATION, INC.",OUTSIDE SERVICES,$264 ,11/16/2015
"AMERICAN CALIBRATION, INC.",OUTSIDE SERVICES,$493.56 ,11/16/2015
"AMERICAN CALIBRATION, INC.",OUTSIDE SERVICES,$156.30 ,12/3/2015
AMERICAN CONCRETE PRODUCTS CO.,MATERIALS - CAPITAL,"$5,856 ",4/27/2015
AMERICAN CONCRETE PRODUCTS CO.,MATERIALS - INVENTORY,$354 ,7/7/2015
AMERICAN CONCRETE PRODUCTS CO.,MATERIALS - CAPITAL,"$16,500 ",10/13/2015
AMERICAN INDUSTRIAL HYGIENE ASSOC.,PROFESSIONAL SERVICES,$236 ,1/5/2015
AMERICAN PETROLEUM INSTITUTE,PROFESSIONAL SERVICES,$300 ,8/5/2015
AMERICAN PLANNING ASSOCIATION-IL CH,PROFESSIONAL SERVICES,$75 ,5/4/2015
AMERICAN PUBLIC TRANSIT ASSOC.,PROFESSIONAL SERVICES,"$2,400 ",1/21/2015
AMERICAN PUBLIC TRANSIT ASSOC.,PROFESSIONAL SERVICES,$850 ,2/5/2015
AMERICAN PUBLIC TRANSIT ASSOC.,PROFESSIONAL SERVICES,$625 ,2/12/2015
AMERICAN PUBLIC TRANSIT ASSOC.,PROFESSIONAL SERVICES,"$15,000 ",2/26/2015
AMERICAN PUBLIC TRANSIT ASSOC.,PROFESSIONAL SERVICES,$575 ,3/27/2015
AMERICAN PUBLIC TRANSIT ASSOC.,PROFESSIONAL SERVICES,$775 ,5/4/2015
AMERICAN PUBLIC TRANSIT ASSOC.,PROFESSIONAL SERVICES,$775 ,5/5/2015
AMERICAN PUBLIC TRANSIT ASSOC.,PROFESSIONAL SERVICES,"$1,350 ",5/6/2015
AMERICAN PUBLIC TRANSIT ASSOC.,PROFESSIONAL SERVICES,$745 ,5/14/2015
AMERICAN PUBLIC TRANSIT ASSOC.,PROFESSIONAL SERVICES,$825 ,6/18/2015
AMERICAN PUBLIC TRANSIT ASSOC.,PROFESSIONAL SERVICES,"$15,000 ",6/25/2015
AMERICAN PUBLIC TRANSIT ASSOC.,PROFESSIONAL SERVICES,$850 ,7/27/2015
AMERICAN PUBLIC TRANSIT ASSOC.,PROFESSIONAL SERVICES,"$1,700 ",7/29/2015
AMERICAN PUBLIC TRANSIT ASSOC.,PROFESSIONAL SERVICES,"$1,700 ",8/3/2015
AMERICAN PUBLIC TRANSIT ASSOC.,PROFESSIONAL SERVICES,$850 ,8/11/2015
AMERICAN PUBLIC TRANSIT ASSOC.,PROFESSIONAL SERVICES,"$1,700 ",8/20/2015
AMERICAN PUBLIC TRANSIT ASSOC.,PROFESSIONAL SERVICES,"$15,000 ",10/22/2015
AMERICAN PUBLIC TRANSIT ASSOC.,MISCELLANEOUS OTHER EXPENSE,"$1,375 ",11/11/2015
AMERICAN RED CROSS,PROFESSIONAL SERVICES,"$1,435 ",1/20/2015
AMERICAN RED CROSS,PROFESSIONAL SERVICES,$200 ,5/5/2015
AMERICAN RED CROSS,PROFESSIONAL SERVICES,$910 ,5/26/2015
AMERICAN SOCIETY OF MECHANICAL ENG.,MISCELLANEOUS OTHER EXPENSE,$149 ,7/27/2015
AMERICAN SOLUTIONS FOR BUSINESS,OUTSIDE SERVICES,"$5,561.40 ",2/4/2015
AMERICAN SOLUTIONS FOR BUSINESS,OUTSIDE SERVICES,"$42,691.76 ",3/24/2015
AMERICAN SOLUTIONS FOR BUSINESS,MATERIALS - NON-INVENTORY,"$7,919.25 ",3/31/2015
AMERICAN SOLUTIONS FOR BUSINESS,OUTSIDE SERVICES,"$42,804.27 ",3/31/2015
AMERICAN SOLUTIONS FOR BUSINESS,OUTSIDE SERVICES,"$71,693.13 ",5/13/2015
AMERICAN SOLUTIONS FOR BUSINESS,OUTSIDE SERVICES,"$22,529 ",5/26/2015
AMERICAN SOLUTIONS FOR BUSINESS,OUTSIDE SERVICES,"$4,392.15 ",6/9/2015
AMERICAN SOLUTIONS FOR BUSINESS,OUTSIDE SERVICES,$693.20 ,6/22/2015
AMERICAN SOLUTIONS FOR BUSINESS,OUTSIDE SERVICES,"$12,359.65 ",6/29/2015
AMERICAN SOLUTIONS FOR BUSINESS,OUTSIDE SERVICES,$690.71 ,7/6/2015
AMERICAN SOLUTIONS FOR BUSINESS,OUTSIDE SERVICES,"$7,919.25 ",7/9/2015
AMERICAN SOLUTIONS FOR BUSINESS,OUTSIDE SERVICES,"$29,753.91 ",7/9/2015
AMERICAN SOLUTIONS FOR BUSINESS,OUTSIDE SERVICES,"$28,035.76 ",7/27/2015
AMERICAN SOLUTIONS FOR BUSINESS,OUTSIDE SERVICES,"$42,881 ",8/26/2015
AMERICAN SOLUTIONS FOR BUSINESS,OUTSIDE SERVICES,"$12,131 ",9/3/2015
AMERICAN SOLUTIONS FOR BUSINESS,OUTSIDE SERVICES,"$31,057.50 ",9/28/2015
AMERICAN SOLUTIONS FOR BUSINESS,OUTSIDE SERVICES,"$10,398 ",11/17/2015
AMERICAN SOLUTIONS FOR BUSINESS,OUTSIDE SERVICES,"$12,131 ",11/24/2015
AMERICAN SOLUTIONS FOR BUSINESS,OUTSIDE SERVICES,"$4,828.80 ",12/3/2015
AMERICAN WELDING & GAS,MATERIALS - NON-INVENTORY,"$1,524 ",1/22/2015
AMERICAN WELDING & GAS,MATERIALS - NON-INVENTORY,$206.25 ,7/23/2015
AMERICAN WELDING & GAS,MATERIALS & ASSETS - CAPITAL,"$8,673 ",8/31/2015
AMERIGAS,MATERIALS - NON-INVENTORY,$198.86 ,1/5/2015
AMERIGAS,MATERIALS - NON-INVENTORY,"$2,574 ",1/20/2015
AMERIGAS,MATERIALS - NON-INVENTORY,$224.53 ,1/22/2015
AMERIGAS,MATERIALS - NON-INVENTORY,"$1,219.95 ",1/26/2015
AMERIGAS,MATERIALS - NON-INVENTORY,$204.93 ,2/4/2015
AMERIGAS,MATERIALS - NON-INVENTORY,$347.33 ,2/4/2015
AMERIGAS,MATERIALS - NON-INVENTORY,$606.65 ,2/5/2015
AMERIGAS,MATERIALS - NON-INVENTORY,"$5,002.95 ",2/17/2015
AMERIGAS,MATERIALS - NON-INVENTORY,"$1,288.06 ",3/5/2015
AMERIGAS,MATERIALS - NON-INVENTORY,$196.03 ,3/17/2015
AMERIGAS,MATERIALS - NON-INVENTORY,"$4,108.13 ",3/18/2015
AMERIGAS,MATERIALS - NON-INVENTORY,$116.91 ,3/26/2015
AMERIGAS,MATERIALS - NON-INVENTORY,"$1,008.01 ",4/20/2015
AMERIGAS,MATERIALS - NON-INVENTORY,$446.75 ,4/21/2015
AMERIGAS,MATERIALS - NON-INVENTORY,"$1,353.04 ",4/23/2015
AMERIGAS,MATERIALS - NON-INVENTORY,"$2,729.99 ",4/28/2015
AMERIGAS,MATERIALS - NON-INVENTORY,"$2,130.26 ",5/5/2015
AMERIGAS,MATERIALS - NON-INVENTORY,$105.90 ,5/11/2015
AMERIGAS,MATERIALS - NON-INVENTORY,$49.95 ,5/11/2015
AMERIGAS,MATERIALS - NON-INVENTORY,$408.93 ,5/26/2015
AMERIGAS,MATERIALS - NON-INVENTORY,$418.30 ,7/21/2015
AMERIGAS,MATERIALS - NON-INVENTORY,$319.63 ,8/20/2015
AMERIGAS,MATERIALS - NON-INVENTORY,$636.49 ,8/26/2015
AMERIGAS,MATERIALS - NON-INVENTORY,"$1,244.78 ",8/27/2015
AMERIGAS,MATERIALS - NON-INVENTORY,$369.02 ,9/14/2015
AMERIGAS,MATERIALS - NON-INVENTORY,$169.85 ,10/26/2015
AMERIGAS,MATERIALS - NON-INVENTORY,$201.39 ,11/11/2015
AMERIGAS,MATERIALS - NON-INVENTORY,$174.53 ,11/11/2015
AMERIGAS,MATERIALS - NON-INVENTORY,$133.86 ,12/15/2015
AMERIGAS,OUTSIDE SERVICES,$257 ,12/15/2015
ANALYTIC SYSTEMS,MATERIALS - INVENTORY,"$2,086 ",1/22/2015
ANALYTIC SYSTEMS,MATERIALS - INVENTORY,"$4,172 ",1/26/2015
ANALYTIC SYSTEMS,MATERIALS - INVENTORY,"$4,172 ",5/13/2015
ANALYTIC SYSTEMS,OUTSIDE SERVICES,$400 ,5/27/2015
ANALYTIC SYSTEMS,MATERIALS - INVENTORY,"$2,086 ",8/10/2015
ANALYTIC SYSTEMS,MATERIALS - NON-INVENTORY,"$2,747.34 ",8/27/2015
ANALYTIC SYSTEMS,OUTSIDE SERVICES,"$1,252.44 ",8/27/2015
ANALYTIC SYSTEMS,MATERIALS & ASSETS - CAPITAL,"$61,110 ",9/14/2015
ANALYTIC SYSTEMS,MATERIALS - NON-INVENTORY,$192.12 ,9/28/2015
ANALYTIC SYSTEMS,OUTSIDE SERVICES,"$1,571.42 ",9/28/2015
ANALYTIC SYSTEMS,OUTSIDE SERVICES,"$1,658.40 ",9/28/2015
ANALYTIC SYSTEMS,OUTSIDE SERVICES,"$3,425.30 ",9/29/2015
ANALYTIC SYSTEMS,OUTSIDE SERVICES,$814.10 ,10/29/2015
ANALYTIC SYSTEMS,OUTSIDE SERVICES,"$3,400 ",11/16/2015
ANALYTIC SYSTEMS,OUTSIDE SERVICES,"$1,375.10 ",12/3/2015
"ANALYTIC SYSTEMS WARE (1993), LTD.",OUTSIDE SERVICES,"$8,409 ",3/9/2015
"ANALYTIC SYSTEMS WARE (1993), LTD.",MATERIALS - INVENTORY,"$2,086 ",3/16/2015
"ANALYTIC SYSTEMS WARE (1993), LTD.",MATERIALS - INVENTORY,"$2,086 ",6/11/2015
"ANALYTIC SYSTEMS WARE (1993), LTD.",OUTSIDE SERVICES,"$11,437.30 ",7/20/2015
ANCHOR BRAKE SHOE CO.,MATERIALS - INVENTORY,"$19,774.26 ",1/15/2015
ANCHOR BRAKE SHOE CO.,MATERIALS - INVENTORY,"$30,583.44 ",1/20/2015
ANCHOR BRAKE SHOE CO.,MATERIALS - INVENTORY,"$2,785.86 ",1/22/2015
ANCHOR BRAKE SHOE CO.,MATERIALS - INVENTORY,"$11,280.06 ",2/18/2015
ANCHOR BRAKE SHOE CO.,MATERIALS - INVENTORY,"$3,805.56 ",2/26/2015
ANCHOR BRAKE SHOE CO.,MATERIALS - INVENTORY,"$11,143.44 ",3/4/2015
ANCHOR BRAKE SHOE CO.,MATERIALS - INVENTORY,"$3,805.56 ",3/18/2015
ANCHOR BRAKE SHOE CO.,MATERIALS - INVENTORY,"$8,357.58 ",3/19/2015
ANCHOR BRAKE SHOE CO.,MATERIALS - INVENTORY,"$16,105.32 ",3/24/2015
ANCHOR BRAKE SHOE CO.,MATERIALS - INVENTORY,"$55,595.16 ",3/30/2015
ANCHOR BRAKE SHOE CO.,MATERIALS - INVENTORY,"$15,222.24 ",4/27/2015
ANCHOR BRAKE SHOE CO.,MATERIALS - INVENTORY,"$2,785.86 ",5/13/2015
ANCHOR BRAKE SHOE CO.,MATERIALS - INVENTORY,"$31,937.40 ",5/19/2015
ANCHOR BRAKE SHOE CO.,MATERIALS - INVENTORY,"$9,513.90 ",5/20/2015
ANCHOR BRAKE SHOE CO.,MATERIALS - INVENTORY,"$19,027.80 ",5/26/2015
ANCHOR BRAKE SHOE CO.,MATERIALS - INVENTORY,"$67,619.34 ",7/6/2015
ANCHOR BRAKE SHOE CO.,MATERIALS - INVENTORY,"$6,591.42 ",7/7/2015
ANCHOR BRAKE SHOE CO.,MATERIALS - INVENTORY,"$23,716.44 ",8/5/2015
ANCHOR BRAKE SHOE CO.,MATERIALS - INVENTORY,"$16,851.78 ",8/11/2015
ANCHOR BRAKE SHOE CO.,MATERIALS - INVENTORY,"$24,300 ",8/24/2015
ANCHOR BRAKE SHOE CO.,MATERIALS - INVENTORY,"$28,268.46 ",9/14/2015
ANCHOR BRAKE SHOE CO.,MATERIALS - INVENTORY,"$15,222.24 ",9/21/2015
ANCHOR BRAKE SHOE CO.,MATERIALS - INVENTORY,"$39,685.14 ",11/16/2015
ANCHOR BRAKE SHOE CO.,MATERIALS - INVENTORY,"$22,833.36 ",11/17/2015
ANCHOR BRAKE SHOE CO.,MATERIALS - INVENTORY,"$3,805.56 ",11/23/2015
ANCHOR BRAKE SHOE CO.,MATERIALS - INVENTORY,"$11,143.44 ",11/24/2015
ANDERSON LOCK CO.,MATERIALS - INVENTORY,"$2,069 ",3/17/2015
ANDERSON LOCK CO.,MATERIALS - INVENTORY,$598.32 ,3/24/2015
ANDERSON LOCK CO.,MATERIALS - INVENTORY,"$1,089.50 ",3/26/2015
ANDERSON LOCK CO.,MATERIALS - NON-INVENTORY,$887.40 ,5/12/2015
ANDERSON LOCK CO.,MATERIALS - INVENTORY,$552 ,5/20/2015
ANDERSON LOCK CO.,MATERIALS - INVENTORY,$398.88 ,7/6/2015
ANDERSON LOCK CO.,MATERIALS - NON-INVENTORY,"$5,302 ",8/10/2015
ANDERSON LOCK CO.,MATERIALS - NON-INVENTORY,$210.80 ,9/14/2015
ANDERSON LOCK CO.,MATERIALS - NON-INVENTORY,$43.70 ,9/14/2015
"ANIXTER, INC.",MATERIALS - NON-INVENTORY,"$5,239.93 ",1/12/2015
"ANIXTER, INC.",MATERIALS - NON-INVENTORY,"$3,051 ",2/26/2015
"ANIXTER, INC.",MATERIALS - NON-INVENTORY,"$4,048.42 ",4/6/2015
"ANIXTER, INC.",MATERIALS & ASSETS - CAPITAL,"$3,540 ",4/13/2015
"ANIXTER, INC.",MATERIALS - NON-INVENTORY,$295 ,4/27/2015
"ANIXTER, INC.",MATERIALS - NON-INVENTORY,"$4,547.01 ",4/27/2015
"ANIXTER, INC.",MATERIALS - NON-INVENTORY,"$1,979 ",5/26/2015
"ANIXTER, INC.",MATERIALS & ASSETS - CAPITAL,"$14,807.15 ",6/2/2015
"ANIXTER, INC.",MATERIALS - NON-INVENTORY,$588.12 ,6/30/2015
"ANIXTER, INC.",MATERIALS - NON-INVENTORY,$147.03 ,7/2/2015
"ANIXTER, INC.",MATERIALS - NON-INVENTORY,"$8,371.53 ",7/6/2015
"ANIXTER, INC.",MATERIALS & ASSETS - CAPITAL,"$1,300 ",7/7/2015
"ANIXTER, INC.",MATERIALS - CAPITAL,"$5,377.74 ",7/27/2015
"ANIXTER, INC.",MATERIALS - NON-INVENTORY,"$3,277.34 ",7/27/2015
"ANIXTER, INC.",MATERIALS & ASSETS - CAPITAL,$25.75 ,8/3/2015
"ANIXTER, INC.",MATERIALS - CAPITAL,"$13,817.88 ",8/12/2015
"ANIXTER, INC.",MATERIALS - NON-INVENTORY,"$3,155.87 ",8/12/2015
"ANIXTER, INC.",MATERIALS - NON-INVENTORY,"$6,940.42 ",8/19/2015
"ANIXTER, INC.",MATERIALS - CAPITAL,"$4,791.36 ",9/28/2015
"ANIXTER, INC.",MATERIALS - CAPITAL,"$5,377.74 ",12/3/2015
"ANIXTER, INC.",OUTSIDE SERVICES - CAPITAL,"$1,806.46 ",12/3/2015
"ANIXTER, INC.",MATERIALS - NON-INVENTORY,"$11,622.33 ",12/3/2015
"ANIXTER, INC.",MATERIALS & ASSETS - CAPITAL,"$21,515.65 ",12/17/2015
"ANSALDO STS USA, INC.",OUTSIDE SERVICES - CAPITAL,"$3,339.60 ",1/26/2015
"ANSALDO STS USA, INC.",OUTSIDE SERVICES,$718 ,5/26/2015
"ANSALDO STS USA, INC.",OUTSIDE SERVICES,"$2,274 ",7/1/2015
"AON RISK SERVICES, INC. OF MARYLAND",PROFESSIONAL SERVICES,"$72,000 ",4/16/2015
APA-CMS,PROFESSIONAL SERVICES,$70 ,4/2/2015
APOGEE INDUSTRIES,MATERIALS & ASSETS - CAPITAL,"$58,420 ",2/5/2015
"APPERSON, INC",MATERIALS - NON-INVENTORY,"$3,288.99 ",5/5/2015
"APPERSON, INC",MISCELLANEOUS OTHER EXPENSE,$41.24 ,5/5/2015
"APPERSON, INC",MATERIALS - NON-INVENTORY,$99.98 ,5/11/2015
"APPERSON, INC",MISCELLANEOUS OTHER EXPENSE,$15.02 ,5/11/2015
APPLICATIONS SOFTWARE TECH. CORP.,MATERIALS & ASSETS - CAPITAL,"$253,920 ",1/20/2015
APPLICATIONS SOFTWARE TECH. CORP.,OUTSIDE SERVICES,"$215,112.51 ",1/26/2015
APPLICATIONS SOFTWARE TECH. CORP.,OUTSIDE SERVICES,"$191,666.67 ",2/4/2015
APPLICATIONS SOFTWARE TECH. CORP.,OUTSIDE SERVICES,"$47,800 ",2/19/2015
APPLICATIONS SOFTWARE TECH. CORP.,OUTSIDE SERVICES,"$430,225.02 ",3/2/2015
APPLICATIONS SOFTWARE TECH. CORP.,OUTSIDE SERVICES,"$215,112.51 ",4/27/2015
APPLICATIONS SOFTWARE TECH. CORP.,OUTSIDE SERVICES,"$215,112.51 ",4/28/2015
APPLICATIONS SOFTWARE TECH. CORP.,OUTSIDE SERVICES,"$9,560 ",6/24/2015
APPLICATIONS SOFTWARE TECH. CORP.,OUTSIDE SERVICES,"$14,340 ",6/25/2015
APPLICATIONS SOFTWARE TECH. CORP.,OUTSIDE SERVICES,"$23,445.83 ",6/30/2015
APPLICATIONS SOFTWARE TECH. CORP.,OUTSIDE SERVICES,"$406,779.17 ",7/20/2015
APPLICATIONS SOFTWARE TECH. CORP.,MATERIALS & ASSETS - CAPITAL,"$99,400 ",8/3/2015
APPLICATIONS SOFTWARE TECH. CORP.,OUTSIDE SERVICES,"$31,500 ",8/3/2015
APPLICATIONS SOFTWARE TECH. CORP.,OUTSIDE SERVICES,"$18,900 ",8/19/2015
APPLICATIONS SOFTWARE TECH. CORP.,OUTSIDE SERVICES,"$457,625 ",8/26/2015
APPLICATIONS SOFTWARE TECH. CORP.,MATERIALS & ASSETS - CAPITAL,"$35,000 ",10/5/2015
APPLICATIONS SOFTWARE TECH. CORP.,MATERIALS & ASSETS - CAPITAL,"$30,000 ",10/19/2015
APPLICATIONS SOFTWARE TECH. CORP.,OUTSIDE SERVICES,"$215,112.49 ",10/22/2015
APPLICATIONS SOFTWARE TECH. CORP.,OUTSIDE SERVICES,"$215,112.49 ",10/29/2015
APPLICATIONS SOFTWARE TECH. CORP.,MATERIALS & ASSETS - CAPITAL,"$35,000 ",11/10/2015
APPLICATIONS SOFTWARE TECH. CORP.,OUTSIDE SERVICES,"$191,666.66 ",11/23/2015
"APPLIED GEOSCIENCE, INC.",OUTSIDE SERVICES,"$1,004 ",1/8/2015
"APPLIED GEOSCIENCE, INC.",MATERIALS - NON-INVENTORY,"$1,362.72 ",3/17/2015
"APPLIED GEOSCIENCE, INC.",OUTSIDE SERVICES,"$7,460.24 ",4/14/2015
"APPLIED GEOSCIENCE, INC.",OUTSIDE SERVICES,"$34,775.04 ",6/11/2015
"APPLIED GEOSCIENCE, INC.",OUTSIDE SERVICES,"$23,075.12 ",6/15/2015
"APPLIED GEOSCIENCE, INC.",OUTSIDE SERVICES,"$4,003.25 ",7/1/2015
"APPLIED GEOSCIENCE, INC.",OUTSIDE SERVICES,"$13,175 ",8/27/2015
APPLIED INDUSTRIAL TECHNOLOGIES,MATERIALS - INVENTORY,$362.40 ,4/14/2015
APPLIED INDUSTRIAL TECHNOLOGIES,MISCELLANEOUS OTHER EXPENSE,$44.84 ,4/14/2015
APPLIED INDUSTRIAL TECHNOLOGIES,MATERIALS - INVENTORY,$362.40 ,7/1/2015
APPLIED INDUSTRIAL TECHNOLOGIES,MISCELLANEOUS OTHER EXPENSE,$44.84 ,7/1/2015
APPLIED INDUSTRIAL TECHNOLOGIES,MATERIALS - INVENTORY,$507.36 ,7/21/2015
APPLIED INDUSTRIAL TECHNOLOGIES,MISCELLANEOUS OTHER EXPENSE,$44.84 ,7/21/2015
APPLIED INDUSTRIAL TECHNOLOGIES,MATERIALS - INVENTORY,$647.76 ,9/14/2015
APPLIED POWER SYSTEMS,MATERIALS & ASSETS - CAPITAL,"$3,944 ",5/12/2015
APPLIED POWER SYSTEMS,MATERIALS & ASSETS - CAPITAL,"$8,715.24 ",8/24/2015
"APPLIED REAL ESTATE ANALYSIS, INC.",PROFESSIONAL SERVICES,$809.60 ,3/9/2015
"APPLIED REAL ESTATE ANALYSIS, INC.",PROFESSIONAL SERVICES,$506 ,6/1/2015
"APPLIED REAL ESTATE ANALYSIS, INC.",PROFESSIONAL SERVICES,"$11,486.20 ",10/12/2015
APRIL S. LEE & ASSOC.,MATERIALS - INVENTORY,"$2,221.92 ",1/20/2015
AQUA ILLINOIS,UTILITIES,$52.01 ,1/6/2015
AQUA ILLINOIS,UTILITIES,$56.92 ,2/9/2015
AQUA ILLINOIS,UTILITIES,$56.20 ,3/23/2015
AQUA ILLINOIS,UTILITIES,$67.01 ,4/16/2015
AQUA ILLINOIS,UTILITIES,$51.50 ,5/13/2015
AQUA ILLINOIS,UTILITIES,$102.17 ,6/15/2015
AQUA ILLINOIS,UTILITIES,$73.22 ,7/8/2015
AQUA ILLINOIS,UTILITIES,$52.22 ,7/30/2015
AQUA ILLINOIS,UTILITIES,$53.67 ,9/8/2015
AQUA ILLINOIS,UTILITIES,$50.05 ,10/5/2015
AQUA ILLINOIS,UTILITIES,$52.95 ,11/9/2015
AQUA ILLINOIS,UTILITIES,$52.22 ,12/8/2015
ARC DOCUMENT SOLUTIONS LLC,MATERIALS & ASSETS - CAPITAL,"$33,143.50 ",6/17/2015
"ARCADIS US, INC.",ENG. MANAGEMENT & INSPECTIONS,"$41,070.31 ",1/21/2015
"ARCADIS US, INC.",ENG. MANAGEMENT & INSPECTIONS,$939.63 ,1/29/2015
"ARCADIS US, INC.",ENG. MANAGEMENT & INSPECTIONS,"$22,980.69 ",5/4/2015
"ARCADIS US, INC.",ENG. MANAGEMENT & INSPECTIONS,"$47,755.04 ",5/6/2015
"ARCADIS US, INC.",ENG. MANAGEMENT & INSPECTIONS,"$112,044.72 ",5/26/2015
"ARCADIS US, INC.",ENG. MANAGEMENT & INSPECTIONS,"$48,117.78 ",6/25/2015
"ARCADIS US, INC.",ENG. MANAGEMENT & INSPECTIONS,"$25,172.05 ",7/6/2015
"ARCADIS US, INC.",ENG. MANAGEMENT & INSPECTIONS,"$22,052.57 ",8/19/2015
"ARCADIS US, INC.",ENG. MANAGEMENT & INSPECTIONS,"$26,148.58 ",9/17/2015
"ARCADIS US, INC.",ENG. MANAGEMENT & INSPECTIONS,"$20,403.42 ",10/22/2015
AREMA,MISCELLANEOUS OTHER EXPENSE,"$1,992 ",3/17/2015
AREMA,MISCELLANEOUS OTHER EXPENSE,$332 ,3/26/2015
AREMA,PROFESSIONAL SERVICES,"$2,950 ",9/23/2015
ARGUS-HAZCO,MATERIALS - NON-INVENTORY,"$4,222.50 ",9/28/2015
ARGUS-HAZCO,MISCELLANEOUS OTHER EXPENSE,$35 ,9/28/2015
ARIAL SOFTWARE,MISCELLANEOUS OTHER EXPENSE,"$13,933 ",7/13/2015
ARLINGTON PARK RACECOURSE LLC,RENTAL EXPENSE,"$18,249 ",1/22/2015
ARLINGTON PARK RACECOURSE LLC,RENTAL EXPENSE,"$18,249 ",2/23/2015
ARLINGTON PARK RACECOURSE LLC,RENTAL EXPENSE,"$18,249 ",3/23/2015
ARLINGTON PARK RACECOURSE LLC,RENTAL EXPENSE,"$18,249 ",4/22/2015
ARLINGTON PARK RACECOURSE LLC,RENTAL EXPENSE,"$18,249 ",5/26/2015
ARLINGTON PARK RACECOURSE LLC,RENTAL EXPENSE,"$18,249 ",6/22/2015
ARLINGTON PARK RACECOURSE LLC,RENTAL EXPENSE,"$18,249 ",7/22/2015
ARLINGTON PARK RACECOURSE LLC,RENTAL EXPENSE,"$18,249 ",8/24/2015
ARLINGTON PARK RACECOURSE LLC,RENTAL EXPENSE,"$18,249 ",9/22/2015
ARLINGTON PARK RACECOURSE LLC,RENTAL EXPENSE,"$18,249 ",10/22/2015
ARLINGTON PARK RACECOURSE LLC,RENTAL EXPENSE,"$18,249 ",11/23/2015
ARLINGTON PARK RACECOURSE LLC,RENTAL EXPENSE,"$18,249 ",12/22/2015
ARMA,PROFESSIONAL SERVICES,$35 ,1/8/2015
ARMA,PROFESSIONAL SERVICES,$110 ,4/15/2015
ARMA INTERNATIONAL DEPT. 999239,PROFESSIONAL SERVICES,$225 ,11/23/2015
"ASAS/TYSOL, INC.",MATERIALS - INVENTORY,"$2,985 ",1/26/2015
"ASAS/TYSOL, INC.",MATERIALS - INVENTORY,"$5,190 ",9/14/2015
"ASAS/TYSOL, INC.",MATERIALS - INVENTORY,"$5,184 ",11/16/2015
ASG,PROFESSIONAL SERVICES,"$16,243.50 ",2/26/2015
ASG,PROFESSIONAL SERVICES,"$16,243.50 ",10/29/2015
ASIAN AMERICAN BUSINESS EXPO,MISCELLANEOUS OTHER EXPENSE,$250 ,8/20/2015
ASIS INTERNATIONAL,MISCELLANEOUS OTHER EXPENSE,$215 ,10/22/2015
ASPLUNDH TREE EXPERT CO. (RR DIV.),OUTSIDE SERVICES,"$8,496 ",2/4/2015
ASPLUNDH TREE EXPERT CO. (RR DIV.),OUTSIDE SERVICES,"$53,018.70 ",2/5/2015
ASPLUNDH TREE EXPERT CO. (RR DIV.),OUTSIDE SERVICES,"$14,875.85 ",4/21/2015
ASPLUNDH TREE EXPERT CO. (RR DIV.),OUTSIDE SERVICES,"$3,647.20 ",5/26/2015
ASPLUNDH TREE EXPERT CO. (RR DIV.),OUTSIDE SERVICES,"$11,175.20 ",6/25/2015
ASPLUNDH TREE EXPERT CO. (RR DIV.),OUTSIDE SERVICES,"$4,236 ",9/8/2015
ASSN. OF AMERICAN RAILROADS,MISCELLANEOUS OTHER EXPENSE,"$4,870 ",1/5/2015
ASSN. OF AMERICAN RAILROADS,ENGINEERING & DESIGN,"$14,285.71 ",1/21/2015
ASSN. OF AMERICAN RAILROADS,MISCELLANEOUS OTHER EXPENSE,"$4,870 ",2/4/2015
ASSN. OF AMERICAN RAILROADS,MISCELLANEOUS OTHER EXPENSE,"$4,870 ",3/9/2015
ASSN. OF AMERICAN RAILROADS,ENGINEERING & DESIGN,"$14,285.71 ",4/13/2015
ASSN. OF AMERICAN RAILROADS,MISCELLANEOUS OTHER EXPENSE,"$4,870 ",4/14/2015
ASSN. OF AMERICAN RAILROADS,OUTSIDE SERVICES,"$11,607.14 ",4/20/2015
ASSN. OF AMERICAN RAILROADS,MISCELLANEOUS OTHER EXPENSE,"$4,870 ",5/5/2015
ASSN. OF AMERICAN RAILROADS,MISCELLANEOUS OTHER EXPENSE,"$4,870 ",5/28/2015
ASSN. OF AMERICAN RAILROADS,MISCELLANEOUS OTHER EXPENSE,"$4,870 ",7/7/2015
ASSN. OF AMERICAN RAILROADS,OUTSIDE SERVICES,"$11,607.14 ",7/27/2015
ASSN. OF AMERICAN RAILROADS,MISCELLANEOUS OTHER EXPENSE,"$14,285.71 ",7/28/2015
ASSN. OF AMERICAN RAILROADS,MISCELLANEOUS OTHER EXPENSE,"$4,870 ",8/3/2015
ASSN. OF AMERICAN RAILROADS,PROFESSIONAL SERVICES,$750 ,8/3/2015
ASSN. OF AMERICAN RAILROADS,MISCELLANEOUS OTHER EXPENSE,"$4,870 ",8/31/2015
ASSN. OF AMERICAN RAILROADS,MISCELLANEOUS OTHER EXPENSE,"$4,870 ",10/8/2015
ASSN. OF AMERICAN RAILROADS,OUTSIDE SERVICES,"$11,607.14 ",10/26/2015
ASSN. OF AMERICAN RAILROADS,MISCELLANEOUS OTHER EXPENSE,"$4,870 ",11/5/2015
ASSN. OF AMERICAN RAILROADS,MISCELLANEOUS OTHER EXPENSE,"$4,870 ",12/2/2015
ASSOCIATION FOR TALENT DEVELOPMENT,MISCELLANEOUS OTHER EXPENSE,$229 ,2/23/2015
AT & T,UTILITIES,$613.38 ,1/8/2015
AT & T,UTILITIES,$613.38 ,1/21/2015
AT & T,UTILITIES,"$1,272.32 ",1/21/2015
AT & T,UTILITIES,"$14,018.13 ",1/21/2015
AT & T,UTILITIES,$613.38 ,2/4/2015
AT & T,UTILITIES,"$1,272.32 ",2/23/2015
AT & T,UTILITIES,$613.38 ,2/26/2015
AT & T,UTILITIES,"$14,018.13 ",2/26/2015
AT & T,UTILITIES,$613.38 ,3/10/2015
AT & T,UTILITIES,"$1,272.32 ",3/23/2015
AT & T,UTILITIES,$613.38 ,3/23/2015
AT & T,UTILITIES,"$14,018.13 ",3/23/2015
AT & T,UTILITIES,$613.38 ,4/15/2015
AT & T,UTILITIES,$613.38 ,5/6/2015
AT & T,UTILITIES,"$1,272.32 ",5/6/2015
AT & T,UTILITIES,"$14,018.13 ",5/6/2015
AT & T,UTILITIES,$613.38 ,5/11/2015
AT & T,UTILITIES,"$1,272.32 ",6/2/2015
AT & T,UTILITIES,$613.38 ,6/8/2015
AT & T,UTILITIES,"$14,018.13 ",6/8/2015
AT & T,UTILITIES,$613.38 ,6/9/2015
AT & T,UTILITIES,"$1,666.74 ",6/9/2015
AT & T,UTILITIES,$555.80 ,6/30/2015
AT & T,UTILITIES,$613.38 ,6/30/2015
AT & T,UTILITIES,"$14,018.13 ",6/30/2015
AT & T,UTILITIES,$613.38 ,7/13/2015
AT & T,UTILITIES,$615.83 ,7/21/2015
AT & T,UTILITIES,"$14,018.13 ",7/21/2015
AT & T,UTILITIES,$613.38 ,8/5/2015
AT & T,UTILITIES,$218.79 ,8/5/2015
AT & T,UTILITIES,$613.38 ,8/25/2015
AT & T,UTILITIES,$382.38 ,8/25/2015
AT & T,UTILITIES,"$14,018.13 ",8/27/2015
AT & T,UTILITIES,$115 ,8/31/2015
AT & T,UTILITIES,$613.38 ,9/8/2015
AT & T,UTILITIES,$613.38 ,10/5/2015
AT & T,UTILITIES,$555.80 ,10/5/2015
AT & T,UTILITIES,$115 ,10/6/2015
AT & T,UTILITIES,$613.38 ,10/6/2015
AT & T,UTILITIES,"$14,018.13 ",10/6/2015
AT & T,UTILITIES,$171.33 ,10/13/2015
AT & T,UTILITIES,"$14,018.13 ",10/27/2015
AT & T,UTILITIES,$555.80 ,10/28/2015
AT & T,UTILITIES,$613.38 ,10/28/2015
AT & T,UTILITIES,$613.38 ,11/11/2015
AT & T,UTILITIES,$70 ,11/12/2015
AT & T,UTILITIES,$844.02 ,11/16/2015
AT & T,UTILITIES,$613.38 ,12/1/2015
AT & T,UTILITIES,$555.80 ,12/1/2015
AT & T,UTILITIES,"$14,018.13 ",12/1/2015
AT & T,UTILITIES,$613.38 ,12/21/2015
AT & T,UTILITIES,$613.38 ,12/28/2015
AT & T,UTILITIES,$552.26 ,12/28/2015
AT & T,UTILITIES,"$14,018.13 ",12/28/2015
AT & T MOBILITY,UTILITIES,$113.18 ,2/3/2015
AT & T MOBILITY,UTILITIES,$155.78 ,3/9/2015
AT & T MOBILITY,UTILITIES,$154 ,3/26/2015
AT & T MOBILITY,UTILITIES,$149.74 ,5/6/2015
AT & T MOBILITY,UTILITIES,$149.74 ,6/1/2015
AT & T MOBILITY,UTILITIES,$149.74 ,6/30/2015
AT & T MOBILITY,UTILITIES,$149.71 ,7/23/2015
AT & T MOBILITY,UTILITIES,$154.32 ,8/31/2015
AT & T MOBILITY,UTILITIES,$190.52 ,10/5/2015
AT & T MOBILITY,UTILITIES,$190.22 ,10/28/2015
AT & T MOBILITY,UTILITIES,$190.22 ,12/1/2015
AT & T MOBILITY,UTILITIES,$742 ,12/16/2015
AT & T MOBILITY,UTILITIES,"$1,600 ",12/16/2015
AT & T MOBILITY,UTILITIES,$190.22 ,12/28/2015
AT&T,UTILITIES,"$1,014.60 ",2/2/2015
AT&T,UTILITIES,"$1,121.69 ",2/23/2015
AT&T,UTILITIES,"$1,083.63 ",3/23/2015
AT&T,UTILITIES,"$1,154.44 ",5/6/2015
AT&T,UTILITIES,"$1,611.86 ",6/2/2015
AT&T,UTILITIES,"$1,367.86 ",6/16/2015
AT&T,UTILITIES,"$1,650.05 ",7/21/2015
AT&T,UTILITIES,"$1,325.30 ",8/20/2015
AT&T,UTILITIES,"$1,344.90 ",9/28/2015
AT&T,UTILITIES,"$1,265.39 ",10/27/2015
AT&T,UTILITIES,"$1,300.89 ",11/16/2015
ATLANTIC TRACK & TURNOUT CO.,MATERIALS - INVENTORY,"$56,574.72 ",5/27/2015
ATLANTIC TRACK & TURNOUT CO.,MATERIALS - INVENTORY,"$84,862.08 ",6/11/2015
ATLANTIC TRACK & TURNOUT CO.,MATERIALS - NON-INVENTORY,"$10,500 ",7/27/2015
ATLANTIC TRACK & TURNOUT CO.,MATERIALS - INVENTORY,"$28,287.36 ",11/30/2015
ATLAS/FIRST ACCESS,OUTSIDE SERVICES,$239.25 ,1/14/2015
ATLAS/FIRST ACCESS,MATERIALS & ASSETS - CAPITAL,"$7,824 ",1/20/2015
ATLAS/FIRST ACCESS,OUTSIDE SERVICES,"$7,148.11 ",1/20/2015
ATLAS/FIRST ACCESS,OUTSIDE SERVICES,"$5,297 ",1/26/2015
ATLAS/FIRST ACCESS,OUTSIDE SERVICES,$288.55 ,2/2/2015
ATLAS/FIRST ACCESS,OUTSIDE SERVICES,$679.12 ,2/3/2015
ATLAS/FIRST ACCESS,MATERIALS & ASSETS - CAPITAL,"$24,498 ",2/18/2015
ATLAS/FIRST ACCESS,MATERIALS & ASSETS - CAPITAL,"$18,504 ",3/23/2015
ATLAS/FIRST ACCESS,OUTSIDE SERVICES,$411.23 ,4/27/2015
ATLAS/FIRST ACCESS,OUTSIDE SERVICES,$369.75 ,4/27/2015
ATLAS/FIRST ACCESS,OUTSIDE SERVICES,$229.07 ,4/29/2015
ATLAS/FIRST ACCESS,OUTSIDE SERVICES,"$6,212.31 ",4/29/2015
ATLAS/FIRST ACCESS,OUTSIDE SERVICES,"$3,685.78 ",4/30/2015
ATLAS/FIRST ACCESS,MATERIALS & ASSETS - CAPITAL,"$9,127 ",5/18/2015
ATLAS/FIRST ACCESS,OUTSIDE SERVICES,"$1,120.90 ",5/21/2015
ATLAS/FIRST ACCESS,MATERIALS & ASSETS - CAPITAL,"$67,725 ",6/8/2015
ATLAS/FIRST ACCESS,OUTSIDE SERVICES,$435.02 ,6/8/2015
ATLAS/FIRST ACCESS,OUTSIDE SERVICES,$682.98 ,6/16/2015
ATLAS/FIRST ACCESS,OUTSIDE SERVICES,$519.60 ,7/23/2015
ATLAS/FIRST ACCESS,OUTSIDE SERVICES,$996.03 ,9/14/2015
ATLAS/FIRST ACCESS,OUTSIDE SERVICES,$43.50 ,10/5/2015
ATLAS/FIRST ACCESS,OUTSIDE SERVICES,"$4,771.73 ",10/8/2015
ATLAS/FIRST ACCESS,OUTSIDE SERVICES,$310.20 ,11/11/2015
ATLAS/FIRST ACCESS,OUTSIDE SERVICES,$957.69 ,11/11/2015
ATLAS/FIRST ACCESS,MATERIALS & ASSETS - CAPITAL,"$10,989 ",11/16/2015
ATLAS/FIRST ACCESS,OUTSIDE SERVICES,$511.97 ,11/16/2015
ATLAS/FIRST ACCESS,MISCELLANEOUS OTHER EXPENSE,$282.75 ,11/16/2015
ATOMIC TRANSMISSIONS,OUTSIDE SERVICES,"$2,585 ",11/23/2015
ATTORNEY REGISTRATION &,MISCELLANEOUS OTHER EXPENSE,$382 ,3/2/2015
ATTORNEY REGISTRATION &,MISCELLANEOUS OTHER EXPENSE,$121 ,11/11/2015
ATTORNEY REGISTRATION &,MISCELLANEOUS OTHER EXPENSE,$764 ,12/1/2015
ATTORNEY REGISTRATION &,MISCELLANEOUS OTHER EXPENSE,$121 ,12/1/2015
ATTORNEY REGISTRATION &,MISCELLANEOUS OTHER EXPENSE,$121 ,12/1/2015
ATTORNEY REGISTRATION &,MISCELLANEOUS OTHER EXPENSE,$121 ,12/1/2015
ATTORNEY REGISTRATION &,MISCELLANEOUS OTHER EXPENSE,$382 ,12/1/2015
ATTORNEY REGISTRATION &,MISCELLANEOUS OTHER EXPENSE,$382 ,12/1/2015
ATTORNEY REGISTRATION &,MISCELLANEOUS OTHER EXPENSE,$382 ,12/1/2015
ATTORNEY REGISTRATION &,MISCELLANEOUS OTHER EXPENSE,$382 ,12/1/2015
ATTORNEY REGISTRATION &,MISCELLANEOUS OTHER EXPENSE,$382 ,12/1/2015
ATTORNEY REGISTRATION &,MISCELLANEOUS OTHER EXPENSE,$382 ,12/1/2015
ATTORNEY REGISTRATION &,MISCELLANEOUS OTHER EXPENSE,$382 ,12/1/2015
ATTORNEY REGISTRATION &,MISCELLANEOUS OTHER EXPENSE,$382 ,12/1/2015
ATTORNEY REGISTRATION &,MISCELLANEOUS OTHER EXPENSE,$382 ,12/1/2015
ATTORNEY REGISTRATION &,MISCELLANEOUS OTHER EXPENSE,$382 ,12/1/2015
ATTORNEY REGISTRATION &,MISCELLANEOUS OTHER EXPENSE,$382 ,12/1/2015
ATTORNEY REGISTRATION &,MISCELLANEOUS OTHER EXPENSE,$382 ,12/1/2015
ATTORNEY REGISTRATION &,MISCELLANEOUS OTHER EXPENSE,$382 ,12/1/2015
AUBURN METROLOGY LAB (AML),OUTSIDE SERVICES,$978.02 ,11/24/2015
"AUTO TRUCK GROUP, LLC",OUTSIDE SERVICES,$740.30 ,2/4/2015
"AUTO TRUCK GROUP, LLC",OUTSIDE SERVICES,"$4,361.76 ",2/26/2015
"AUTO TRUCK GROUP, LLC",OUTSIDE SERVICES,"$2,817.64 ",11/16/2015
"AUTO TRUCK GROUP, LLC",OUTSIDE SERVICES,"$3,221.52 ",11/17/2015
B & H PHOTO VIDEO CORP.,MATERIALS & ASSETS - CAPITAL,"$1,365.76 ",9/8/2015
B & W TRUCK REPAIR INC.,OUTSIDE SERVICES,"$2,406.05 ",4/28/2015
B & W TRUCK REPAIR INC.,MISCELLANEOUS OTHER EXPENSE,$60 ,4/28/2015
BACH-SIMPSON,MATERIALS - INVENTORY,"$9,857 ",1/22/2015
BACH-SIMPSON,MATERIALS - INVENTORY,"$16,380 ",3/2/2015
BACH-SIMPSON,OUTSIDE SERVICES,$525 ,3/9/2015
BACH-SIMPSON,OUTSIDE SERVICES,"$2,120 ",3/11/2015
BACH-SIMPSON,OUTSIDE SERVICES,"$1,145 ",3/11/2015
BACH-SIMPSON,MATERIALS & ASSETS - CAPITAL,"$89,539.28 ",3/12/2015
BACH-SIMPSON,MATERIALS & ASSETS - CAPITAL,"$2,384 ",3/23/2015
BACH-SIMPSON,OUTSIDE SERVICES,$745 ,4/14/2015
BACH-SIMPSON,MATERIALS - NON-INVENTORY,"$1,399 ",4/27/2015
BACH-SIMPSON,MATERIALS - INVENTORY,"$9,189 ",4/28/2015
BACH-SIMPSON,OUTSIDE SERVICES,"$4,605 ",5/4/2015
BACH-SIMPSON,OUTSIDE SERVICES,$395 ,5/11/2015
BACH-SIMPSON,MATERIALS - NON-INVENTORY,$895 ,5/18/2015
BACH-SIMPSON,OUTSIDE SERVICES,$495 ,5/18/2015
BACH-SIMPSON,OUTSIDE SERVICES,"$1,050 ",5/18/2015
BACH-SIMPSON,OUTSIDE SERVICES,$990 ,5/18/2015
BACH-SIMPSON,MATERIALS - NON-INVENTORY,$350 ,5/27/2015
BACH-SIMPSON,OUTSIDE SERVICES,$295 ,5/27/2015
BACH-SIMPSON,MATERIALS - INVENTORY,"$9,414 ",6/8/2015
BACH-SIMPSON,MATERIALS - INVENTORY,"$7,999 ",6/11/2015
BACH-SIMPSON,MATERIALS & ASSETS - CAPITAL,"$41,974.56 ",6/15/2015
BACH-SIMPSON,MATERIALS - INVENTORY,"$29,980 ",6/15/2015
BACH-SIMPSON,MATERIALS - INVENTORY,$450 ,6/22/2015
BACH-SIMPSON,MATERIALS - NON-INVENTORY,$795 ,6/22/2015
BACH-SIMPSON,OUTSIDE SERVICES,$595 ,6/23/2015
BACH-SIMPSON,OUTSIDE SERVICES,"$4,710 ",6/23/2015
BACH-SIMPSON,MATERIALS - INVENTORY,"$5,230 ",7/1/2015
BACH-SIMPSON,MATERIALS - INVENTORY,"$4,780 ",7/7/2015
BACH-SIMPSON,MATERIALS - INVENTORY,"$2,295 ",7/9/2015
BACH-SIMPSON,OUTSIDE SERVICES,$650 ,7/9/2015
BACH-SIMPSON,MATERIALS - INVENTORY,"$2,397 ",7/20/2015
BACH-SIMPSON,MATERIALS - INVENTORY,"$1,850 ",8/10/2015
BACH-SIMPSON,MATERIALS - INVENTORY,"$3,550 ",8/19/2015
BACH-SIMPSON,OUTSIDE SERVICES,$960 ,8/20/2015
BACH-SIMPSON,OUTSIDE SERVICES,$698 ,9/3/2015
BACH-SIMPSON,MATERIALS - INVENTORY,"$37,073.40 ",9/28/2015
BACH-SIMPSON,MATERIALS - INVENTORY,"$2,598 ",10/5/2015
BACH-SIMPSON,OUTSIDE SERVICES,"$1,795 ",10/5/2015
BACH-SIMPSON,OUTSIDE SERVICES,"$2,865 ",10/5/2015
BACH-SIMPSON,OUTSIDE SERVICES,"$1,220 ",10/29/2015
BACH-SIMPSON,OUTSIDE SERVICES,"$1,695 ",10/29/2015
BACH-SIMPSON,OUTSIDE SERVICES,$495 ,11/11/2015
BACH-SIMPSON,MATERIALS - NON-INVENTORY,"$2,798 ",11/16/2015
BACH-SIMPSON,OUTSIDE SERVICES,$395 ,11/16/2015
BACH-SIMPSON,OUTSIDE SERVICES,"$1,175 ",11/16/2015
BACH-SIMPSON,OUTSIDE SERVICES,"$2,199 ",11/16/2015
BACH-SIMPSON,MATERIALS - INVENTORY,"$2,835 ",11/17/2015
BACH-SIMPSON,OUTSIDE SERVICES,"$2,495 ",12/3/2015
BACH-SIMPSON,OUTSIDE SERVICES,$650 ,12/22/2015
"BALLAST TOOLS, INC.",MATERIALS - INVENTORY,"$4,208 ",4/20/2015
"BALLAST TOOLS, INC.",MATERIALS - INVENTORY,"$2,342 ",4/27/2015
"BALLAST TOOLS, INC.",MATERIALS - INVENTORY,"$8,752 ",6/8/2015
"BALLAST TOOLS, INC.",MATERIALS - INVENTORY,"$2,702 ",6/15/2015
"BALLAST TOOLS, INC.",MATERIALS - INVENTORY,"$2,104 ",7/7/2015
"BALLAST TOOLS, INC.",MATERIALS - INVENTORY,"$3,598 ",7/20/2015
"BALLAST TOOLS, INC.",MATERIALS - INVENTORY,"$2,104 ",8/10/2015
"BALLAST TOOLS, INC.",MATERIALS - INVENTORY,"$1,052 ",8/18/2015
"BALLAST TOOLS, INC.",MATERIALS - INVENTORY,"$11,180 ",11/2/2015
"BALLAST TOOLS, INC.",MATERIALS - INVENTORY,"$2,104 ",11/9/2015
BARBER SPRING CO.,MATERIALS - INVENTORY,"$1,691.72 ",3/30/2015
BARBER SPRING CO.,MISCELLANEOUS OTHER EXPENSE,$130.25 ,3/30/2015
BARBER SPRING CO.,MATERIALS - INVENTORY,"$2,860 ",6/1/2015
BARBER SPRING CO.,MATERIALS - INVENTORY,$604.18 ,6/8/2015
BARBER SPRING CO.,MATERIALS - INVENTORY,$711.58 ,6/15/2015
BARBER SPRING CO.,MATERIALS - INVENTORY,"$2,080.28 ",8/18/2015
BARBER SPRING CO.,MATERIALS - INVENTORY,"$7,939.81 ",11/2/2015
BARBER SPRING CO.,MISCELLANEOUS OTHER EXPENSE,$275 ,11/2/2015
BARNES DISTRIBUTION,MATERIALS - NON-INVENTORY,$673.77 ,1/5/2015
BARNES DISTRIBUTION,MATERIALS - CAPITAL,$720.80 ,1/7/2015
BARNES DISTRIBUTION,MATERIALS - NON-INVENTORY,"$11,453.20 ",6/4/2015
BARNES DISTRIBUTION,MATERIALS - NON-INVENTORY,"$1,331.25 ",7/16/2015
BARNES DISTRIBUTION,MATERIALS - INVENTORY,$179.85 ,8/17/2015
BARNES DISTRIBUTION,MATERIALS - CAPITAL,"$9,700.63 ",10/5/2015
BARNES DISTRIBUTION,MATERIALS - NON-INVENTORY,$653.10 ,10/27/2015
BATTERY SERVICE CORP.,MATERIALS - INVENTORY,"$2,533.50 ",2/4/2015
BATTERY SERVICE CORP.,MATERIALS - INVENTORY,$600 ,2/5/2015
BATTERY SERVICE CORP.,MATERIALS - INVENTORY,$430.50 ,2/10/2015
BATTERY SERVICE CORP.,MATERIALS - INVENTORY,$669 ,6/8/2015
BATTERY SERVICE CORP.,MATERIALS - INVENTORY,"$2,397.60 ",6/9/2015
BATTERY SERVICE CORP.,MATERIALS - INVENTORY,"$3,635.50 ",6/15/2015
"BBA PROJECT, INC.",MATERIALS & ASSETS - CAPITAL,$456 ,1/5/2015
"BBA PROJECT, INC.",MATERIALS - INVENTORY,"$1,488 ",1/26/2015
"BBA PROJECT, INC.",MATERIALS & ASSETS - CAPITAL,$456 ,2/19/2015
"BBA PROJECT, INC.",MATERIALS & ASSETS - CAPITAL,"$2,280 ",3/23/2015
"BBA PROJECT, INC.",MATERIALS - INVENTORY,$992 ,3/23/2015
"BBA PROJECT, INC.",MATERIALS & ASSETS - CAPITAL,"$3,192 ",3/30/2015
"BBA PROJECT, INC.",MATERIALS - INVENTORY,"$2,128 ",4/13/2015
"BBA PROJECT, INC.",MATERIALS & ASSETS - CAPITAL,$912 ,4/27/2015
"BBA PROJECT, INC.",MATERIALS - INVENTORY,"$1,693.32 ",5/5/2015
"BBA PROJECT, INC.",MATERIALS & ASSETS - CAPITAL,"$185,080 ",6/2/2015
"BBA PROJECT, INC.",MATERIALS & ASSETS - CAPITAL,"$8,208 ",6/22/2015
"BBA PROJECT, INC.",MATERIALS & ASSETS - CAPITAL,"$19,674 ",7/20/2015
"BBA PROJECT, INC.",MATERIALS & ASSETS - CAPITAL,"$39,630 ",8/3/2015
"BBA PROJECT, INC.",MATERIALS & ASSETS - CAPITAL,"$83,198 ",8/6/2015
"BBA PROJECT, INC.",MATERIALS & ASSETS - CAPITAL,"$46,998 ",8/26/2015
"BBA PROJECT, INC.",MATERIALS & ASSETS - CAPITAL,"$31,332 ",9/15/2015
"BBA PROJECT, INC.",MATERIALS & ASSETS - CAPITAL,"$71,796 ",9/24/2015
"BBA PROJECT, INC.",MATERIALS - INVENTORY,"$1,582.24 ",9/28/2015
"BBA PROJECT, INC.",MATERIALS - INVENTORY,"$1,277.20 ",11/2/2015
"BBA PROJECT, INC.",MATERIALS & ASSETS - CAPITAL,"$27,888 ",11/16/2015
"BBA PROJECT, INC.",MATERIALS & ASSETS - CAPITAL,"$36,936 ",11/23/2015
"BBA PROJECT, INC.",MATERIALS - INVENTORY,"$1,693.32 ",11/24/2015
"BBA PROJECT, INC.",MATERIALS & ASSETS - CAPITAL,"$34,860 ",12/17/2015
BEARING HEADQUARTERS CO.,OUTSIDE SERVICES,$714.28 ,6/10/2015
BEBON OFFICE MACHINES CO.,OUTSIDE SERVICES,"$1,493.25 ",1/13/2015
BEBON OFFICE MACHINES CO.,OUTSIDE SERVICES,"$1,611 ",1/22/2015
BEBON OFFICE MACHINES CO.,OUTSIDE SERVICES,"$1,851.70 ",2/26/2015
BEBON OFFICE MACHINES CO.,OUTSIDE SERVICES,"$2,146.05 ",3/3/2015
BEBON OFFICE MACHINES CO.,OUTSIDE SERVICES,"$1,647.10 ",4/6/2015
BEBON OFFICE MACHINES CO.,OUTSIDE SERVICES,$95 ,11/23/2015
"BEITLER MILLENNIUM STATION, LLC",OUTSIDE SERVICES,"$134,332.84 ",2/26/2015
"BEITLER MILLENNIUM STATION, LLC",OUTSIDE SERVICES,"$70,673.11 ",6/10/2015
"BEITLER MILLENNIUM STATION, LLC",OUTSIDE SERVICES,"$41,669.06 ",7/20/2015
"BEITLER MILLENNIUM STATION, LLC",OUTSIDE SERVICES,"$45,182.99 ",10/29/2015
"BEITLER MILLENNIUM STATION, LLC",OUTSIDE SERVICES,"$42,359.73 ",12/29/2015
BELLWOOD ELECTRIC MOTORS INC.,OUTSIDE SERVICES,"$2,170 ",2/10/2015
BELLWOOD ELECTRIC MOTORS INC.,OUTSIDE SERVICES,"$3,560 ",2/10/2015
BELLWOOD ELECTRIC MOTORS INC.,OUTSIDE SERVICES,"$16,900 ",3/9/2015
BELLWOOD ELECTRIC MOTORS INC.,MATERIALS - NON-INVENTORY,"$1,780 ",3/26/2015
BELLWOOD ELECTRIC MOTORS INC.,OUTSIDE SERVICES,"$4,720 ",3/26/2015
BELLWOOD ELECTRIC MOTORS INC.,OUTSIDE SERVICES,$690 ,3/26/2015
BELLWOOD ELECTRIC MOTORS INC.,OUTSIDE SERVICES,$790 ,4/9/2015
BELLWOOD ELECTRIC MOTORS INC.,OUTSIDE SERVICES,"$13,400 ",4/13/2015
BELLWOOD ELECTRIC MOTORS INC.,OUTSIDE SERVICES,"$2,370 ",4/27/2015
BELLWOOD ELECTRIC MOTORS INC.,OUTSIDE SERVICES,"$4,500 ",4/27/2015
BELLWOOD ELECTRIC MOTORS INC.,OUTSIDE SERVICES,"$5,940 ",5/4/2015
BELLWOOD ELECTRIC MOTORS INC.,OUTSIDE SERVICES,"$4,500 ",5/4/2015
BELLWOOD ELECTRIC MOTORS INC.,MATERIALS - NON-INVENTORY,$590 ,5/5/2015
BELLWOOD ELECTRIC MOTORS INC.,OUTSIDE SERVICES,$690 ,5/5/2015
BELLWOOD ELECTRIC MOTORS INC.,OUTSIDE SERVICES,$690 ,5/11/2015
BELLWOOD ELECTRIC MOTORS INC.,OUTSIDE SERVICES,"$4,400 ",5/11/2015
BELLWOOD ELECTRIC MOTORS INC.,OUTSIDE SERVICES,"$4,500 ",5/27/2015
BELLWOOD ELECTRIC MOTORS INC.,OUTSIDE SERVICES,"$10,780 ",6/1/2015
BELLWOOD ELECTRIC MOTORS INC.,OUTSIDE SERVICES,$690 ,6/11/2015
BELLWOOD ELECTRIC MOTORS INC.,OUTSIDE SERVICES,"$3,360 ",6/23/2015
BELLWOOD ELECTRIC MOTORS INC.,OUTSIDE SERVICES,"$4,500 ",8/3/2015
BELLWOOD ELECTRIC MOTORS INC.,OUTSIDE SERVICES,"$18,980 ",8/20/2015
BELLWOOD ELECTRIC MOTORS INC.,OUTSIDE SERVICES,"$17,900 ",8/20/2015
BELLWOOD ELECTRIC MOTORS INC.,OUTSIDE SERVICES,"$4,500 ",8/20/2015
BELLWOOD ELECTRIC MOTORS INC.,OUTSIDE SERVICES,$690 ,9/3/2015
BELLWOOD ELECTRIC MOTORS INC.,OUTSIDE SERVICES,"$1,580 ",9/14/2015
BELLWOOD ELECTRIC MOTORS INC.,OUTSIDE SERVICES,$590 ,10/5/2015
BELLWOOD ELECTRIC MOTORS INC.,OUTSIDE SERVICES,"$4,390 ",10/5/2015
BELLWOOD ELECTRIC MOTORS INC.,OUTSIDE SERVICES,"$4,400 ",10/5/2015
BELLWOOD ELECTRIC MOTORS INC.,OUTSIDE SERVICES,"$17,900 ",10/29/2015
BELLWOOD ELECTRIC MOTORS INC.,OUTSIDE SERVICES,"$43,450 ",11/16/2015
BELLWOOD ELECTRIC MOTORS INC.,OUTSIDE SERVICES,"$8,800 ",11/16/2015
BELT RAILWAY CO. OF CHICAGO,MISCELLANEOUS OTHER EXPENSE,$553.11 ,8/10/2015
"BENSINGER, DUPONT & ASSOC.",PROFESSIONAL SERVICES,"$9,940 ",2/18/2015
"BENSINGER, DUPONT & ASSOC.",PROFESSIONAL SERVICES,"$4,970 ",4/1/2015
"BENSINGER, DUPONT & ASSOC.",PROFESSIONAL SERVICES,"$14,910 ",5/20/2015
"BENSINGER, DUPONT & ASSOC.",PROFESSIONAL SERVICES,"$4,970 ",6/30/2015
"BENSINGER, DUPONT & ASSOC.",PROFESSIONAL SERVICES,"$4,970 ",8/3/2015
"BENSINGER, DUPONT & ASSOC.",PROFESSIONAL SERVICES,"$4,970 ",8/31/2015
"BENSINGER, DUPONT & ASSOC.",PROFESSIONAL SERVICES,"$9,940 ",11/24/2015
"BENTLEY SYSTEMS, INC.",PROFESSIONAL SERVICES,"$1,000 ",3/17/2015
"BERG MANUFACTURING, INC.",MATERIALS - NON-INVENTORY,"$3,990 ",1/26/2015
"BERG MANUFACTURING, INC.",MISCELLANEOUS OTHER EXPENSE,$270 ,1/26/2015
"BERKELEY SIMULATION SOFTWARE, LLC",PROFESSIONAL SERVICES,"$5,000 ",6/9/2015
"BERTS CAR WASH, INC.",OUTSIDE SERVICES,"$1,712.50 ",1/12/2015
"BERTS CAR WASH, INC.",OUTSIDE SERVICES,$838 ,1/26/2015
"BERTS CAR WASH, INC.",OUTSIDE SERVICES,$541.50 ,4/28/2015
"BERTS CAR WASH, INC.",OUTSIDE SERVICES,"$1,773.50 ",5/26/2015
"BERTS CAR WASH, INC.",OUTSIDE SERVICES,"$1,182 ",6/8/2015
"BERTS CAR WASH, INC.",OUTSIDE SERVICES,$602.50 ,6/25/2015
"BERTS CAR WASH, INC.",OUTSIDE SERVICES,$663 ,8/10/2015
"BERTS CAR WASH, INC.",OUTSIDE SERVICES,$709.50 ,9/28/2015
"BERTS CAR WASH, INC.",OUTSIDE SERVICES,$956 ,10/12/2015
"BERTS CAR WASH, INC.",OUTSIDE SERVICES,$643 ,10/22/2015
"BERTS CAR WASH, INC.",OUTSIDE SERVICES,$987 ,11/23/2015
BETA ALPHA PSI,MISCELLANEOUS OTHER EXPENSE,$700 ,7/23/2015
BETENBENDER MFG. INC.,OUTSIDE SERVICES,$770 ,5/11/2015
BEYOND COMPONENTS,MATERIALS - NON-INVENTORY,$80 ,6/9/2015
BIAGIO'S CATERING,MISCELLANEOUS OTHER EXPENSE,"$5,811 ",2/5/2015
BIAGIO'S CATERING,MISCELLANEOUS OTHER EXPENSE,"$2,915.25 ",6/29/2015
BIAGIO'S CATERING,MISCELLANEOUS OTHER EXPENSE,"$6,560.50 ",6/30/2015
BIAGIO'S CATERING,MISCELLANEOUS OTHER EXPENSE,$807 ,7/1/2015
BIAGIO'S CATERING,MISCELLANEOUS OTHER EXPENSE,"$4,506.25 ",9/3/2015
BIAGIO'S CATERING,MISCELLANEOUS OTHER EXPENSE,"$1,412.25 ",9/28/2015
BLACKSTONE GROUP,OUTSIDE SERVICES - CAPITAL,"$20,350.57 ",1/22/2015
BLACKSTONE GROUP,OUTSIDE SERVICES - CAPITAL,"$30,202.92 ",4/1/2015
BLACKSTONE GROUP,OUTSIDE SERVICES - CAPITAL,"$14,048.44 ",5/27/2015
BLACKSTONE GROUP,OUTSIDE SERVICES - CAPITAL,"$3,132.99 ",9/21/2015
"BLOCK & CO., INC.",MATERIALS - NON-INVENTORY,$534.42 ,12/3/2015
"BLOCK & CO., INC.",MISCELLANEOUS OTHER EXPENSE,$56.69 ,12/3/2015
"BLUE PRINT SHOPPE, INC.",ENGINEERING & DESIGN,"$1,512 ",1/21/2015
"BLUE PRINT SHOPPE, INC.",MATERIALS - NON-INVENTORY,$814.96 ,1/26/2015
"BLUE PRINT SHOPPE, INC.",ENGINEERING & DESIGN,$22.50 ,2/3/2015
"BLUE PRINT SHOPPE, INC.",ENGINEERING & DESIGN,$49.04 ,2/18/2015
"BLUE PRINT SHOPPE, INC.",OUTSIDE SERVICES,$317.83 ,2/23/2015
"BLUE PRINT SHOPPE, INC.",ENGINEERING & DESIGN,$684 ,3/12/2015
"BLUE PRINT SHOPPE, INC.",OUTSIDE SERVICES,"$3,653.10 ",4/27/2015
"BLUE PRINT SHOPPE, INC.",OUTSIDE SERVICES,"$2,098.26 ",4/28/2015
"BLUE PRINT SHOPPE, INC.",ENGINEERING & DESIGN,"$2,026.40 ",5/5/2015
"BLUE PRINT SHOPPE, INC.",ENGINEERING & DESIGN,$49.74 ,5/11/2015
"BLUE PRINT SHOPPE, INC.",ENGINEERING & DESIGN,$317.60 ,6/2/2015
"BLUE PRINT SHOPPE, INC.",MATERIALS - NON-INVENTORY,$924.99 ,6/9/2015
"BLUE PRINT SHOPPE, INC.",ENGINEERING & DESIGN,"$1,179.40 ",6/17/2015
"BLUE PRINT SHOPPE, INC.",ENGINEERING & DESIGN,$713.26 ,6/22/2015
"BLUE PRINT SHOPPE, INC.",ENGINEERING & DESIGN,$15.60 ,7/15/2015
"BLUE PRINT SHOPPE, INC.",ENGINEERING & DESIGN,$209.98 ,10/12/2015
"BLUE PRINT SHOPPE, INC.",MISCELLANEOUS OTHER EXPENSE,"$2,100 ",11/2/2015
"BLUE PRINT SHOPPE, INC.",ENGINEERING & DESIGN,$260.50 ,11/3/2015
"BLUE PRINT SHOPPE, INC.",ENGINEERING & DESIGN,$78.72 ,11/12/2015
BNSF RAILWAY CO.,MATERIALS & ASSETS - CAPITAL,"$70,479.26 ",1/20/2015
BNSF RAILWAY CO.,MATERIALS & ASSETS - CAPITAL,$701.25 ,1/20/2015
BNSF RAILWAY CO.,MATERIALS & ASSETS - CAPITAL,"$64,283.83 ",1/20/2015
BNSF RAILWAY CO.,ENGINEERING & DESIGN,$218.45 ,1/20/2015
BNSF RAILWAY CO.,CONSTRUCTION,"$170,596.70 ",1/20/2015
BNSF RAILWAY CO.,CONSTRUCTION,$126.09 ,1/20/2015
BNSF RAILWAY CO.,CONSTRUCTION,"$53,203.39 ",1/20/2015
BNSF RAILWAY CO.,MATERIALS & ASSETS - CAPITAL,"$3,293.04 ",1/29/2015
BNSF RAILWAY CO.,CONSTRUCTION,"$3,813.88 ",1/29/2015
BNSF RAILWAY CO.,MATERIALS & ASSETS - CAPITAL,"$15,875.89 ",2/19/2015
BNSF RAILWAY CO.,CONSTRUCTION,"$14,037.41 ",2/19/2015
BNSF RAILWAY CO.,MATERIALS & ASSETS - CAPITAL,"$15,086.95 ",4/23/2015
BNSF RAILWAY CO.,MATERIALS & ASSETS - CAPITAL,"$22,595.96 ",4/23/2015
BNSF RAILWAY CO.,MATERIALS & ASSETS - CAPITAL,"$123,280.64 ",4/23/2015
BNSF RAILWAY CO.,ENGINEERING & DESIGN,"$21,982.74 ",4/23/2015
BNSF RAILWAY CO.,CONSTRUCTION,"$25,349.77 ",4/23/2015
BNSF RAILWAY CO.,CONSTRUCTION,"$14,350.75 ",4/23/2015
BNSF RAILWAY CO.,CONSTRUCTION,"$715,067.44 ",4/23/2015
BNSF RAILWAY CO.,MATERIALS & ASSETS - CAPITAL,$759.76 ,5/4/2015
BNSF RAILWAY CO.,CONSTRUCTION,$661.06 ,5/4/2015
BNSF RAILWAY CO.,CONSTRUCTION,"$438,214.64 ",5/4/2015
BNSF RAILWAY CO.,CONSTRUCTION,"$25,143.70 ",5/4/2015
BNSF RAILWAY CO.,MATERIALS & ASSETS - CAPITAL,"$22,986.66 ",5/5/2015
BNSF RAILWAY CO.,MATERIALS & ASSETS - CAPITAL,"$131,774.36 ",5/5/2015
BNSF RAILWAY CO.,CONSTRUCTION,$42.03 ,5/5/2015
BNSF RAILWAY CO.,CONSTRUCTION,"$607,157.51 ",5/5/2015
BNSF RAILWAY CO.,CONSTRUCTION,"$11,396.40 ",5/11/2015
BNSF RAILWAY CO.,CONSTRUCTION,"$4,045.88 ",5/11/2015
BNSF RAILWAY CO.,CONSTRUCTION,"$198,354.62 ",5/11/2015
BNSF RAILWAY CO.,MATERIALS & ASSETS - CAPITAL,"$48,833.45 ",5/28/2015
BNSF RAILWAY CO.,MATERIALS & ASSETS - CAPITAL,"$33,213.77 ",5/28/2015
BNSF RAILWAY CO.,ENGINEERING & DESIGN,"$39,212.37 ",5/28/2015
BNSF RAILWAY CO.,CONSTRUCTION,"$225,779.16 ",5/28/2015
BNSF RAILWAY CO.,CONSTRUCTION,"$96,181.22 ",5/28/2015
BNSF RAILWAY CO.,CONSTRUCTION,"$178,550.01 ",5/28/2015
BNSF RAILWAY CO.,MATERIALS & ASSETS - CAPITAL,$228.63 ,6/2/2015
BNSF RAILWAY CO.,CONSTRUCTION,$144.56 ,6/2/2015
BNSF RAILWAY CO.,MATERIALS & ASSETS - CAPITAL,$768 ,6/8/2015
BNSF RAILWAY CO.,CONSTRUCTION,"$11,330.39 ",6/8/2015
BNSF RAILWAY CO.,CONSTRUCTION,"$1,821,570.89 ",6/8/2015
BNSF RAILWAY CO.,MATERIALS & ASSETS - CAPITAL,"$10,491.80 ",6/23/2015
BNSF RAILWAY CO.,MATERIALS & ASSETS - CAPITAL,"$23,787.42 ",6/23/2015
BNSF RAILWAY CO.,MATERIALS & ASSETS - CAPITAL,$670.64 ,6/23/2015
BNSF RAILWAY CO.,ENGINEERING & DESIGN,"$27,565.54 ",6/23/2015
BNSF RAILWAY CO.,CONSTRUCTION,"$119,380.40 ",6/23/2015
BNSF RAILWAY CO.,CONSTRUCTION,"$20,496.74 ",6/23/2015
BNSF RAILWAY CO.,CONSTRUCTION,"$18,949.17 ",6/23/2015
BNSF RAILWAY CO.,MATERIALS & ASSETS - CAPITAL,"$71,285.50 ",6/24/2015
BNSF RAILWAY CO.,CONSTRUCTION,"$32,784.51 ",6/24/2015
BNSF RAILWAY CO.,CONSTRUCTION,"$169,693.96 ",6/24/2015
BNSF RAILWAY CO.,MATERIALS & ASSETS - CAPITAL,"$1,485.04 ",6/25/2015
BNSF RAILWAY CO.,CONSTRUCTION,"$109,264.90 ",6/25/2015
BNSF RAILWAY CO.,CONSTRUCTION,"$56,559.22 ",6/25/2015
BNSF RAILWAY CO.,CONSTRUCTION,$267.01 ,6/30/2015
BNSF RAILWAY CO.,MATERIALS & ASSETS - CAPITAL,"$3,588.19 ",7/6/2015
BNSF RAILWAY CO.,CONSTRUCTION,$390.63 ,7/6/2015
BNSF RAILWAY CO.,CONSTRUCTION,"$31,417.35 ",7/6/2015
BNSF RAILWAY CO.,MATERIALS & ASSETS - CAPITAL,"$1,227.40 ",7/7/2015
BNSF RAILWAY CO.,MATERIALS & ASSETS - CAPITAL,"$140,107.95 ",7/23/2015
BNSF RAILWAY CO.,MATERIALS & ASSETS - CAPITAL,"$96,999.90 ",7/23/2015
BNSF RAILWAY CO.,ENGINEERING & DESIGN,"$27,026.63 ",7/23/2015
BNSF RAILWAY CO.,CONSTRUCTION,"$104,411.62 ",7/23/2015
BNSF RAILWAY CO.,CONSTRUCTION,"$1,653.16 ",7/23/2015
BNSF RAILWAY CO.,CONSTRUCTION,"$371,291.91 ",7/23/2015
BNSF RAILWAY CO.,CONSTRUCTION,"$9,014.73 ",7/23/2015
BNSF RAILWAY CO.,MATERIALS & ASSETS - CAPITAL,"$39,630.64 ",7/30/2015
BNSF RAILWAY CO.,CONSTRUCTION,"$151,389.48 ",7/30/2015
BNSF RAILWAY CO.,MATERIALS & ASSETS - CAPITAL,"$7,646.96 ",8/3/2015
BNSF RAILWAY CO.,MATERIALS & ASSETS - CAPITAL,"$54,770.16 ",8/3/2015
BNSF RAILWAY CO.,CONSTRUCTION,"$42,886.02 ",8/3/2015
BNSF RAILWAY CO.,CONSTRUCTION,"$6,912.41 ",8/4/2015
BNSF RAILWAY CO.,MATERIALS & ASSETS - CAPITAL,"$169,639.39 ",8/20/2015
BNSF RAILWAY CO.,MATERIALS & ASSETS - CAPITAL,"$23,368.36 ",8/20/2015
BNSF RAILWAY CO.,MATERIALS & ASSETS - CAPITAL,"$32,433.83 ",8/20/2015
BNSF RAILWAY CO.,CONSTRUCTION,"$194,206.16 ",8/20/2015
BNSF RAILWAY CO.,CONSTRUCTION,"$58,679.58 ",8/20/2015
BNSF RAILWAY CO.,CONSTRUCTION,"$326,829.47 ",8/20/2015
BNSF RAILWAY CO.,CONSTRUCTION,"$12,322.91 ",8/20/2015
BNSF RAILWAY CO.,MATERIALS & ASSETS - CAPITAL,"$55,843.62 ",10/8/2015
BNSF RAILWAY CO.,MATERIALS & ASSETS - CAPITAL,"$10,551.63 ",10/8/2015
BNSF RAILWAY CO.,ENGINEERING & DESIGN,"$19,425.46 ",10/8/2015
BNSF RAILWAY CO.,CONSTRUCTION,"$153,530.34 ",10/8/2015
BNSF RAILWAY CO.,CONSTRUCTION,$124.37 ,10/8/2015
BNSF RAILWAY CO.,MATERIALS & ASSETS - CAPITAL,"$311,291.49 ",10/12/2015
BNSF RAILWAY CO.,MATERIALS & ASSETS - CAPITAL,"$27,428.76 ",10/12/2015
BNSF RAILWAY CO.,ENGINEERING & DESIGN,"$2,625.41 ",10/12/2015
BNSF RAILWAY CO.,CONSTRUCTION,"$310,618.34 ",10/12/2015
BNSF RAILWAY CO.,CONSTRUCTION,"$171,194.21 ",10/12/2015
BNSF RAILWAY CO.,CONSTRUCTION,"$133,631.61 ",10/13/2015
BNSF RAILWAY CO.,MATERIALS & ASSETS - CAPITAL,"$2,219.50 ",10/19/2015
BNSF RAILWAY CO.,MATERIALS & ASSETS - CAPITAL,"$1,824.11 ",10/19/2015
BNSF RAILWAY CO.,CONSTRUCTION,"$51,036.28 ",10/19/2015
BNSF RAILWAY CO.,CONSTRUCTION,"$431,125.25 ",10/19/2015
BNSF RAILWAY CO.,MATERIALS & ASSETS - CAPITAL,"$46,404.74 ",10/22/2015
BNSF RAILWAY CO.,MATERIALS & ASSETS - CAPITAL,"$5,798.07 ",10/22/2015
BNSF RAILWAY CO.,CONSTRUCTION,"$96,669.15 ",10/22/2015
BNSF RAILWAY CO.,CONSTRUCTION,"$221,773.84 ",10/22/2015
BNSF RAILWAY CO.,MATERIALS & ASSETS - CAPITAL,"$2,315.92 ",10/28/2015
BNSF RAILWAY CO.,CONSTRUCTION,"$44,915.81 ",10/28/2015
BNSF RAILWAY CO.,CONSTRUCTION,"$81,619.75 ",11/10/2015
BNSF RAILWAY CO.,MATERIALS & ASSETS - CAPITAL,"$358,941 ",11/16/2015
BNSF RAILWAY CO.,MATERIALS & ASSETS - CAPITAL,"$13,801.18 ",11/16/2015
BNSF RAILWAY CO.,CONSTRUCTION,"$304,089.93 ",11/16/2015
BNSF RAILWAY CO.,CONSTRUCTION,"$314,970.04 ",11/16/2015
BNSF RAILWAY CO.,CONSTRUCTION,"$23,032.77 ",11/17/2015
BNSF RAILWAY CO.,CONSTRUCTION,"$29,193.55 ",12/2/2015
BNSF RAILWAY CO.,CONSTRUCTION,"$237,384.75 ",12/2/2015
BNSF RAILWAY CO.,MATERIALS & ASSETS - CAPITAL,"$5,541.43 ",12/7/2015
BNSF RAILWAY CO.,MATERIALS & ASSETS - CAPITAL,"$1,714.77 ",12/7/2015
BNSF RAILWAY CO.,CONSTRUCTION,"$149,060.60 ",12/7/2015
BNSF RAILWAY CO.,CONSTRUCTION,"$143,280.74 ",12/7/2015
BNSF RAILWAY CO.,CONSTRUCTION,"$83,169.30 ",12/7/2015
BNSF RAILWAY CO.,MATERIALS & ASSETS - CAPITAL,"$18,389.15 ",12/16/2015
BNSF RAILWAY CO.,MATERIALS & ASSETS - CAPITAL,"$12,772.75 ",12/16/2015
BNSF RAILWAY CO.,ENGINEERING & DESIGN,"$12,710.45 ",12/16/2015
BNSF RAILWAY CO.,CONSTRUCTION,"$315,394.16 ",12/16/2015
BNSF RAILWAY CO.,CONSTRUCTION,"$7,335.99 ",12/16/2015
BNSF RAILWAY CO.,CONSTRUCTION,"$178,686.14 ",12/16/2015
BNSF RAILWAY CO.,CONSTRUCTION,"$2,774.29 ",12/17/2015
BNSF RAILWAY CO.,CONSTRUCTION,"$36,920.66 ",12/17/2015
BOARD OF CERTIFIED SAFTY,PROFESSIONAL SERVICES,$160 ,9/28/2015
"BOLLER CONSTRUCTION CO., INC.",OUTSIDE SERVICES - CAPITAL,"$37,354.47 ",2/4/2015
"BOLLER CONSTRUCTION CO., INC.",OUTSIDE SERVICES - CAPITAL,"$28,188.15 ",3/5/2015
"BOLLER CONSTRUCTION CO., INC.",OUTSIDE SERVICES - CAPITAL,"$6,332.53 ",8/3/2015
"BOLLER CONSTRUCTION CO., INC.",CONSTRUCTION,"$55,000 ",11/16/2015
BOMA/CHICAGO,OUTSIDE SERVICES,"$2,405 ",1/12/2015
BOMA/CHICAGO,OUTSIDE SERVICES,"$2,405 ",12/22/2015
"BOWMAN, BARRETT & ASSOC.",ENGINEERING & DESIGN,"$2,254.06 ",2/10/2015
"BOWMAN, BARRETT & ASSOC.",MATERIALS - NON-INVENTORY,"$1,867.70 ",3/2/2015
"BOWMAN, BARRETT & ASSOC.",MATERIALS - NON-INVENTORY,"$2,313.76 ",3/16/2015
"BOWMAN, BARRETT & ASSOC.",ENGINEERING & DESIGN,"$17,356.77 ",6/23/2015
"BOWMAN, BARRETT & ASSOC.",ENGINEERING & DESIGN,"$7,458.74 ",8/3/2015
"BOWMAN, BARRETT & ASSOC.",ENGINEERING & DESIGN,"$40,099.16 ",10/28/2015
"BOWMAN, BARRETT & ASSOC.",ENG. MANAGEMENT & INSPECTIONS,"$65,736.48 ",12/16/2015
"BRABAZON PUMPE CO., LTD.",MATERIALS - NON-INVENTORY,$702.18 ,1/20/2015
"BRABAZON PUMPE CO., LTD.",MATERIALS - INVENTORY,"$24,550 ",1/22/2015
"BRABAZON PUMPE CO., LTD.",MATERIALS - INVENTORY,"$24,220 ",2/23/2015
"BRABAZON PUMPE CO., LTD.",OUTSIDE SERVICES,$231 ,2/26/2015
"BRABAZON PUMPE CO., LTD.",MATERIALS - INVENTORY,"$18,165 ",4/13/2015
"BRABAZON PUMPE CO., LTD.",MATERIALS - INVENTORY,"$3,268.80 ",4/27/2015
"BRABAZON PUMPE CO., LTD.",MATERIALS - INVENTORY,"$1,754 ",6/8/2015
"BRABAZON PUMPE CO., LTD.",MATERIALS - INVENTORY,"$12,110 ",6/15/2015
"BRABAZON PUMPE CO., LTD.",MATERIALS - INVENTORY,"$12,110 ",7/20/2015
"BRABAZON PUMPE CO., LTD.",MATERIALS - INVENTORY,"$4,290 ",7/23/2015
"BRABAZON PUMPE CO., LTD.",OUTSIDE SERVICES,"$3,723.49 ",7/23/2015
"BRABAZON PUMPE CO., LTD.",MATERIALS - INVENTORY,$248 ,8/17/2015
"BRABAZON PUMPE CO., LTD.",OUTSIDE SERVICES,$609 ,8/19/2015
"BRABAZON PUMPE CO., LTD.",OUTSIDE SERVICES,"$1,449.19 ",8/26/2015
"BRABAZON PUMPE CO., LTD.",MATERIALS - INVENTORY,"$1,330.92 ",9/16/2015
"BRABAZON PUMPE CO., LTD.",MATERIALS - INVENTORY,"$6,055 ",9/28/2015
"BRABAZON PUMPE CO., LTD.",OUTSIDE SERVICES,$283.39 ,10/22/2015
"BRABAZON PUMPE CO., LTD.",OUTSIDE SERVICES,"$1,373.51 ",11/2/2015
"BRABAZON PUMPE CO., LTD.",MATERIALS - INVENTORY,"$12,110 ",11/23/2015
"BRASCO INTERNATIONAL, INC.",MATERIALS & ASSETS - CAPITAL,"$8,750 ",3/12/2015
"BROADBLAST, INC.",MATERIALS - NON-INVENTORY,$391.63 ,1/5/2015
"BROADBLAST, INC.",MATERIALS - NON-INVENTORY,"$8,096 ",1/12/2015
"BROADBLAST, INC.",MATERIALS - NON-INVENTORY,$362.08 ,9/14/2015
"BRONNER GROUP, LLC",PROFESSIONAL SERVICES,"$35,135 ",2/3/2015
"BRONNER GROUP, LLC",PROFESSIONAL SERVICES,"$35,280 ",3/4/2015
"BRONNER GROUP, LLC",PROFESSIONAL SERVICES,"$43,845 ",4/9/2015
"BRONNER GROUP, LLC",PROFESSIONAL SERVICES,"$45,295 ",5/14/2015
"BRONNER GROUP, LLC",PROFESSIONAL SERVICES,"$42,517.50 ",6/1/2015
"BRONNER GROUP, LLC",PROFESSIONAL SERVICES,"$27,020 ",6/15/2015
"BRONNER GROUP, LLC",PROFESSIONAL SERVICES,"$60,507.50 ",7/20/2015
"BRONNER GROUP, LLC",PROFESSIONAL SERVICES,"$59,118.75 ",8/19/2015
"BRONNER GROUP, LLC",PROFESSIONAL SERVICES,"$58,890 ",10/1/2015
"BRONNER GROUP, LLC",PROFESSIONAL SERVICES,"$74,480 ",11/11/2015
"BRONNER GROUP, LLC",PROFESSIONAL SERVICES,"$75,870 ",12/9/2015
BUD'S BODY SHOP SUPPLY & PAINT,MATERIALS - NON-INVENTORY,"$1,864.50 ",3/9/2015
BUFFALO GROVE LINCOLNSHIRE CHAMBER,MISCELLANEOUS OTHER EXPENSE,"$1,500 ",6/25/2015
BULLETIN,MISCELLANEOUS OTHER EXPENSE,$80 ,2/24/2015
"BUREAU VERITAS NORTH AMERICA, INC.",ENG. MANAGEMENT & INSPECTIONS,"$2,451.98 ",1/29/2015
"BUREAU VERITAS NORTH AMERICA, INC.",ENG. MANAGEMENT & INSPECTIONS,"$1,659.56 ",2/10/2015
"BUREAU VERITAS NORTH AMERICA, INC.",ENG. MANAGEMENT & INSPECTIONS,"$2,820.80 ",3/23/2015
"BUREAU VERITAS NORTH AMERICA, INC.",ENG. MANAGEMENT & INSPECTIONS,"$3,077.37 ",5/14/2015
"BUREAU VERITAS NORTH AMERICA, INC.",ENG. MANAGEMENT & INSPECTIONS,"$2,801.01 ",6/15/2015
"BUREAU VERITAS NORTH AMERICA, INC.",ENG. MANAGEMENT & INSPECTIONS,"$2,189.83 ",6/30/2015
"BUREAU VERITAS NORTH AMERICA, INC.",ENG. MANAGEMENT & INSPECTIONS,"$2,679.35 ",7/22/2015
BURNS & MCDONNELL ENGINEERING CO.,ENGINEERING & DESIGN,"$9,933.46 ",7/14/2015
BURNS & MCDONNELL ENGINEERING CO.,ENGINEERING & DESIGN,"$25,713.84 ",11/10/2015
BURNS & MCDONNELL ENGINEERING CO.,ENGINEERING & DESIGN,"$50,138.73 ",11/18/2015
BURNS & MCDONNELL ENGINEERING CO.,ENGINEERING & DESIGN,"$16,040.91 ",12/7/2015
BURRIS EQUIPMENT CO.,MATERIALS - INVENTORY,"$2,628 ",4/14/2015
BURRIS EQUIPMENT CO.,MISCELLANEOUS OTHER EXPENSE,$490 ,4/14/2015
BURRIS EQUIPMENT CO.,MATERIALS - NON-INVENTORY,$517.65 ,6/4/2015
BURRIS EQUIPMENT CO.,MISCELLANEOUS OTHER EXPENSE,$35 ,6/4/2015
BURRIS EQUIPMENT CO.,RENTAL EXPENSE,"$1,814.40 ",6/22/2015
BURRIS EQUIPMENT CO.,RENTAL EXPENSE,"$1,814.40 ",8/5/2015
BURRIS EQUIPMENT CO.,RENTAL EXPENSE,"$1,814.40 ",8/10/2015
BURRIS EQUIPMENT CO.,RENTAL EXPENSE,"$2,016 ",9/28/2015
BURRIS EQUIPMENT CO.,RENTAL EXPENSE,"$3,830.40 ",9/28/2015
BURRIS EQUIPMENT CO.,RENTAL EXPENSE,"$3,830.40 ",11/2/2015
BURRIS EQUIPMENT CO.,RENTAL EXPENSE,"$2,934.40 ",11/23/2015
BURWOOD GROUP,OUTSIDE SERVICES,"$25,158.60 ",3/9/2015
BUSINESS AND LEGAL RESOURCES,MISCELLANEOUS OTHER EXPENSE,$219 ,1/21/2015
BUSINESS 21 PUBLISHING,PROFESSIONAL SERVICES,$404 ,4/2/2015
"CA, INC.",PROFESSIONAL SERVICES,"$70,854 ",11/17/2015
CALAMP WIRELESS NETWORKS CORP.,MATERIALS & ASSETS - CAPITAL,"$713,450 ",3/23/2015
CALAMP WIRELESS NETWORKS CORP.,MATERIALS & ASSETS - CAPITAL,"$356,725 ",6/15/2015
CALAMP WIRELESS NETWORKS CORP.,MATERIALS & ASSETS - CAPITAL,"$356,725 ",7/20/2015
CALAMP WIRELESS NETWORKS CORP.,MATERIALS & ASSETS - CAPITAL,"$356,725 ",8/6/2015
CALAMP WIRELESS NETWORKS CORP.,MATERIALS & ASSETS - CAPITAL,"$356,725 ",9/8/2015
CALAMP WIRELESS NETWORKS CORP.,MATERIALS & ASSETS - CAPITAL,"$356,725 ",10/19/2015
CALAMP WIRELESS NETWORKS CORP.,MATERIALS & ASSETS - CAPITAL,"$356,725 ",11/9/2015
CALAMP WIRELESS NETWORKS CORP.,MATERIALS & ASSETS - CAPITAL,"$89,126.40 ",11/16/2015
"CALUMET LIFT TRUCK SERVICE CO.,INC.",OUTSIDE SERVICES,$457.47 ,10/19/2015
"CALUMET LIFT TRUCK SERVICE CO.,INC.",OUTSIDE SERVICES,"$3,686.32 ",11/11/2015
"CALUMET LIFT TRUCK SERVICE CO.,INC.",OUTSIDE SERVICES,$605.94 ,12/9/2015
CANADIAN PACIFIC RAILWAY,OUTSIDE SERVICES,"$33,947.18 ",1/6/2015
CANADIAN PACIFIC RAILWAY,OUTSIDE SERVICES,"$44,298 ",8/5/2015
CANADIAN PACIFIC RAILWAY,OUTSIDE SERVICES,"$46,145 ",12/3/2015
"CANON SOLUTIONS AMERICA, INC.",RENTAL EXPENSE,$73.47 ,1/12/2015
"CANON SOLUTIONS AMERICA, INC.",RENTAL EXPENSE,"$3,098.78 ",1/15/2015
"CANON SOLUTIONS AMERICA, INC.",RENTAL EXPENSE,$75.31 ,2/19/2015
"CANON SOLUTIONS AMERICA, INC.",RENTAL EXPENSE,$75.31 ,3/2/2015
"CANON SOLUTIONS AMERICA, INC.",RENTAL EXPENSE,$150.62 ,4/23/2015
"CANON SOLUTIONS AMERICA, INC.",OUTSIDE SERVICES,"$4,217.77 ",4/27/2015
"CANON SOLUTIONS AMERICA, INC.",OUTSIDE SERVICES,"$4,600.82 ",6/3/2015
"CANON SOLUTIONS AMERICA, INC.",RENTAL EXPENSE,$75.31 ,6/3/2015
"CANON SOLUTIONS AMERICA, INC.",RENTAL EXPENSE,$75.31 ,7/6/2015
"CANON SOLUTIONS AMERICA, INC.",OUTSIDE SERVICES,"$2,312.09 ",7/13/2015
"CANON SOLUTIONS AMERICA, INC.",RENTAL EXPENSE,$75.31 ,8/6/2015
"CANON SOLUTIONS AMERICA, INC.",OUTSIDE SERVICES,"$1,716.56 ",8/24/2015
"CANON SOLUTIONS AMERICA, INC.",OUTSIDE SERVICES,"$3,017.18 ",9/15/2015
"CANON SOLUTIONS AMERICA, INC.",OUTSIDE SERVICES,"$1,881.02 ",9/21/2015
"CANON SOLUTIONS AMERICA, INC.",OUTSIDE SERVICES,"$1,907.94 ",10/13/2015
"CANON SOLUTIONS AMERICA, INC.",RENTAL EXPENSE,$75.31 ,10/13/2015
"CANON SOLUTIONS AMERICA, INC.",OUTSIDE SERVICES,"$2,195.41 ",10/27/2015
"CANON SOLUTIONS AMERICA, INC.",RENTAL EXPENSE,$75.31 ,10/27/2015
"CANON SOLUTIONS AMERICA, INC.",OUTSIDE SERVICES,$75.31 ,11/30/2015
"CANON SOLUTIONS AMERICA, INC.",OUTSIDE SERVICES,"$2,314.25 ",12/1/2015
CAPRICORN COMMUNICATIONS,PROFESSIONAL SERVICES,"$20,000 ",1/29/2015
CAPRICORN COMMUNICATIONS,PROFESSIONAL SERVICES,"$30,000 ",5/15/2015
CAPRICORN COMMUNICATIONS,PROFESSIONAL SERVICES,"$10,000 ",5/29/2015
CAPRICORN COMMUNICATIONS,PROFESSIONAL SERVICES,"$10,000 ",6/11/2015
CAPRICORN COMMUNICATIONS,PROFESSIONAL SERVICES,"$20,000 ",8/14/2015
CAPRICORN COMMUNICATIONS,PROFESSIONAL SERVICES,"$10,000 ",10/9/2015
CAPRICORN COMMUNICATIONS,PROFESSIONAL SERVICES,"$20,000 ",12/4/2015
CARAHSOFT TECHNOLOGY CORP,MATERIALS & ASSETS - CAPITAL,"$94,625.30 ",8/20/2015
CARDIAC SCIENCE CORP.,OUTSIDE SERVICES,"$47,840 ",9/1/2015
CARDIAC SCIENCE CORP.,OUTSIDE SERVICES,"$10,608 ",12/16/2015
CARDINAL COLORPRINT,OUTSIDE SERVICES,"$26,722 ",2/24/2015
CARDINAL COLORPRINT,OUTSIDE SERVICES,"$20,582.95 ",3/19/2015
CARDINAL COLORPRINT,OUTSIDE SERVICES,"$5,357.50 ",3/26/2015
CARDINAL COLORPRINT,OUTSIDE SERVICES,"$4,072.50 ",4/13/2015
CARDINAL COLORPRINT,OUTSIDE SERVICES,"$14,010.30 ",4/27/2015
CARDINAL COLORPRINT,OUTSIDE SERVICES,"$1,699 ",5/12/2015
CARDINAL COLORPRINT,OUTSIDE SERVICES,"$1,459 ",5/26/2015
CARDINAL COLORPRINT,OUTSIDE SERVICES,"$11,333.75 ",5/27/2015
CARDINAL COLORPRINT,OUTSIDE SERVICES - CAPITAL,"$2,238.75 ",6/15/2015
CARDINAL COLORPRINT,OUTSIDE SERVICES - CAPITAL,"$1,416.24 ",6/22/2015
CARDINAL COLORPRINT,OUTSIDE SERVICES,"$5,167.30 ",6/25/2015
CARDINAL COLORPRINT,OUTSIDE SERVICES,"$4,145 ",6/29/2015
CARDINAL COLORPRINT,OUTSIDE SERVICES,"$3,475 ",7/6/2015
CARDINAL COLORPRINT,OUTSIDE SERVICES - CAPITAL,"$1,028.97 ",7/9/2015
CARDINAL COLORPRINT,OUTSIDE SERVICES,$798.25 ,7/9/2015
CARDINAL COLORPRINT,OUTSIDE SERVICES,"$4,426.30 ",7/13/2015
CARDINAL COLORPRINT,OUTSIDE SERVICES,"$2,189.05 ",8/19/2015
CARDINAL COLORPRINT,OUTSIDE SERVICES,"$2,551.31 ",8/24/2015
CARDINAL COLORPRINT,OUTSIDE SERVICES,"$6,721.10 ",9/8/2015
CARDINAL COLORPRINT,OUTSIDE SERVICES - CAPITAL,"$1,890 ",9/24/2015
CARDINAL COLORPRINT,OUTSIDE SERVICES,"$1,702.85 ",9/24/2015
CARDINAL COLORPRINT,OUTSIDE SERVICES,"$1,672.85 ",10/15/2015
CARDINAL COLORPRINT,OUTSIDE SERVICES,"$1,625 ",10/20/2015
CARDINAL COLORPRINT,OUTSIDE SERVICES,"$4,043.10 ",10/26/2015
CARDINAL COLORPRINT,MISCELLANEOUS OTHER EXPENSE,"$1,282.35 ",10/26/2015
CARDINAL COLORPRINT,OUTSIDE SERVICES,"$6,941.40 ",12/15/2015
CARDINAL COLORPRINT,OUTSIDE SERVICES,"$8,432.35 ",12/29/2015
"CARNOW, CONIBEAR & ASSOC., LTD.",PROFESSIONAL SERVICES,"$1,736.62 ",1/5/2015
"CARNOW, CONIBEAR & ASSOC., LTD.",PROFESSIONAL SERVICES,$372.59 ,1/12/2015
"CARNOW, CONIBEAR & ASSOC., LTD.",PROFESSIONAL SERVICES,"$1,128.73 ",1/26/2015
"CARNOW, CONIBEAR & ASSOC., LTD.",PROFESSIONAL SERVICES,"$2,787.79 ",2/25/2015
"CARNOW, CONIBEAR & ASSOC., LTD.",PROFESSIONAL SERVICES,$531.20 ,3/2/2015
"CARNOW, CONIBEAR & ASSOC., LTD.",PROFESSIONAL SERVICES,"$2,975.51 ",3/31/2015
"CARNOW, CONIBEAR & ASSOC., LTD.",PROFESSIONAL SERVICES,"$1,071.21 ",5/12/2015
"CARNOW, CONIBEAR & ASSOC., LTD.",PROFESSIONAL SERVICES,"$5,775.89 ",6/9/2015
"CARNOW, CONIBEAR & ASSOC., LTD.",PROFESSIONAL SERVICES,$82.40 ,6/24/2015
"CARNOW, CONIBEAR & ASSOC., LTD.",PROFESSIONAL SERVICES,"$1,097.31 ",7/13/2015
"CARNOW, CONIBEAR & ASSOC., LTD.",PROFESSIONAL SERVICES,"$1,243.52 ",7/20/2015
"CARNOW, CONIBEAR & ASSOC., LTD.",PROFESSIONAL SERVICES,"$4,866.48 ",7/22/2015
"CARNOW, CONIBEAR & ASSOC., LTD.",PROFESSIONAL SERVICES,"$1,097.31 ",8/5/2015
"CARNOW, CONIBEAR & ASSOC., LTD.",PROFESSIONAL SERVICES,$958.03 ,8/27/2015
"CARNOW, CONIBEAR & ASSOC., LTD.",PROFESSIONAL SERVICES,$428.35 ,9/24/2015
"CARNOW, CONIBEAR & ASSOC., LTD.",PROFESSIONAL SERVICES,"$4,453.42 ",10/5/2015
"CARNOW, CONIBEAR & ASSOC., LTD.",PROFESSIONAL SERVICES,"$1,958.51 ",10/6/2015
"CARNOW, CONIBEAR & ASSOC., LTD.",PROFESSIONAL SERVICES,"$3,200 ",11/24/2015
"CARNOW, CONIBEAR & ASSOC., LTD.",PROFESSIONAL SERVICES,"$7,263.89 ",12/16/2015
CAROL ANN MARKETING,MISCELLANEOUS OTHER EXPENSE,$75.60 ,1/26/2015
CAROL ANN MARKETING,MISCELLANEOUS OTHER EXPENSE,$98 ,6/29/2015
CAROL ANN MARKETING,MISCELLANEOUS OTHER EXPENSE,$464.45 ,10/13/2015
CAVALRY FIRE PROTECTION SERVICES,OUTSIDE SERVICES,$140 ,1/5/2015
CAVALRY FIRE PROTECTION SERVICES,OUTSIDE SERVICES,"$1,216.50 ",1/5/2015
CAVALRY FIRE PROTECTION SERVICES,OUTSIDE SERVICES,"$1,566.50 ",1/20/2015
CAVALRY FIRE PROTECTION SERVICES,OUTSIDE SERVICES,$125 ,1/26/2015
CAVALRY FIRE PROTECTION SERVICES,OUTSIDE SERVICES,$79 ,1/29/2015
CAVALRY FIRE PROTECTION SERVICES,OUTSIDE SERVICES,$359 ,2/9/2015
CAVALRY FIRE PROTECTION SERVICES,OUTSIDE SERVICES,$251 ,2/9/2015
CAVALRY FIRE PROTECTION SERVICES,OUTSIDE SERVICES,"$1,080.50 ",2/11/2015
CAVALRY FIRE PROTECTION SERVICES,OUTSIDE SERVICES,$424.50 ,2/23/2015
CAVALRY FIRE PROTECTION SERVICES,OUTSIDE SERVICES,"$1,239.50 ",2/23/2015
CAVALRY FIRE PROTECTION SERVICES,OUTSIDE SERVICES,$74 ,3/3/2015
CAVALRY FIRE PROTECTION SERVICES,OUTSIDE SERVICES,$84 ,3/3/2015
CAVALRY FIRE PROTECTION SERVICES,OUTSIDE SERVICES,$145 ,4/13/2015
CAVALRY FIRE PROTECTION SERVICES,OUTSIDE SERVICES,$95 ,4/27/2015
CAVALRY FIRE PROTECTION SERVICES,OUTSIDE SERVICES,"$1,394 ",4/27/2015
CAVALRY FIRE PROTECTION SERVICES,OUTSIDE SERVICES,$408 ,4/28/2015
CAVALRY FIRE PROTECTION SERVICES,OUTSIDE SERVICES,"$2,103.50 ",5/18/2015
CAVALRY FIRE PROTECTION SERVICES,OUTSIDE SERVICES,$902 ,5/18/2015
CAVALRY FIRE PROTECTION SERVICES,OUTSIDE SERVICES,"$1,626 ",5/26/2015
CAVALRY FIRE PROTECTION SERVICES,OUTSIDE SERVICES,"$2,353 ",5/26/2015
CAVALRY FIRE PROTECTION SERVICES,OUTSIDE SERVICES,$110 ,6/15/2015
CAVALRY FIRE PROTECTION SERVICES,OUTSIDE SERVICES,$271 ,6/18/2015
CAVALRY FIRE PROTECTION SERVICES,OUTSIDE SERVICES,$354 ,6/30/2015
CAVALRY FIRE PROTECTION SERVICES,OUTSIDE SERVICES,$175 ,7/13/2015
CAVALRY FIRE PROTECTION SERVICES,OUTSIDE SERVICES,$476 ,7/13/2015
CAVALRY FIRE PROTECTION SERVICES,OUTSIDE SERVICES,$160 ,7/13/2015
CAVALRY FIRE PROTECTION SERVICES,OUTSIDE SERVICES,$115 ,8/3/2015
CAVALRY FIRE PROTECTION SERVICES,OUTSIDE SERVICES,$91 ,8/20/2015
CAVALRY FIRE PROTECTION SERVICES,OUTSIDE SERVICES,$280.50 ,8/20/2015
CAVALRY FIRE PROTECTION SERVICES,OUTSIDE SERVICES,$240.50 ,8/20/2015
CAVALRY FIRE PROTECTION SERVICES,OUTSIDE SERVICES,$329 ,9/14/2015
CAVALRY FIRE PROTECTION SERVICES,OUTSIDE SERVICES,$94 ,9/28/2015
CAVALRY FIRE PROTECTION SERVICES,OUTSIDE SERVICES,$116 ,9/28/2015
CAVALRY FIRE PROTECTION SERVICES,OUTSIDE SERVICES,$166 ,9/28/2015
CAVALRY FIRE PROTECTION SERVICES,OUTSIDE SERVICES,$89 ,9/28/2015
CAVALRY FIRE PROTECTION SERVICES,OUTSIDE SERVICES,$365 ,10/5/2015
CAVALRY FIRE PROTECTION SERVICES,OUTSIDE SERVICES,$839 ,10/5/2015
CAVALRY FIRE PROTECTION SERVICES,OUTSIDE SERVICES,$160 ,11/2/2015
CAVALRY FIRE PROTECTION SERVICES,OUTSIDE SERVICES,$79 ,11/4/2015
CAVALRY FIRE PROTECTION SERVICES,OUTSIDE SERVICES,$642 ,11/12/2015
CAVALRY FIRE PROTECTION SERVICES,OUTSIDE SERVICES,$772.50 ,11/30/2015
CAVALRY FIRE PROTECTION SERVICES,OUTSIDE SERVICES,"$4,977 ",12/3/2015
CAVALRY FIRE PROTECTION SERVICES,OUTSIDE SERVICES,"$2,040 ",12/10/2015
CAVALRY FIRE PROTECTION SERVICES,OUTSIDE SERVICES,$90 ,12/29/2015
CAVALRY FIRE PROTECTION SERVICES,OUTSIDE SERVICES,$300 ,12/29/2015
CAVALRY FIRE PROTECTION SERVICES,OUTSIDE SERVICES,$785 ,12/29/2015
CAVALRY FIRE PROTECTION SERVICES,OUTSIDE SERVICES,"$2,234 ",12/29/2015
CAVALRY FIRE PROTECTION SERVICES,OUTSIDE SERVICES,$84 ,12/29/2015
CBT NUGGETS LLC,RENTAL EXPENSE,"$4,930 ",11/16/2015
CDECI,OUTSIDE SERVICES,"$3,827.95 ",1/13/2015
CDECI,OUTSIDE SERVICES,"$4,237.10 ",2/25/2015
CDECI,OUTSIDE SERVICES,"$2,806.61 ",3/26/2015
CDECI,OUTSIDE SERVICES,"$8,569.42 ",4/29/2015
CDECI,OUTSIDE SERVICES,"$7,849.37 ",5/21/2015
CDECI,OUTSIDE SERVICES,"$9,269.16 ",5/26/2015
CDECI,OUTSIDE SERVICES,"$6,300.69 ",6/8/2015
CDECI,OUTSIDE SERVICES,"$18,051.93 ",7/7/2015
CDECI,OUTSIDE SERVICES,"$2,436.72 ",7/9/2015
CDECI,OUTSIDE SERVICES,"$3,715.37 ",8/12/2015
CDECI,OUTSIDE SERVICES,"$22,558.23 ",8/26/2015
CDECI,OUTSIDE SERVICES,"$5,202.40 ",10/12/2015
CDECI,OUTSIDE SERVICES,"$21,636.72 ",10/19/2015
CDECI,OUTSIDE SERVICES,"$17,912.05 ",11/24/2015
CDECI,OUTSIDE SERVICES,"$7,506.84 ",12/17/2015
"CDM SMITH, INC.",MATERIALS - NON-INVENTORY,$36.21 ,2/26/2015
"CDM SMITH, INC.",ENGINEERING & DESIGN,"$36,247.48 ",3/24/2015
"CDM SMITH, INC.",MATERIALS - NON-INVENTORY,$33.77 ,3/26/2015
"CDM SMITH, INC.",ENGINEERING & DESIGN,"$20,724.89 ",10/26/2015
"CDM SMITH, INC.",ENGINEERING & DESIGN,"$16,073.45 ",12/10/2015
"CDW GOVERNMENT, LLC",OUTSIDE SERVICES,"$1,073.55 ",2/2/2015
"CDW GOVERNMENT, LLC",MISCELLANEOUS OTHER EXPENSE,"$571,980.84 ",2/10/2015
"CDW GOVERNMENT, LLC",MATERIALS - NON-INVENTORY,"$7,415.40 ",3/12/2015
"CDW GOVERNMENT, LLC",MATERIALS & ASSETS - CAPITAL,"$1,877 ",3/16/2015
"CDW GOVERNMENT, LLC",MATERIALS & ASSETS - CAPITAL,"$34,681 ",4/13/2015
"CDW GOVERNMENT, LLC",MATERIALS - NON-INVENTORY,$870.47 ,4/13/2015
"CDW GOVERNMENT, LLC",OUTSIDE SERVICES,"$6,107.94 ",4/28/2015
"CDW GOVERNMENT, LLC",OUTSIDE SERVICES,$486.04 ,4/28/2015
"CDW GOVERNMENT, LLC",MISCELLANEOUS OTHER EXPENSE,$38.32 ,4/28/2015
"CDW GOVERNMENT, LLC",MATERIALS & ASSETS - CAPITAL,"$5,440 ",5/6/2015
"CDW GOVERNMENT, LLC",OUTSIDE SERVICES,"$9,132.96 ",5/11/2015
"CDW GOVERNMENT, LLC",PROFESSIONAL SERVICES,"$1,986.89 ",5/11/2015
"CDW GOVERNMENT, LLC",OUTSIDE SERVICES,$902.09 ,5/18/2015
"CDW GOVERNMENT, LLC",MATERIALS & ASSETS - CAPITAL,"$51,020 ",5/20/2015
"CDW GOVERNMENT, LLC",MATERIALS - NON-INVENTORY,"$2,508 ",6/1/2015
"CDW GOVERNMENT, LLC",MISCELLANEOUS OTHER EXPENSE,$518.70 ,6/8/2015
"CDW GOVERNMENT, LLC",MISCELLANEOUS OTHER EXPENSE,"$2,004.80 ",7/2/2015
"CDW GOVERNMENT, LLC",MATERIALS & ASSETS - CAPITAL,"$10,000 ",7/21/2015
"CDW GOVERNMENT, LLC",MATERIALS & ASSETS - CAPITAL,"$4,791.30 ",7/27/2015
"CDW GOVERNMENT, LLC",MATERIALS - NON-INVENTORY,"$6,011.68 ",7/28/2015
"CDW GOVERNMENT, LLC",MISCELLANEOUS OTHER EXPENSE,"$7,225.77 ",7/30/2015
"CDW GOVERNMENT, LLC",MISCELLANEOUS OTHER EXPENSE,$524.86 ,10/5/2015
"CDW GOVERNMENT, LLC",MATERIALS & ASSETS - CAPITAL,"$2,170.82 ",10/12/2015
"CDW GOVERNMENT, LLC",MATERIALS - NON-INVENTORY,$819.52 ,10/12/2015
"CDW GOVERNMENT, LLC",MISCELLANEOUS OTHER EXPENSE,$713.77 ,10/13/2015
"CDW GOVERNMENT, LLC",MATERIALS & ASSETS - CAPITAL,"$316,890.42 ",10/29/2015
"CDW GOVERNMENT, LLC",MISCELLANEOUS OTHER EXPENSE,"$2,796.12 ",11/9/2015
"CDW GOVERNMENT, LLC",MATERIALS & ASSETS - CAPITAL,"$8,975.60 ",11/10/2015
"CDW GOVERNMENT, LLC",MATERIALS & ASSETS - CAPITAL,"$2,458.21 ",11/16/2015
"CDW GOVERNMENT, LLC",MISCELLANEOUS OTHER EXPENSE,"$571,486.30 ",11/24/2015
"CDW GOVERNMENT, LLC",MATERIALS & ASSETS - CAPITAL,"$3,156.76 ",12/7/2015
"CDW GOVERNMENT, LLC",MATERIALS - NON-INVENTORY,"$2,321.92 ",12/7/2015
"CDW GOVERNMENT, LLC",MATERIALS - NON-INVENTORY,$224.46 ,12/10/2015
"CDW GOVERNMENT, LLC",MISCELLANEOUS OTHER EXPENSE,"$1,556.16 ",12/10/2015
"CDW GOVERNMENT, LLC",MATERIALS & ASSETS - CAPITAL,"$3,780.40 ",12/15/2015
"CDW GOVERNMENT, LLC",MISCELLANEOUS OTHER EXPENSE,"$22,038.30 ",12/15/2015
"CDW GOVERNMENT, LLC",MATERIALS - NON-INVENTORY,$202.08 ,12/21/2015
CENTRAL PARKING SYSTEM,RENTAL EXPENSE,"$1,825 ",8/10/2015
CENTRAL PARKING SYSTEM,RENTAL EXPENSE,"$1,825 ",9/8/2015
CENTRAL SALES & SERVICE INC.,MATERIALS - INVENTORY,"$2,771.54 ",1/7/2015
CENTRAL SALES & SERVICE INC.,MATERIALS - INVENTORY,"$1,466.25 ",1/14/2015
CENTRAL SALES & SERVICE INC.,MATERIALS & ASSETS - CAPITAL,"$29,888.10 ",1/20/2015
CENTRAL SALES & SERVICE INC.,MATERIALS & ASSETS - CAPITAL,"$33,893.40 ",1/21/2015
CENTRAL SALES & SERVICE INC.,MATERIALS - INVENTORY,"$1,173 ",2/24/2015
CENTRAL SALES & SERVICE INC.,MATERIALS - INVENTORY,$191.20 ,4/27/2015
CENTRAL SALES & SERVICE INC.,MATERIALS - INVENTORY,$355.68 ,8/3/2015
CENTRAL SALES & SERVICE INC.,MATERIALS - INVENTORY,$996.48 ,9/28/2015
CENTRAL SALES & SERVICE INC.,MATERIALS - INVENTORY,$114.72 ,10/13/2015
CENTRAL SALES & SERVICE INC.,MATERIALS & ASSETS - CAPITAL,"$23,946.26 ",10/19/2015
CENTRAL SALES & SERVICE INC.,MATERIALS - INVENTORY,$552.68 ,10/20/2015
CENTRAL SALES & SERVICE INC.,MATERIALS & ASSETS - CAPITAL,"$3,413.28 ",11/2/2015
CENTRAL SALES & SERVICE INC.,MATERIALS - INVENTORY,"$7,038 ",11/2/2015
CENTRAL SALES & SERVICE INC.,MATERIALS - INVENTORY,$139.80 ,11/9/2015
CENTRAL SALES & SERVICE INC.,MATERIALS & ASSETS - CAPITAL,"$26,556.26 ",11/23/2015
"CENTRAL SALT, LLC",MATERIALS - NON-INVENTORY,"$10,663.38 ",1/5/2015
"CENTRAL SALT, LLC",MATERIALS - INVENTORY,"$10,663.38 ",1/15/2015
"CENTRAL SALT, LLC",MATERIALS - INVENTORY,"$14,217.84 ",1/20/2015
"CENTRAL SALT, LLC",MATERIALS - INVENTORY,"$7,108.92 ",1/21/2015
"CENTRAL SALT, LLC",MATERIALS - NON-INVENTORY,"$10,663.38 ",1/21/2015
"CENTRAL SALT, LLC",MATERIALS - INVENTORY,"$3,554.46 ",2/9/2015
"CENTRAL SALT, LLC",MATERIALS - NON-INVENTORY,"$10,663.38 ",2/9/2015
"CENTRAL SALT, LLC",MATERIALS - INVENTORY,"$14,217.84 ",2/11/2015
"CENTRAL SALT, LLC",MATERIALS - NON-INVENTORY,"$14,217.84 ",2/11/2015
"CENTRAL SALT, LLC",MATERIALS - INVENTORY,"$3,554.46 ",2/17/2015
"CENTRAL SALT, LLC",MATERIALS - INVENTORY,"$3,554.46 ",2/18/2015
"CENTRAL SALT, LLC",MATERIALS - NON-INVENTORY,"$3,554.46 ",2/18/2015
"CENTRAL SALT, LLC",MATERIALS - NON-INVENTORY,"$7,108.92 ",2/24/2015
"CENTRAL SALT, LLC",MATERIALS - NON-INVENTORY,"$24,881.22 ",3/2/2015
"CENTRAL SALT, LLC",MATERIALS - INVENTORY,"$7,108.92 ",3/9/2015
"CENTRAL SALT, LLC",MATERIALS - NON-INVENTORY,"$10,663.38 ",3/9/2015
"CENTRAL SALT, LLC",MATERIALS - INVENTORY,"$7,108.92 ",3/10/2015
"CENTRAL SALT, LLC",MATERIALS - INVENTORY,"$3,554.46 ",3/12/2015
"CENTRAL SALT, LLC",MATERIALS - NON-INVENTORY,"$17,772.30 ",3/16/2015
"CENTRAL SALT, LLC",MATERIALS - NON-INVENTORY,"$3,554.46 ",3/17/2015
"CENTRAL SALT, LLC",SALT PLTFM REM SNOW,"$3,554.46 ",3/30/2015
"CENTRAL SALT, LLC",MATERIALS - INVENTORY,"$3,554.46 ",4/6/2015
"CENTRAL SALT, LLC",MATERIALS - INVENTORY,"$3,554.46 ",4/23/2015
"CENTRAL SALT, LLC",MATERIALS - NON-INVENTORY,"$28,435.68 ",4/23/2015
"CENTRAL SALT, LLC",MATERIALS - NON-INVENTORY,"$14,217.84 ",4/29/2015
CENTURY CONTRACTORS INC.,OUTSIDE SERVICES - CAPITAL,"$6,800 ",1/6/2015
CENTURY CONTRACTORS INC.,OUTSIDE SERVICES - CAPITAL,"$6,800 ",1/7/2015
CENTURY CONTRACTORS INC.,RENTAL EXPENSE,"$3,627.50 ",1/12/2015
CENTURY CONTRACTORS INC.,OUTSIDE SERVICES,"$9,564 ",1/13/2015
CENTURY CONTRACTORS INC.,OUTSIDE SERVICES,"$18,167 ",1/20/2015
CENTURY CONTRACTORS INC.,OUTSIDE SERVICES,"$7,454.50 ",1/26/2015
CENTURY CONTRACTORS INC.,OUTSIDE SERVICES,"$10,379 ",1/27/2015
CENTURY CONTRACTORS INC.,RENTAL EXPENSE,"$6,800 ",1/29/2015
CENTURY CONTRACTORS INC.,OUTSIDE SERVICES,"$18,588.25 ",2/11/2015
CENTURY CONTRACTORS INC.,OUTSIDE SERVICES - CAPITAL,"$6,800 ",2/17/2015
CENTURY CONTRACTORS INC.,MATERIALS - NON-INVENTORY,"$10,935.50 ",2/17/2015
CENTURY CONTRACTORS INC.,RENTAL EXPENSE,"$4,480 ",2/23/2015
CENTURY CONTRACTORS INC.,OUTSIDE SERVICES - CAPITAL,"$1,275 ",2/24/2015
CENTURY CONTRACTORS INC.,MATERIALS - NON-INVENTORY,$720 ,2/24/2015
CENTURY CONTRACTORS INC.,OUTSIDE SERVICES,"$5,870.50 ",2/24/2015
CENTURY CONTRACTORS INC.,OUTSIDE SERVICES,"$3,611 ",2/25/2015
CENTURY CONTRACTORS INC.,OUTSIDE SERVICES,"$1,747.50 ",3/12/2015
CENTURY CONTRACTORS INC.,RENTAL EXPENSE,"$13,600 ",3/16/2015
CENTURY CONTRACTORS INC.,RENTAL EXPENSE,"$6,800 ",3/23/2015
CENTURY CONTRACTORS INC.,RENTAL EXPENSE,"$6,800 ",4/1/2015
CENTURY CONTRACTORS INC.,RENTAL EXPENSE,"$6,800 ",4/20/2015
CENTURY CONTRACTORS INC.,RENTAL EXPENSE,"$6,800 ",4/29/2015
CENTURY CONTRACTORS INC.,RENTAL EXPENSE,"$6,800 ",5/27/2015
CENTURY CONTRACTORS INC.,RENTAL EXPENSE,"$6,800 ",6/1/2015
CENTURY CONTRACTORS INC.,OUTSIDE SERVICES,$805 ,6/11/2015
CENTURY CONTRACTORS INC.,OUTSIDE SERVICES - CAPITAL,"$9,067.50 ",6/15/2015
CENTURY CONTRACTORS INC.,OUTSIDE SERVICES - CAPITAL,"$21,728 ",6/22/2015
CENTURY CONTRACTORS INC.,RENTAL EXPENSE,"$49,522.70 ",6/22/2015
CENTURY CONTRACTORS INC.,OUTSIDE SERVICES,"$14,450 ",6/23/2015
CENTURY CONTRACTORS INC.,OUTSIDE SERVICES - CAPITAL,"$58,233.35 ",6/29/2015
CENTURY CONTRACTORS INC.,RENTAL EXPENSE,"$13,600 ",7/2/2015
CENTURY CONTRACTORS INC.,RENTAL EXPENSE,"$6,800 ",7/9/2015
CENTURY CONTRACTORS INC.,RENTAL EXPENSE,"$6,800 ",7/13/2015
CENTURY CONTRACTORS INC.,RENTAL EXPENSE,"$27,884.20 ",7/14/2015
CENTURY CONTRACTORS INC.,OUTSIDE SERVICES - CAPITAL,"$18,134 ",7/20/2015
CENTURY CONTRACTORS INC.,RENTAL EXPENSE,"$1,179 ",7/20/2015
CENTURY CONTRACTORS INC.,OUTSIDE SERVICES - CAPITAL,"$2,800 ",7/30/2015
CENTURY CONTRACTORS INC.,OUTSIDE SERVICES - CAPITAL,"$31,981.70 ",8/3/2015
CENTURY CONTRACTORS INC.,RENTAL EXPENSE,"$22,778.60 ",8/3/2015
CENTURY CONTRACTORS INC.,OUTSIDE SERVICES - CAPITAL,"$8,208 ",8/10/2015
CENTURY CONTRACTORS INC.,RENTAL EXPENSE,"$1,900 ",8/17/2015
CENTURY CONTRACTORS INC.,OUTSIDE SERVICES - CAPITAL,"$2,800 ",8/19/2015
CENTURY CONTRACTORS INC.,RENTAL EXPENSE,"$6,800 ",8/19/2015
CENTURY CONTRACTORS INC.,OUTSIDE SERVICES - CAPITAL,"$2,800 ",8/20/2015
CENTURY CONTRACTORS INC.,OUTSIDE SERVICES,"$10,000 ",8/20/2015
CENTURY CONTRACTORS INC.,OUTSIDE SERVICES - CAPITAL,"$19,212.50 ",8/24/2015
CENTURY CONTRACTORS INC.,OUTSIDE SERVICES - CAPITAL,"$10,620 ",8/31/2015
CENTURY CONTRACTORS INC.,RENTAL EXPENSE,"$25,976.10 ",9/14/2015
CENTURY CONTRACTORS INC.,OUTSIDE SERVICES,$315 ,9/24/2015
CENTURY CONTRACTORS INC.,RENTAL EXPENSE,"$1,400 ",9/24/2015
CENTURY CONTRACTORS INC.,OUTSIDE SERVICES - CAPITAL,"$9,938.50 ",10/5/2015
CENTURY CONTRACTORS INC.,OUTSIDE SERVICES - CAPITAL,"$10,238.50 ",10/12/2015
CENTURY CONTRACTORS INC.,RENTAL EXPENSE,"$20,434 ",10/12/2015
CENTURY CONTRACTORS INC.,OUTSIDE SERVICES - CAPITAL,"$64,068.50 ",10/13/2015
CENTURY CONTRACTORS INC.,MATERIALS - CAPITAL,"$14,284 ",11/2/2015
CENTURY CONTRACTORS INC.,OUTSIDE SERVICES - CAPITAL,"$19,926.50 ",11/9/2015
CENTURY CONTRACTORS INC.,OUTSIDE SERVICES - CAPITAL,"$3,212 ",11/11/2015
CENTURY CONTRACTORS INC.,RENTAL EXPENSE,"$22,719.15 ",11/12/2015
CENTURY CONTRACTORS INC.,OUTSIDE SERVICES,"$2,697.50 ",11/23/2015
CENTURY CONTRACTORS INC.,RENTAL EXPENSE,"$26,281 ",11/30/2015
CENTURY CONTRACTORS INC.,OUTSIDE SERVICES - CAPITAL,"$4,314 ",12/1/2015
CENTURY CONTRACTORS INC.,OUTSIDE SERVICES - CAPITAL,"$10,700 ",12/16/2015
CENTURY CONTRACTORS INC.,RENTAL EXPENSE,"$13,600 ",12/29/2015
"CENTURY FASTENERS & MACHINE CO.,INC",MATERIALS - NON-INVENTORY,$500 ,7/8/2015
"CENTURY FASTENERS & MACHINE CO.,INC",MISCELLANEOUS OTHER EXPENSE,$13.15 ,7/8/2015
CENTURY TILE & CARPET,MATERIALS - NON-INVENTORY,"$2,620.38 ",1/12/2015
"CERTIFIED FLEET SERVICES, INC.",OUTSIDE SERVICES,"$20,775.97 ",1/20/2015
"CERTIFIED FLEET SERVICES, INC.",MISCELLANEOUS OTHER EXPENSE,$735 ,1/20/2015
"CERTIFIED FLEET SERVICES, INC.",OUTSIDE SERVICES,"$2,574.81 ",1/26/2015
"CERTIFIED FLEET SERVICES, INC.",OUTSIDE SERVICES,"$1,399.68 ",2/2/2015
"CERTIFIED FLEET SERVICES, INC.",MISCELLANEOUS OTHER EXPENSE,$410 ,2/2/2015
"CERTIFIED FLEET SERVICES, INC.",OUTSIDE SERVICES,"$7,215.54 ",2/9/2015
"CERTIFIED FLEET SERVICES, INC.",MISCELLANEOUS OTHER EXPENSE,$325 ,2/9/2015
"CERTIFIED FLEET SERVICES, INC.",OUTSIDE SERVICES,"$9,197.87 ",2/17/2015
"CERTIFIED FLEET SERVICES, INC.",OUTSIDE SERVICES,"$7,482.80 ",2/17/2015
"CERTIFIED FLEET SERVICES, INC.",OUTSIDE SERVICES,"$19,746.38 ",3/16/2015
"CERTIFIED FLEET SERVICES, INC.",MISCELLANEOUS OTHER EXPENSE,$975 ,3/16/2015
"CERTIFIED FLEET SERVICES, INC.",OUTSIDE SERVICES,$945 ,3/23/2015
"CERTIFIED FLEET SERVICES, INC.",OUTSIDE SERVICES,"$29,623.23 ",4/13/2015
"CERTIFIED FLEET SERVICES, INC.",MISCELLANEOUS OTHER EXPENSE,$650 ,4/13/2015
"CERTIFIED FLEET SERVICES, INC.",OUTSIDE SERVICES,"$1,761.69 ",4/14/2015
"CERTIFIED FLEET SERVICES, INC.",OUTSIDE SERVICES,"$15,203.49 ",5/4/2015
"CERTIFIED FLEET SERVICES, INC.",MISCELLANEOUS OTHER EXPENSE,$325 ,5/4/2015
"CERTIFIED FLEET SERVICES, INC.",OUTSIDE SERVICES,"$7,471.40 ",5/27/2015
"CERTIFIED FLEET SERVICES, INC.",MISCELLANEOUS OTHER EXPENSE,$295 ,5/27/2015
"CERTIFIED FLEET SERVICES, INC.",OUTSIDE SERVICES,$855 ,6/10/2015
"CERTIFIED FLEET SERVICES, INC.",OUTSIDE SERVICES,$198.04 ,6/15/2015
"CERTIFIED FLEET SERVICES, INC.",OUTSIDE SERVICES,"$1,219.74 ",6/18/2015
"CERTIFIED FLEET SERVICES, INC.",OUTSIDE SERVICES,$855 ,7/13/2015
"CERTIFIED FLEET SERVICES, INC.",MISCELLANEOUS OTHER EXPENSE,$325 ,7/13/2015
"CERTIFIED FLEET SERVICES, INC.",OUTSIDE SERVICES,"$2,117.07 ",7/23/2015
"CERTIFIED FLEET SERVICES, INC.",MISCELLANEOUS OTHER EXPENSE,$66.65 ,7/23/2015
"CERTIFIED FLEET SERVICES, INC.",OUTSIDE SERVICES,"$49,240.89 ",8/6/2015
"CERTIFIED FLEET SERVICES, INC.",MISCELLANEOUS OTHER EXPENSE,$325 ,8/6/2015
"CERTIFIED FLEET SERVICES, INC.",OUTSIDE SERVICES,"$5,459.80 ",12/15/2015
"CERTIFIED FLEET SERVICES, INC.",MISCELLANEOUS OTHER EXPENSE,$650 ,12/15/2015
CERTIFIED LABORATORIES,MATERIALS - INVENTORY,$170.06 ,4/21/2015
CERTIFIED LANGUAGES INTERNATIONAL,MISCELLANEOUS OTHER EXPENSE,$1.80 ,2/25/2015
CERTIFIED STAFFING SOLUTIONS,PROFESSIONAL SERVICES,"$1,700 ",11/9/2015
CERTIFIED TRAINING INSTITUTE,PROFESSIONAL SERVICES,$294 ,10/7/2015
"CHALLENGER, GRAY & CHRISTMAS INC.",PROFESSIONAL SERVICES,"$3,250 ",10/19/2015
"CHAMBERS, CONLON & HARTWELL, LLC",PROFESSIONAL SERVICES,"$24,906.94 ",1/23/2015
"CHAMBERS, CONLON & HARTWELL, LLC",PROFESSIONAL SERVICES,"$48,045.54 ",3/23/2015
"CHAMBERS, CONLON & HARTWELL, LLC",PROFESSIONAL SERVICES,"$50,102.43 ",5/15/2015
"CHAMBERS, CONLON & HARTWELL, LLC",PROFESSIONAL SERVICES,"$49,136.22 ",5/29/2015
"CHAMBERS, CONLON & HARTWELL, LLC",PROFESSIONAL SERVICES,"$49,018.04 ",8/14/2015
"CHAMBERS, CONLON & HARTWELL, LLC",PROFESSIONAL SERVICES,"$24,556.61 ",10/9/2015
"CHAMBERS, CONLON & HARTWELL, LLC",PROFESSIONAL SERVICES,"$24,812.85 ",12/4/2015
CHAPMAN & CUTLER,PROFESSIONAL SERVICES,"$7,500 ",2/23/2015
CHARLIE'S AUTOBODY REPAIR SHOP,OUTSIDE SERVICES,$913.64 ,1/8/2015
CHARLIE'S AUTOBODY REPAIR SHOP,OUTSIDE SERVICES,$192.50 ,2/23/2015
CHARLIE'S AUTOBODY REPAIR SHOP,OUTSIDE SERVICES,$192.50 ,2/24/2015
CHARLIE'S AUTOBODY REPAIR SHOP,OUTSIDE SERVICES,$304.93 ,3/10/2015
CHARLIE'S AUTOBODY REPAIR SHOP,OUTSIDE SERVICES,"$2,165.45 ",3/12/2015
CHARLIE'S AUTOBODY REPAIR SHOP,OUTSIDE SERVICES,$390.48 ,3/23/2015
CHARLIE'S AUTOBODY REPAIR SHOP,OUTSIDE SERVICES,"$2,097.74 ",3/30/2015
CHARLIE'S AUTOBODY REPAIR SHOP,OUTSIDE SERVICES,$148.50 ,4/13/2015
CHARLIE'S AUTOBODY REPAIR SHOP,OUTSIDE SERVICES,$731.76 ,4/20/2015
CHARLIE'S AUTOBODY REPAIR SHOP,OUTSIDE SERVICES,"$3,384.47 ",5/7/2015
CHARLIE'S AUTOBODY REPAIR SHOP,OUTSIDE SERVICES,"$15,923.01 ",5/7/2015
CHARLIE'S AUTOBODY REPAIR SHOP,OUTSIDE SERVICES,"$1,873.55 ",5/12/2015
CHARLIE'S AUTOBODY REPAIR SHOP,OUTSIDE SERVICES,$214.50 ,5/18/2015
CHARLIE'S AUTOBODY REPAIR SHOP,OUTSIDE SERVICES,$456.50 ,5/20/2015
CHARLIE'S AUTOBODY REPAIR SHOP,OUTSIDE SERVICES,$192.50 ,6/9/2015
CHARLIE'S AUTOBODY REPAIR SHOP,OUTSIDE SERVICES,$551.10 ,6/11/2015
CHARLIE'S AUTOBODY REPAIR SHOP,OUTSIDE SERVICES,"$1,757.69 ",6/15/2015
CHARLIE'S AUTOBODY REPAIR SHOP,OUTSIDE SERVICES,"$1,346.52 ",6/18/2015
CHARLIE'S AUTOBODY REPAIR SHOP,OUTSIDE SERVICES,"$2,191.02 ",7/6/2015
CHARLIE'S AUTOBODY REPAIR SHOP,OUTSIDE SERVICES,$35.15 ,7/14/2015
CHARLIE'S AUTOBODY REPAIR SHOP,OUTSIDE SERVICES,"$2,793 ",8/10/2015
CHARLIE'S AUTOBODY REPAIR SHOP,OUTSIDE SERVICES,$388.75 ,8/11/2015
CHARLIE'S AUTOBODY REPAIR SHOP,OUTSIDE SERVICES,"$2,162.66 ",9/3/2015
CHARLIE'S AUTOBODY REPAIR SHOP,OUTSIDE SERVICES,$797.50 ,9/3/2015
CHARLIE'S AUTOBODY REPAIR SHOP,OUTSIDE SERVICES,"$1,413.35 ",10/13/2015
CHARLIE'S AUTOBODY REPAIR SHOP,OUTSIDE SERVICES,$203.50 ,10/14/2015
CHARLIE'S AUTOBODY REPAIR SHOP,OUTSIDE SERVICES,$159.50 ,11/3/2015
CHARLIE'S AUTOBODY REPAIR SHOP,OUTSIDE SERVICES,$269.50 ,11/16/2015
CHARLIE'S AUTOBODY REPAIR SHOP,OUTSIDE SERVICES,$179.08 ,11/23/2015
CHARLIE'S AUTOBODY REPAIR SHOP,OUTSIDE SERVICES,"$1,351.86 ",12/8/2015
CHARLIE'S AUTOBODY REPAIR SHOP,OUTSIDE SERVICES,"$10,039.33 ",12/29/2015
CHARLIE'S AUTOBODY REPAIR SHOP,OUTSIDE SERVICES,$165 ,12/29/2015
CHICAGO AREA RUNNERS ASSN.,MISCELLANEOUS OTHER EXPENSE,$100 ,4/14/2015
"CHICAGO BACKFLOW, INC.",OUTSIDE SERVICES,"$1,190 ",1/22/2015
"CHICAGO BACKFLOW, INC.",OUTSIDE SERVICES,$196 ,2/2/2015
"CHICAGO BACKFLOW, INC.",OUTSIDE SERVICES,$588 ,2/5/2015
"CHICAGO BACKFLOW, INC.",OUTSIDE SERVICES,$784 ,2/5/2015
"CHICAGO BACKFLOW, INC.",OUTSIDE SERVICES,$392 ,2/17/2015
"CHICAGO BACKFLOW, INC.",OUTSIDE SERVICES,$588 ,2/24/2015
CHICAGO BAR ASSN.,MISCELLANEOUS OTHER EXPENSE,$432 ,4/30/2015
CHICAGO BAR ASSN.,MISCELLANEOUS OTHER EXPENSE,$432 ,5/6/2015
CHICAGO BAR ASSN.,MISCELLANEOUS OTHER EXPENSE,$282 ,6/18/2015
CHICAGO BAR ASSN.,MISCELLANEOUS OTHER EXPENSE,$332 ,7/13/2015
"CHICAGO JACK SERVICE, INC.",MATERIALS - NON-INVENTORY,"$2,450 ",1/21/2015
"CHICAGO JACK SERVICE, INC.",MATERIALS - NON-INVENTORY,$841.50 ,5/18/2015
"CHICAGO JACK SERVICE, INC.",OUTSIDE SERVICES,"$4,040 ",5/20/2015
"CHICAGO JACK SERVICE, INC.",MATERIALS - NON-INVENTORY,"$7,277 ",11/23/2015
"CHICAGO JACK SERVICE, INC.",MATERIALS - NON-INVENTORY,"$7,044 ",12/15/2015
"CHICAGO METAL MAINTENANCE, INC.",OUTSIDE SERVICES,"$1,210 ",4/6/2015
"CHICAGO METAL MAINTENANCE, INC.",OUTSIDE SERVICES,$605 ,4/27/2015
"CHICAGO METAL MAINTENANCE, INC.",OUTSIDE SERVICES,$605 ,6/29/2015
"CHICAGO METAL MAINTENANCE, INC.",OUTSIDE SERVICES,$605 ,7/15/2015
"CHICAGO METAL MAINTENANCE, INC.",OUTSIDE SERVICES,$605 ,8/10/2015
"CHICAGO METAL MAINTENANCE, INC.",OUTSIDE SERVICES,$605 ,8/24/2015
"CHICAGO METAL MAINTENANCE, INC.",OUTSIDE SERVICES,$605 ,9/14/2015
"CHICAGO METAL MAINTENANCE, INC.",OUTSIDE SERVICES,$605 ,10/22/2015
"CHICAGO METAL MAINTENANCE, INC.",OUTSIDE SERVICES,$605 ,11/30/2015
"CHICAGO METAL MAINTENANCE, INC.",OUTSIDE SERVICES,$605 ,12/15/2015
CHICAGO MSDC,MISCELLANEOUS OTHER EXPENSE,"$2,050 ",2/9/2015
"CHICAGO PARTS & SOUND, LLC.",OUTSIDE SERVICES,$819.50 ,1/8/2015
"CHICAGO PARTS & SOUND, LLC.",OUTSIDE SERVICES,$486.25 ,1/20/2015
"CHICAGO PARTS & SOUND, LLC.",OUTSIDE SERVICES,$35.79 ,4/2/2015
"CHICAGO PARTS & SOUND, LLC.",OUTSIDE SERVICES,$97 ,4/6/2015
"CHICAGO PARTS & SOUND, LLC.",MISCELLANEOUS OTHER EXPENSE,"$28,306.20 ",5/11/2015
"CHICAGO PARTS & SOUND, LLC.",OUTSIDE SERVICES,$553.50 ,5/18/2015
"CHICAGO PARTS & SOUND, LLC.",OUTSIDE SERVICES,$104.50 ,5/19/2015
"CHICAGO PARTS & SOUND, LLC.",OUTSIDE SERVICES,$55 ,7/7/2015
"CHICAGO PARTS & SOUND, LLC.",OUTSIDE SERVICES,$159.50 ,7/14/2015
"CHICAGO PARTS & SOUND, LLC.",OUTSIDE SERVICES,$203.50 ,9/14/2015
"CHICAGO PARTS & SOUND, LLC.",OUTSIDE SERVICES,"$2,094.40 ",12/29/2015
CHICAGO RAILWAY SPECIAL AGENTS,MISCELLANEOUS OTHER EXPENSE,$15 ,7/20/2015
CHICAGO SCHOLARS,MISCELLANEOUS OTHER EXPENSE,$250 ,7/29/2015
"CHICAGO SOFT, LTD.",PROFESSIONAL SERVICES,"$5,118 ",10/26/2015
CHICAGO SUN-TIMES,OUTSIDE SERVICES - CAPITAL,"$1,098.20 ",1/27/2015
CHICAGO SUN-TIMES,MISCELLANEOUS OTHER EXPENSE,"$2,908.90 ",1/27/2015
CHICAGO SUN-TIMES,OUTSIDE SERVICES - CAPITAL,$573.80 ,2/18/2015
CHICAGO SUN-TIMES,MISCELLANEOUS OTHER EXPENSE,"$2,637.20 ",2/18/2015
CHICAGO SUN-TIMES,MISCELLANEOUS OTHER EXPENSE,$348.40 ,2/26/2015
CHICAGO SUN-TIMES,OUTSIDE SERVICES - CAPITAL,"$1,160.70 ",3/10/2015
CHICAGO SUN-TIMES,MISCELLANEOUS OTHER EXPENSE,"$2,791.86 ",3/10/2015
CHICAGO SUN-TIMES,OUTSIDE SERVICES - CAPITAL,$748.60 ,4/13/2015
CHICAGO SUN-TIMES,MISCELLANEOUS OTHER EXPENSE,"$3,627.10 ",4/13/2015
CHICAGO SUN-TIMES,OUTSIDE SERVICES - CAPITAL,"$1,406 ",5/12/2015
CHICAGO SUN-TIMES,MISCELLANEOUS OTHER EXPENSE,"$5,577.43 ",5/12/2015
CHICAGO SUN-TIMES,OUTSIDE SERVICES - CAPITAL,"$1,047.85 ",6/9/2015
CHICAGO SUN-TIMES,MISCELLANEOUS OTHER EXPENSE,"$3,547.30 ",6/9/2015
CHICAGO SUN-TIMES,OUTSIDE SERVICES - CAPITAL,$767.60 ,7/1/2015
CHICAGO SUN-TIMES,MISCELLANEOUS OTHER EXPENSE,"$2,359.80 ",7/1/2015
CHICAGO SUN-TIMES,OUTSIDE SERVICES - CAPITAL,$763.80 ,7/30/2015
CHICAGO SUN-TIMES,MISCELLANEOUS OTHER EXPENSE,"$2,547.90 ",7/30/2015
CHICAGO SUN-TIMES,OUTSIDE SERVICES - CAPITAL,$674.50 ,9/14/2015
CHICAGO SUN-TIMES,MISCELLANEOUS OTHER EXPENSE,"$2,845.25 ",9/14/2015
CHICAGO SUN-TIMES,OUTSIDE SERVICES - CAPITAL,$342 ,10/8/2015
CHICAGO SUN-TIMES,MISCELLANEOUS OTHER EXPENSE,"$2,638.15 ",10/8/2015
CHICAGO SUN-TIMES,OUTSIDE SERVICES - CAPITAL,$798 ,11/9/2015
CHICAGO SUN-TIMES,MISCELLANEOUS OTHER EXPENSE,"$2,438.65 ",11/9/2015
CHICAGO SUN-TIMES,OUTSIDE SERVICES - CAPITAL,"$1,148.55 ",12/28/2015
CHICAGO SUN-TIMES,MISCELLANEOUS OTHER EXPENSE,"$5,605 ",12/28/2015
CHICAGO TIRE INC.,OUTSIDE SERVICES,"$5,134.77 ",1/5/2015
CHICAGO TIRE INC.,OUTSIDE SERVICES,$556.31 ,1/12/2015
CHICAGO TIRE INC.,OUTSIDE SERVICES,$460.04 ,1/20/2015
CHICAGO TIRE INC.,MATERIALS - NON-INVENTORY,"$4,657.50 ",1/21/2015
CHICAGO TIRE INC.,OUTSIDE SERVICES,$502.50 ,1/21/2015
CHICAGO TIRE INC.,OUTSIDE SERVICES,$934.74 ,1/21/2015
CHICAGO TIRE INC.,OUTSIDE SERVICES,"$30,399.50 ",1/29/2015
CHICAGO TIRE INC.,OUTSIDE SERVICES,$711.20 ,2/2/2015
CHICAGO TIRE INC.,OUTSIDE SERVICES,$500.61 ,2/4/2015
CHICAGO TIRE INC.,OUTSIDE SERVICES,$730.17 ,2/9/2015
CHICAGO TIRE INC.,OUTSIDE SERVICES,"$5,376.74 ",2/18/2015
CHICAGO TIRE INC.,OUTSIDE SERVICES,$180 ,2/23/2015
CHICAGO TIRE INC.,OUTSIDE SERVICES,$532.44 ,3/3/2015
CHICAGO TIRE INC.,OUTSIDE SERVICES,"$1,248.54 ",3/10/2015
CHICAGO TIRE INC.,OUTSIDE SERVICES,$139.11 ,3/16/2015
CHICAGO TIRE INC.,OUTSIDE SERVICES,$266.22 ,3/17/2015
CHICAGO TIRE INC.,MATERIALS - NON-INVENTORY,"$5,430 ",3/19/2015
CHICAGO TIRE INC.,OUTSIDE SERVICES,"$1,709.68 ",3/19/2015
CHICAGO TIRE INC.,OUTSIDE SERVICES,"$1,125.96 ",3/23/2015
CHICAGO TIRE INC.,OUTSIDE SERVICES,$716.42 ,4/2/2015
CHICAGO TIRE INC.,OUTSIDE SERVICES,$733.03 ,4/6/2015
CHICAGO TIRE INC.,OUTSIDE SERVICES,$154.78 ,4/13/2015
CHICAGO TIRE INC.,OUTSIDE SERVICES,$504.87 ,4/20/2015
CHICAGO TIRE INC.,OUTSIDE SERVICES,"$3,097.73 ",4/28/2015
CHICAGO TIRE INC.,OUTSIDE SERVICES,"$11,820 ",4/30/2015
CHICAGO TIRE INC.,OUTSIDE SERVICES,$357.60 ,4/30/2015
CHICAGO TIRE INC.,MATERIALS - NON-INVENTORY,$330 ,5/4/2015
CHICAGO TIRE INC.,OUTSIDE SERVICES,"$3,355.02 ",5/4/2015
CHICAGO TIRE INC.,MATERIALS - NON-INVENTORY,"$12,850 ",5/11/2015
CHICAGO TIRE INC.,OUTSIDE SERVICES,"$2,455.54 ",5/13/2015
CHICAGO TIRE INC.,OUTSIDE SERVICES,$60 ,5/26/2015
CHICAGO TIRE INC.,OUTSIDE SERVICES,$763.50 ,5/26/2015
CHICAGO TIRE INC.,OUTSIDE SERVICES,"$3,092 ",5/27/2015
CHICAGO TIRE INC.,OUTSIDE SERVICES,"$1,177.40 ",6/15/2015
CHICAGO TIRE INC.,OUTSIDE SERVICES,$335.66 ,6/25/2015
CHICAGO TIRE INC.,OUTSIDE SERVICES,"$1,326.84 ",6/29/2015
CHICAGO TIRE INC.,OUTSIDE SERVICES,$302.81 ,7/13/2015
CHICAGO TIRE INC.,OUTSIDE SERVICES,"$5,354.86 ",7/23/2015
CHICAGO TIRE INC.,OUTSIDE SERVICES,"$1,245.47 ",7/28/2015
CHICAGO TIRE INC.,OUTSIDE SERVICES,$125 ,8/3/2015
CHICAGO TIRE INC.,OUTSIDE SERVICES,$165 ,8/3/2015
CHICAGO TIRE INC.,OUTSIDE SERVICES,"$1,424.24 ",8/3/2015
CHICAGO TIRE INC.,OUTSIDE SERVICES,"$4,129.22 ",8/4/2015
CHICAGO TIRE INC.,OUTSIDE SERVICES,"$4,467.24 ",8/11/2015
CHICAGO TIRE INC.,OUTSIDE SERVICES,"$1,184.81 ",8/20/2015
CHICAGO TIRE INC.,OUTSIDE SERVICES,$247.32 ,8/20/2015
CHICAGO TIRE INC.,OUTSIDE SERVICES,$80 ,9/8/2015
CHICAGO TIRE INC.,OUTSIDE SERVICES,"$2,962.76 ",9/8/2015
CHICAGO TIRE INC.,MATERIALS - NON-INVENTORY,"$8,403.90 ",9/14/2015
CHICAGO TIRE INC.,OUTSIDE SERVICES,"$4,807.40 ",9/14/2015
CHICAGO TIRE INC.,OUTSIDE SERVICES,"$4,893.20 ",10/1/2015
CHICAGO TIRE INC.,OUTSIDE SERVICES,$153.80 ,10/12/2015
CHICAGO TIRE INC.,MATERIALS - NON-INVENTORY,"$12,850 ",10/13/2015
CHICAGO TIRE INC.,MATERIALS - NON-INVENTORY,"$11,680 ",10/20/2015
CHICAGO TIRE INC.,OUTSIDE SERVICES,"$2,089.89 ",10/26/2015
CHICAGO TIRE INC.,OUTSIDE SERVICES,"$1,677.62 ",10/27/2015
CHICAGO TIRE INC.,OUTSIDE SERVICES,"$1,512.76 ",10/28/2015
CHICAGO TIRE INC.,OUTSIDE SERVICES,$84.90 ,11/3/2015
CHICAGO TIRE INC.,OUTSIDE SERVICES,$75 ,11/9/2015
CHICAGO TIRE INC.,OUTSIDE SERVICES,"$11,680 ",11/17/2015
CHICAGO TIRE INC.,OUTSIDE SERVICES,"$2,210.05 ",11/17/2015
CHICAGO TIRE INC.,OUTSIDE SERVICES,$983.28 ,11/23/2015
CHICAGO TIRE INC.,OUTSIDE SERVICES,$131.80 ,11/30/2015
CHICAGO TIRE INC.,OUTSIDE SERVICES,"$23,760 ",12/15/2015
CHICAGO TIRE INC.,MATERIALS - NON-INVENTORY,"$3,726 ",12/16/2015
CHICAGO TRANSIT AUTHORITY,MISCELLANEOUS OTHER EXPENSE,"$45,610 ",3/25/2015
CHICAGO TRANSIT AUTHORITY,MOBILE TICKET SPECIAL CAS,"$3,619 ",12/21/2015
CHICAGO TRIBUNE,MISCELLANEOUS OTHER EXPENSE,$61.75 ,3/26/2015
CHICAGO TRIBUNE,MISCELLANEOUS OTHER EXPENSE,$390 ,4/6/2015
CHICAGO TRIBUNE,MISCELLANEOUS OTHER EXPENSE,$299 ,4/6/2015
CHICAGO TRIBUNE,MISCELLANEOUS OTHER EXPENSE,$654.83 ,10/5/2015
CHICAGO TRIBUNE,MISCELLANEOUS OTHER EXPENSE,$481 ,12/15/2015
CHICAGO UNIFORM CO.,MATERIALS - CAPITAL,$612.69 ,2/9/2015
CHICAGO UNIFORM CO.,MATERIALS - CAPITAL,"$4,054.14 ",2/10/2015
CHICAGO UNIFORM CO.,MISCELLANEOUS OTHER EXPENSE,"$8,385.12 ",2/10/2015
CHICAGO UNIFORM CO.,MATERIALS - CAPITAL,"$2,203.96 ",2/17/2015
CHICAGO UNIFORM CO.,MISCELLANEOUS OTHER EXPENSE,$865.25 ,2/17/2015
CHICAGO UNIFORM CO.,MATERIALS - CAPITAL,"$1,369.25 ",2/24/2015
CHICAGO UNIFORM CO.,MISCELLANEOUS OTHER EXPENSE,$273.96 ,3/2/2015
CHICAGO UNIFORM CO.,MATERIALS - CAPITAL,"$6,015.07 ",4/16/2015
CHICAGO UNIFORM CO.,MISCELLANEOUS OTHER EXPENSE,"$8,280.08 ",4/16/2015
CHICAGO UNIFORM CO.,MISCELLANEOUS OTHER EXPENSE,$691.62 ,5/27/2015
CHICAGO UNIFORM CO.,MATERIALS - CAPITAL,$490.05 ,6/8/2015
CHICAGO UNIFORM CO.,MISCELLANEOUS OTHER EXPENSE,"$7,252.25 ",6/8/2015
CHICAGO UNIFORM CO.,MATERIALS - CAPITAL,"$2,229.81 ",6/23/2015
CHICAGO UNIFORM CO.,MISCELLANEOUS OTHER EXPENSE,"$2,083.60 ",6/23/2015
CHICAGO UNIFORM CO.,MATERIALS - CAPITAL,"$1,720.04 ",9/3/2015
CHICAGO UNIFORM CO.,MISCELLANEOUS OTHER EXPENSE,"$1,687.02 ",9/3/2015
CHICAGO UNIFORM CO.,MATERIALS - CAPITAL,"$5,578.64 ",9/8/2015
CHICAGO UNIFORM CO.,MISCELLANEOUS OTHER EXPENSE,"$4,352.15 ",9/8/2015
CHICAGO UNIFORM CO.,MATERIALS - CAPITAL,$480 ,10/6/2015
CHICAGO UNIFORM CO.,MISCELLANEOUS OTHER EXPENSE,$772.84 ,10/6/2015
CHICAGO UNIFORM CO.,MISCELLANEOUS OTHER EXPENSE,$349.86 ,10/12/2015
CHICAGO UNIFORM CO.,MISCELLANEOUS OTHER EXPENSE,$767.56 ,11/4/2015
CHICAGO UNIFORM CO.,MISCELLANEOUS OTHER EXPENSE,$91.74 ,11/11/2015
CHICAGO UNIFORM CO.,MATERIALS - CAPITAL,$506.99 ,11/12/2015
CHICAGO UNIFORM CO.,MISCELLANEOUS OTHER EXPENSE,"$18,078.97 ",11/12/2015
CHICAGO UNIFORM CO.,MATERIALS - CAPITAL,$748.32 ,11/16/2015
CHICAGO UNIFORM CO.,MISCELLANEOUS OTHER EXPENSE,$480 ,11/16/2015
CHICAGO UNIFORM CO.,MATERIALS - CAPITAL,$219.22 ,11/18/2015
CHICAGO UNIFORM CO.,MISCELLANEOUS OTHER EXPENSE,"$1,608.74 ",11/18/2015
CHICAGO UNIFORM CO.,MATERIALS - CAPITAL,$637.38 ,11/23/2015
CHICAGO UNIFORM CO.,OUTSIDE SERVICES - CAPITAL,$126.27 ,11/23/2015
CHICAGO UNIFORM CO.,MISCELLANEOUS OTHER EXPENSE,"$25,340 ",11/23/2015
CHICAGO UNIFORM CO.,MISCELLANEOUS OTHER EXPENSE,$40 ,11/30/2015
CHICAGO UNIFORM CO.,MATERIALS - CAPITAL,$571.90 ,12/21/2015
CHICAGO UNIFORM CO.,MISCELLANEOUS OTHER EXPENSE,"$14,167.13 ",12/21/2015
CHICAGO UNION STATION CO.,UTILITIES,"$3,500 ",1/20/2015
CHICAGO UNION STATION CO.,RENTAL EXPENSE,"$784,640.58 ",1/20/2015
CHICAGO UNION STATION CO.,UTILITIES,"$3,500 ",2/25/2015
CHICAGO UNION STATION CO.,RENTAL EXPENSE,"$772,463.58 ",3/9/2015
CHICAGO UNION STATION CO.,RENTAL EXPENSE,"$772,463.58 ",3/9/2015
CHICAGO UNION STATION CO.,UTILITIES,"$3,500 ",3/18/2015
CHICAGO UNION STATION CO.,UTILITIES,"$3,500 ",4/6/2015
CHICAGO UNION STATION CO.,RENTAL EXPENSE,"$772,463.58 ",4/6/2015
CHICAGO UNION STATION CO.,UTILITIES,"$3,500 ",5/18/2015
CHICAGO UNION STATION CO.,RENTAL EXPENSE,"$776,366.03 ",6/2/2015
CHICAGO UNION STATION CO.,RENTAL EXPENSE,"$776,366.02 ",6/8/2015
CHICAGO UNION STATION CO.,UTILITIES,"$3,500 ",6/30/2015
CHICAGO UNION STATION CO.,RENTAL EXPENSE,"$776,366.02 ",7/6/2015
CHICAGO UNION STATION CO.,UTILITIES,"$3,500 ",7/13/2015
CHICAGO UNION STATION CO.,UTILITIES,"$3,500 ",8/4/2015
CHICAGO UNION STATION CO.,RENTAL EXPENSE,"$781,255.79 ",8/24/2015
CHICAGO UNION STATION CO.,UTILITIES,"$3,500 ",9/8/2015
CHICAGO UNION STATION CO.,RENTAL EXPENSE,"$208,612.28 ",9/16/2015
CHICAGO UNION STATION CO.,UTILITIES,"$3,500 ",10/6/2015
CHICAGO UNION STATION CO.,RENTAL EXPENSE,"$781,255.79 ",10/22/2015
CHICAGO UNION STATION CO.,RENTAL EXPENSE,"$781,216.94 ",11/16/2015
CHICAGO UNION STATION CO.,UTILITIES,"$3,500 ",12/16/2015
CHICAGO UNION STATION CO.,RENTAL EXPENSE,"$781,216.94 ",12/16/2015
"CHICAGO UNITED INDUSTRIES, LTD.",MATERIALS - INVENTORY,"$3,606 ",6/18/2015
"CHICAGO UNITED INDUSTRIES, LTD.",MATERIALS - INVENTORY,"$3,507 ",7/13/2015
"CHICAGO UNITED INDUSTRIES, LTD.",MATERIALS - INVENTORY,"$22,768 ",8/3/2015
"CHICAGO UNITED INDUSTRIES, LTD.",MATERIALS - INVENTORY,$516 ,8/17/2015
"CHICAGO UNITED INDUSTRIES, LTD.",MATERIALS - INVENTORY,$409 ,9/28/2015
"CHICAGO UNITED INDUSTRIES, LTD.",MATERIALS - INVENTORY,$627 ,10/12/2015
CHICAGO URBAN LEAGUE,MISCELLANEOUS OTHER EXPENSE,$125 ,6/18/2015
CHICAGO URBAN LEAGUE,MISCELLANEOUS OTHER EXPENSE,$125 ,6/18/2015
CHICAGOLAND CHAMBER OF COMMERCE,MISCELLANEOUS OTHER EXPENSE,$750 ,8/24/2015
"CHICAGOLAND PAVING CONTRACTORS,INC.",CONSTRUCTION,"$74,650 ",3/16/2015
"CHICAGOLAND PAVING CONTRACTORS,INC.",OUTSIDE SERVICES - CAPITAL,"$8,765.75 ",3/19/2015
"CHICAGOLAND PAVING CONTRACTORS,INC.",CONSTRUCTION,"$63,868.56 ",6/3/2015
"CHICAGOLAND PAVING CONTRACTORS,INC.",OUTSIDE SERVICES - CAPITAL,"$17,648.75 ",7/7/2015
"CHICAGOLAND PAVING CONTRACTORS,INC.",CONSTRUCTION,"$67,773.25 ",7/13/2015
"CHICAGOLAND PAVING CONTRACTORS,INC.",OUTSIDE SERVICES - CAPITAL,"$40,143 ",7/14/2015
"CHICAGOLAND PAVING CONTRACTORS,INC.",CONSTRUCTION,"$33,653.25 ",7/20/2015
"CHICAGOLAND PAVING CONTRACTORS,INC.",CONSTRUCTION,"$33,653.25 ",7/20/2015
"CHICAGOLAND PAVING CONTRACTORS,INC.",CONSTRUCTION,"$18,969.87 ",7/21/2015
"CHICAGOLAND PAVING CONTRACTORS,INC.",CONSTRUCTION,"$18,969.88 ",7/21/2015
"CHICAGOLAND PAVING CONTRACTORS,INC.",CONSTRUCTION,"$54,566.25 ",7/27/2015
"CHICAGOLAND PAVING CONTRACTORS,INC.",CONSTRUCTION,"$29,525.50 ",8/4/2015
"CHICAGOLAND PAVING CONTRACTORS,INC.",OUTSIDE SERVICES - CAPITAL,"$51,951.45 ",8/26/2015
"CHICAGOLAND PAVING CONTRACTORS,INC.",OUTSIDE SERVICES - CAPITAL,"$31,466.75 ",9/24/2015
"CHICAGOLAND PAVING CONTRACTORS,INC.",OUTSIDE SERVICES,$450 ,9/24/2015
"CHICAGOLAND PAVING CONTRACTORS,INC.",CONSTRUCTION,"$19,662.62 ",9/29/2015
"CHICAGOLAND PAVING CONTRACTORS,INC.",CONSTRUCTION,"$57,461.63 ",9/29/2015
"CHICAGOLAND PAVING CONTRACTORS,INC.",CONSTRUCTION,"$11,644 ",10/19/2015
"CHICAGOLAND PAVING CONTRACTORS,INC.",CONSTRUCTION,"$11,644 ",10/19/2015
"CHICAGOLAND PAVING CONTRACTORS,INC.",OUTSIDE SERVICES - CAPITAL,"$20,293 ",10/19/2015
"CHICAGOLAND PAVING CONTRACTORS,INC.",CONSTRUCTION,"$22,126.75 ",10/26/2015
"CHICAGOLAND PAVING CONTRACTORS,INC.",OUTSIDE SERVICES - CAPITAL,"$14,773.25 ",10/26/2015
"CHICAGOLAND PAVING CONTRACTORS,INC.",CONSTRUCTION,"$70,183.75 ",11/23/2015
"CHICAGOLAND PAVING CONTRACTORS,INC.",OUTSIDE SERVICES - CAPITAL,"$12,300 ",11/24/2015
"CHICAGOLAND PAVING CONTRACTORS,INC.",OUTSIDE SERVICES - CAPITAL,"$19,463.50 ",11/30/2015
"CHICAGOLAND PAVING CONTRACTORS,INC.",CONSTRUCTION,"$25,722.50 ",12/2/2015
"CHICAGOLAND PAVING CONTRACTORS,INC.",OUTSIDE SERVICES - CAPITAL,"$26,621.45 ",12/16/2015
"CHICAGOLAND PAVING CONTRACTORS,INC.",MATERIALS - NON-INVENTORY,"$3,545.50 ",12/16/2015
CHOOSE CHICAGO,MISCELLANEOUS OTHER EXPENSE,$699 ,4/2/2015
CHRISTOPHER B BURKE ENGINEERING,MATERIALS - NON-INVENTORY,"$5,653.09 ",2/25/2015
CHRISTOPHER B BURKE ENGINEERING,MATERIALS - NON-INVENTORY,"$4,550.98 ",3/16/2015
CHRISTOPHER B BURKE ENGINEERING,MATERIALS - NON-INVENTORY,$311.85 ,3/25/2015
CHRISTOPHER B BURKE ENGINEERING,ENGINEERING & DESIGN,"$4,621.41 ",4/20/2015
CIRCLE TRACTOR,MATERIALS - NON-INVENTORY,"$1,820 ",4/27/2015
CITY CLUB OF CHICAGO,MISCELLANEOUS OTHER EXPENSE,$35 ,1/20/2015
CITY CLUB OF CHICAGO,MISCELLANEOUS OTHER EXPENSE,$35 ,1/26/2015
CITY CLUB OF CHICAGO,MISCELLANEOUS OTHER EXPENSE,$355 ,3/26/2015
CITY CLUB OF CHICAGO,MISCELLANEOUS OTHER EXPENSE,$125 ,4/16/2015
CITY CLUB OF CHICAGO,MISCELLANEOUS OTHER EXPENSE,$80 ,4/30/2015
CITY CLUB OF CHICAGO,MISCELLANEOUS OTHER EXPENSE,$80 ,5/4/2015
CITY CLUB OF CHICAGO,MISCELLANEOUS OTHER EXPENSE,$205 ,5/28/2015
CITY CLUB OF CHICAGO,MISCELLANEOUS OTHER EXPENSE,$35 ,6/18/2015
CITY CLUB OF CHICAGO,MISCELLANEOUS OTHER EXPENSE,$80 ,7/1/2015
CITY CLUB OF CHICAGO,MISCELLANEOUS OTHER EXPENSE,$70 ,7/13/2015
CITY CLUB OF CHICAGO,MISCELLANEOUS OTHER EXPENSE,$80 ,7/20/2015
CITY CLUB OF CHICAGO,MISCELLANEOUS OTHER EXPENSE,$125 ,9/14/2015
CITY CLUB OF CHICAGO,MISCELLANEOUS OTHER EXPENSE,$80 ,9/29/2015
CITY CLUB OF CHICAGO,MISCELLANEOUS OTHER EXPENSE,$35 ,10/8/2015
CITY CLUB OF CHICAGO,MISCELLANEOUS OTHER EXPENSE,$70 ,11/10/2015
CITY CLUB OF CHICAGO,MISCELLANEOUS OTHER EXPENSE,"$2,250 ",12/3/2015
CITY CLUB OF CHICAGO,MISCELLANEOUS OTHER EXPENSE,$430 ,12/22/2015
CITY OF BERWYN,CONSTRUCTION,"$58,744 ",3/11/2015
CITY OF BERWYN,CONSTRUCTION,"$219,288.38 ",3/30/2015
CITY OF BERWYN,CONSTRUCTION,"$113,967.62 ",5/4/2015
CITY OF BLUE ISLAND,UTILITIES,$974.25 ,1/8/2015
CITY OF BLUE ISLAND,UTILITIES,"$2,226.36 ",2/18/2015
CITY OF BLUE ISLAND,UTILITIES,"$1,676.97 ",3/23/2015
CITY OF BLUE ISLAND,UTILITIES,"$1,114.10 ",4/28/2015
CITY OF BLUE ISLAND,UTILITIES,"$1,095.28 ",5/13/2015
CITY OF BLUE ISLAND,UTILITIES,$72.66 ,6/22/2015
CITY OF BLUE ISLAND,UTILITIES,$136.23 ,6/23/2015
CITY OF BLUE ISLAND,UTILITIES,"$1,228.79 ",6/25/2015
CITY OF BLUE ISLAND,UTILITIES,$136.23 ,6/29/2015
CITY OF BLUE ISLAND,UTILITIES,"$1,123.03 ",7/20/2015
CITY OF BLUE ISLAND,UTILITIES,"$1,089.91 ",8/10/2015
CITY OF BLUE ISLAND,UTILITIES,"$1,045.75 ",9/17/2015
CITY OF BLUE ISLAND,UTILITIES,"$1,037.50 ",10/14/2015
CITY OF BLUE ISLAND,UTILITIES,"$1,087.03 ",11/12/2015
CITY OF BLUE ISLAND,UTILITIES,"$1,037.50 ",12/8/2015
CITY OF CHICAGO,MISCELLANEOUS OTHER EXPENSE,$707.60 ,3/18/2015
CITY OF CHICAGO,MISCELLANEOUS OTHER EXPENSE,$100 ,7/22/2015
CITY OF CHICAGO,MISCELLANEOUS OTHER EXPENSE,$140 ,9/24/2015
"CITY OF CHICAGO, DEPT. OF REVENUE",MISCELLANEOUS OTHER EXPENSE,$100 ,4/23/2015
"CITY OF CHICAGO, DEPT. OF REVENUE",MISCELLANEOUS OTHER EXPENSE,$200 ,5/4/2015
"CITY OF CHICAGO, DEPT. OF REVENUE",CONSTRUCTION,"$4,280 ",5/26/2015
"CITY OF CHICAGO, DEPT. OF REVENUE",CONSTRUCTION,"$2,000 ",5/26/2015
CITY OF ELGIN,UTILITIES,$54.85 ,1/6/2015
CITY OF ELGIN,UTILITIES,$418.06 ,1/12/2015
CITY OF ELGIN,UTILITIES,$119.49 ,2/10/2015
CITY OF ELGIN,UTILITIES,"$2,823.18 ",2/18/2015
CITY OF ELGIN,UTILITIES,$171.27 ,3/9/2015
CITY OF ELGIN,UTILITIES,"$1,389.32 ",3/23/2015
CITY OF ELGIN,UTILITIES,$159.32 ,4/2/2015
CITY OF ELGIN,UTILITIES,$762.94 ,4/16/2015
CITY OF ELGIN,UTILITIES,$298.16 ,4/21/2015
CITY OF ELGIN,UTILITIES,"$1,335.48 ",5/13/2015
CITY OF ELGIN,UTILITIES,$88.79 ,5/14/2015
CITY OF ELGIN,UTILITIES,$193.46 ,6/4/2015
CITY OF ELGIN,UTILITIES,"$1,117.16 ",6/15/2015
CITY OF ELGIN,UTILITIES,$195.39 ,7/8/2015
CITY OF ELGIN,UTILITIES,"$1,548.96 ",7/20/2015
CITY OF ELGIN,UTILITIES,$171.08 ,7/30/2015
CITY OF ELGIN,UTILITIES,"$1,063.97 ",8/12/2015
CITY OF ELGIN,UTILITIES,$213.22 ,8/13/2015
CITY OF ELGIN,UTILITIES,$170.70 ,9/2/2015
CITY OF ELGIN,UTILITIES,"$1,639.19 ",9/17/2015
CITY OF ELGIN,UTILITIES,$193.84 ,9/29/2015
CITY OF ELGIN,UTILITIES,"$1,817.75 ",10/14/2015
CITY OF ELGIN,UTILITIES,$165.01 ,11/4/2015
CITY OF ELGIN,UTILITIES,"$2,013.96 ",11/12/2015
CITY OF ELGIN,UTILITIES,$182.46 ,12/8/2015
CITY OF ELGIN,UTILITIES,"$1,877.35 ",12/17/2015
CITY OF GENEVA,ENG. MANAGEMENT & INSPECTIONS,"$77,122.95 ",2/10/2015
CITY OF GENEVA,CONSTRUCTION,"$501,769.82 ",2/10/2015
CITY OF GENEVA,ENG. MANAGEMENT & INSPECTIONS,"$34,947.80 ",4/28/2015
CITY OF GENEVA,CONSTRUCTION,"$387,487 ",4/28/2015
CITY OF GENEVA,ENG. MANAGEMENT & INSPECTIONS,"$14,101.86 ",4/29/2015
CITY OF GENEVA,CONSTRUCTION,"$578,539 ",4/29/2015
CITY OF GENEVA,ENG. MANAGEMENT & INSPECTIONS,"$26,003.44 ",6/23/2015
CITY OF GENEVA,CONSTRUCTION,"$632,781 ",6/23/2015
CITY OF GENEVA,ENG. MANAGEMENT & INSPECTIONS,"$16,631.84 ",7/23/2015
CITY OF GENEVA,CONSTRUCTION,"$295,554.64 ",7/23/2015
CITY OF GENEVA,ENG. MANAGEMENT & INSPECTIONS,"$9,749.74 ",8/31/2015
CITY OF GENEVA,CONSTRUCTION,"$28,357 ",8/31/2015
CITY OF GENEVA,ENG. MANAGEMENT & INSPECTIONS,"$22,763.22 ",10/8/2015
CITY OF HARVEY WATER DEPARTMENT,UTILITIES,$12.54 ,1/20/2015
CITY OF HARVEY WATER DEPARTMENT,UTILITIES,$15.23 ,2/9/2015
CITY OF HARVEY WATER DEPARTMENT,UTILITIES,$13.30 ,3/9/2015
CITY OF HARVEY WATER DEPARTMENT,UTILITIES,$16.36 ,4/30/2015
CITY OF HARVEY WATER DEPARTMENT,UTILITIES,$38.76 ,5/13/2015
CITY OF HARVEY WATER DEPARTMENT,UTILITIES,$5.18 ,6/15/2015
CITY OF HARVEY WATER DEPARTMENT,UTILITIES,$17.96 ,7/13/2015
CITY OF HARVEY WATER DEPARTMENT,UTILITIES,$14.46 ,8/10/2015
CITY OF HARVEY WATER DEPARTMENT,UTILITIES,$17.15 ,9/14/2015
CITY OF HARVEY WATER DEPARTMENT,UTILITIES,$19.21 ,10/14/2015
CITY OF HARVEY WATER DEPARTMENT,UTILITIES,$14.52 ,12/16/2015
CITY OF HIGHLAND PARK,UTILITIES,$21.58 ,1/22/2015
CITY OF HIGHLAND PARK,UTILITIES,$20.93 ,3/23/2015
CITY OF HIGHLAND PARK,UTILITIES,$22.89 ,6/25/2015
CITY OF JOLIET,ENGINEERING & DESIGN,"$229,835 ",8/12/2015
CITY OF JOLIET,CONSTRUCTION,"$1,303,069 ",10/22/2015
CITY OF JOLIET MUNICIPAL UTILITIES,UTILITIES,$15.60 ,1/6/2015
CITY OF JOLIET MUNICIPAL UTILITIES,UTILITIES,$437.40 ,1/20/2015
CITY OF JOLIET MUNICIPAL UTILITIES,UTILITIES,$14.49 ,1/26/2015
CITY OF JOLIET MUNICIPAL UTILITIES,UTILITIES,$161.66 ,2/2/2015
CITY OF JOLIET MUNICIPAL UTILITIES,UTILITIES,$614.83 ,2/18/2015
CITY OF JOLIET MUNICIPAL UTILITIES,UTILITIES,$29.84 ,3/9/2015
CITY OF JOLIET MUNICIPAL UTILITIES,UTILITIES,$692.57 ,3/23/2015
CITY OF JOLIET MUNICIPAL UTILITIES,UTILITIES,$13.83 ,3/30/2015
CITY OF JOLIET MUNICIPAL UTILITIES,UTILITIES,"$1,058.33 ",4/16/2015
CITY OF JOLIET MUNICIPAL UTILITIES,UTILITIES,$14.49 ,4/23/2015
CITY OF JOLIET MUNICIPAL UTILITIES,UTILITIES,$236.41 ,4/28/2015
CITY OF JOLIET MUNICIPAL UTILITIES,UTILITIES,$65.88 ,5/14/2015
CITY OF JOLIET MUNICIPAL UTILITIES,UTILITIES,"$1,158.94 ",5/20/2015
CITY OF JOLIET MUNICIPAL UTILITIES,UTILITIES,$14.21 ,6/4/2015
CITY OF JOLIET MUNICIPAL UTILITIES,UTILITIES,"$1,014.45 ",6/25/2015
CITY OF JOLIET MUNICIPAL UTILITIES,UTILITIES,$832.17 ,7/20/2015
CITY OF JOLIET MUNICIPAL UTILITIES,UTILITIES,$13.95 ,7/30/2015
CITY OF JOLIET MUNICIPAL UTILITIES,UTILITIES,$15.19 ,8/5/2015
CITY OF JOLIET MUNICIPAL UTILITIES,UTILITIES,"$1,250.36 ",8/27/2015
CITY OF JOLIET MUNICIPAL UTILITIES,UTILITIES,$82.92 ,9/17/2015
CITY OF JOLIET MUNICIPAL UTILITIES,UTILITIES,"$1,414.30 ",9/21/2015
CITY OF JOLIET MUNICIPAL UTILITIES,UTILITIES,$23.08 ,9/24/2015
CITY OF JOLIET MUNICIPAL UTILITIES,UTILITIES,$239.10 ,10/14/2015
CITY OF JOLIET MUNICIPAL UTILITIES,UTILITIES,$22.26 ,10/22/2015
CITY OF JOLIET MUNICIPAL UTILITIES,UTILITIES,$269.04 ,12/1/2015
CITY OF JOLIET MUNICIPAL UTILITIES,UTILITIES,$309.26 ,12/17/2015
"CITY OF OAK FOREST,ILL.",UTILITIES,$42.12 ,1/22/2015
"CITY OF OAK FOREST,ILL.",UTILITIES,$9.94 ,1/26/2015
"CITY OF OAK FOREST,ILL.",UTILITIES,$122.41 ,4/21/2015
"CITY OF OAK FOREST,ILL.",UTILITIES,$55.28 ,7/20/2015
"CITY OF OAK FOREST,ILL.",UTILITIES,$65.10 ,10/21/2015
"CITY OF OAK FOREST,ILL.",CONSTRUCTION,"$186,851.84 ",12/2/2015
CITY OF PROSPECT HEIGHTS,OUTSIDE SERVICES,"$17,814 ",8/3/2015
CITY OF WHEATON,OUTSIDE SERVICES,"$1,620.38 ",9/24/2015
CITYWIDE CPR INC.,MISCELLANEOUS OTHER EXPENSE,"$1,988 ",1/12/2015
CITYWIDE CPR INC.,MISCELLANEOUS OTHER EXPENSE,$540 ,1/20/2015
CITYWIDE CPR INC.,MISCELLANEOUS OTHER EXPENSE,$900 ,6/10/2015
CITYWIDE CPR INC.,MISCELLANEOUS OTHER EXPENSE,$630 ,6/15/2015
CITYWIDE CPR INC.,MISCELLANEOUS OTHER EXPENSE,"$2,898 ",11/10/2015
"CLAEVEN, LTD.",MISCELLANEOUS OTHER EXPENSE,"$2,250 ",11/9/2015
"CLAEVEN, LTD.",MISCELLANEOUS OTHER EXPENSE,$437.50 ,11/12/2015
"CLAEVEN, LTD.",MISCELLANEOUS OTHER EXPENSE,$662.50 ,11/16/2015
"CLAEVEN, LTD.",MISCELLANEOUS OTHER EXPENSE,$662.50 ,11/17/2015
"CLAEVEN, LTD.",MISCELLANEOUS OTHER EXPENSE,$312.50 ,11/23/2015
"CLAEVEN, LTD.",OUTSIDE SERVICES,$531.25 ,12/15/2015
"CLAEVEN, LTD.",MISCELLANEOUS OTHER EXPENSE,"$3,687.50 ",12/29/2015
CLARK FILTER,MATERIALS - INVENTORY,"$5,252 ",1/8/2015
CLARK FILTER,MATERIALS - INVENTORY,"$2,376 ",1/13/2015
CLARK FILTER,MATERIALS - INVENTORY,$615 ,1/26/2015
CLARK FILTER,MATERIALS - INVENTORY,"$2,443.68 ",1/27/2015
CLARK FILTER,MATERIALS - INVENTORY,"$3,840.60 ",2/17/2015
CLARK FILTER,MATERIALS - INVENTORY,"$3,083 ",2/23/2015
CLARK FILTER,MATERIALS - INVENTORY,"$4,803 ",3/10/2015
CLARK FILTER,MATERIALS - INVENTORY,"$2,472 ",3/12/2015
CLARK FILTER,MATERIALS - INVENTORY,"$3,407.64 ",3/16/2015
CLARK FILTER,MATERIALS - INVENTORY,$482.40 ,3/23/2015
CLARK FILTER,MATERIALS - INVENTORY,"$6,329.76 ",3/24/2015
CLARK FILTER,MATERIALS - INVENTORY,"$1,641.82 ",4/6/2015
CLARK FILTER,MATERIALS - INVENTORY,"$1,631.52 ",4/13/2015
CLARK FILTER,MATERIALS - INVENTORY,"$2,039.40 ",4/27/2015
CLARK FILTER,MATERIALS - INVENTORY,"$4,306.40 ",5/11/2015
CLARK FILTER,MATERIALS - INVENTORY,"$1,936.92 ",5/18/2015
CLARK FILTER,MATERIALS - INVENTORY,"$5,200.56 ",5/26/2015
CLARK FILTER,MATERIALS - INVENTORY,$574.92 ,6/8/2015
CLARK FILTER,MATERIALS - INVENTORY,"$2,595.88 ",6/15/2015
CLARK FILTER,MATERIALS - INVENTORY,"$5,652.20 ",6/22/2015
CLARK FILTER,MATERIALS - INVENTORY,"$1,762.20 ",7/6/2015
CLARK FILTER,MATERIALS - INVENTORY,"$3,192.48 ",7/13/2015
CLARK FILTER,MATERIALS - INVENTORY,"$2,447.28 ",7/27/2015
CLARK FILTER,MATERIALS - INVENTORY,"$4,308.58 ",8/24/2015
CLARK FILTER,MATERIALS - INVENTORY,$251.36 ,8/27/2015
CLARK FILTER,MATERIALS - INVENTORY,"$8,446.96 ",9/14/2015
CLARK FILTER,MATERIALS - INVENTORY,"$3,409.44 ",9/15/2015
CLARK FILTER,MATERIALS - INVENTORY,"$4,141.02 ",9/21/2015
CLARK FILTER,MATERIALS - INVENTORY,"$12,390.14 ",10/20/2015
CLARK FILTER,MATERIALS - INVENTORY,"$3,672.72 ",10/26/2015
CLARK FILTER,MATERIALS - INVENTORY,"$1,409.76 ",11/17/2015
CLARK FILTER,MATERIALS - INVENTORY,$766.56 ,11/19/2015
CLARK FILTER,MATERIALS - INVENTORY,"$7,906.18 ",12/15/2015
"CLARK/TAYLOR, LLC",ACQUISITION OF REAL ESTATE,"$3,200,000 ",1/26/2015
CLASS C SOLUTIONS GROUP,MATERIALS - CAPITAL,"$2,719.14 ",1/7/2015
CLASS C SOLUTIONS GROUP,MATERIALS - NON-INVENTORY,$326.40 ,1/7/2015
CLASS C SOLUTIONS GROUP,MATERIALS - CAPITAL,$13 ,1/12/2015
CLASS C SOLUTIONS GROUP,MATERIALS - CAPITAL,"$2,750.34 ",1/13/2015
CLASS C SOLUTIONS GROUP,MATERIALS - CAPITAL,"$1,872.05 ",1/14/2015
CLASS C SOLUTIONS GROUP,MATERIALS - CAPITAL,"$2,161.37 ",1/20/2015
CLASS C SOLUTIONS GROUP,MATERIALS - CAPITAL,"$7,989.21 ",1/26/2015
CLASS C SOLUTIONS GROUP,MATERIALS - CAPITAL,$368.60 ,1/27/2015
CLASS C SOLUTIONS GROUP,MATERIALS - INVENTORY,$693 ,2/5/2015
CLASS C SOLUTIONS GROUP,MATERIALS - NON-INVENTORY,"$1,214.75 ",2/5/2015
CLASS C SOLUTIONS GROUP,MATERIALS - CAPITAL,"$2,315.12 ",2/10/2015
CLASS C SOLUTIONS GROUP,MATERIALS - NON-INVENTORY,$260.97 ,2/17/2015
CLASS C SOLUTIONS GROUP,MATERIALS - CAPITAL,$404.76 ,2/23/2015
CLASS C SOLUTIONS GROUP,MATERIALS - CAPITAL,"$1,925.76 ",3/10/2015
CLASS C SOLUTIONS GROUP,MATERIALS - CAPITAL,"$3,456.83 ",3/12/2015
CLASS C SOLUTIONS GROUP,MATERIALS - NON-INVENTORY,$269.08 ,3/12/2015
CLASS C SOLUTIONS GROUP,MATERIALS - INVENTORY,$231 ,3/17/2015
CLASS C SOLUTIONS GROUP,MATERIALS - NON-INVENTORY,$364.04 ,5/11/2015
CLASS C SOLUTIONS GROUP,MATERIALS - NON-INVENTORY,"$2,982.53 ",5/12/2015
CLASS C SOLUTIONS GROUP,MATERIALS - NON-INVENTORY,"$2,690.75 ",5/12/2015
CLASS C SOLUTIONS GROUP,MATERIALS - INVENTORY,$231 ,5/19/2015
CLASS C SOLUTIONS GROUP,MATERIALS - CAPITAL,"$4,007 ",5/20/2015
CLASS C SOLUTIONS GROUP,MATERIALS - NON-INVENTORY,$95 ,5/20/2015
CLASS C SOLUTIONS GROUP,MATERIALS - CAPITAL,"$6,747.50 ",5/27/2015
CLASS C SOLUTIONS GROUP,MATERIALS - NON-INVENTORY,$172 ,5/27/2015
CLASS C SOLUTIONS GROUP,MATERIALS - NON-INVENTORY,$301.10 ,5/27/2015
CLASS C SOLUTIONS GROUP,MATERIALS - NON-INVENTORY,$170 ,5/27/2015
CLASS C SOLUTIONS GROUP,MATERIALS - CAPITAL,"$1,806.01 ",6/1/2015
CLASS C SOLUTIONS GROUP,MATERIALS - NON-INVENTORY,$138 ,6/1/2015
CLASS C SOLUTIONS GROUP,MATERIALS - NON-INVENTORY,$351.30 ,6/2/2015
CLASS C SOLUTIONS GROUP,MATERIALS - NON-INVENTORY,$161.50 ,6/2/2015
CLASS C SOLUTIONS GROUP,MATERIALS - NON-INVENTORY,$741.30 ,6/3/2015
CLASS C SOLUTIONS GROUP,MATERIALS - NON-INVENTORY,$276.10 ,6/8/2015
CLASS C SOLUTIONS GROUP,MATERIALS - CAPITAL,"$6,998.70 ",6/15/2015
CLASS C SOLUTIONS GROUP,MATERIALS - NON-INVENTORY,$231.05 ,6/15/2015
CLASS C SOLUTIONS GROUP,MATERIALS - NON-INVENTORY,"$2,750.30 ",6/15/2015
CLASS C SOLUTIONS GROUP,MATERIALS - NON-INVENTORY,$379.16 ,6/15/2015
CLASS C SOLUTIONS GROUP,MATERIALS - NON-INVENTORY,"$1,488.30 ",6/16/2015
CLASS C SOLUTIONS GROUP,MATERIALS - NON-INVENTORY,"$1,190 ",7/1/2015
CLASS C SOLUTIONS GROUP,MATERIALS - NON-INVENTORY,$682.20 ,7/1/2015
CLASS C SOLUTIONS GROUP,MATERIALS - CAPITAL,"$12,830 ",7/2/2015
CLASS C SOLUTIONS GROUP,MATERIALS - NON-INVENTORY,$470.90 ,7/2/2015
CLASS C SOLUTIONS GROUP,MATERIALS - NON-INVENTORY,$64.08 ,7/2/2015
CLASS C SOLUTIONS GROUP,MATERIALS - NON-INVENTORY,"$3,885.62 ",7/2/2015
CLASS C SOLUTIONS GROUP,MATERIALS - NON-INVENTORY,"$1,136.75 ",7/2/2015
CLASS C SOLUTIONS GROUP,MATERIALS - CAPITAL,$788.30 ,7/6/2015
CLASS C SOLUTIONS GROUP,MATERIALS - NON-INVENTORY,$103.70 ,7/6/2015
CLASS C SOLUTIONS GROUP,MATERIALS - NON-INVENTORY,$81.75 ,7/6/2015
CLASS C SOLUTIONS GROUP,MATERIALS - NON-INVENTORY,$453.60 ,7/7/2015
CLASS C SOLUTIONS GROUP,MATERIALS - NON-INVENTORY,"$1,219.34 ",7/7/2015
CLASS C SOLUTIONS GROUP,MATERIALS - CAPITAL,"$3,682.37 ",7/13/2015
CLASS C SOLUTIONS GROUP,MATERIALS - NON-INVENTORY,$67.20 ,7/13/2015
CLASS C SOLUTIONS GROUP,MATERIALS - NON-INVENTORY,$740 ,7/13/2015
CLASS C SOLUTIONS GROUP,MATERIALS - NON-INVENTORY,"$1,528.19 ",7/13/2015
CLASS C SOLUTIONS GROUP,MATERIALS - NON-INVENTORY,$535 ,7/13/2015
CLASS C SOLUTIONS GROUP,MATERIALS - NON-INVENTORY,"$2,290.16 ",7/13/2015
CLASS C SOLUTIONS GROUP,MATERIALS - NON-INVENTORY,$256.68 ,7/16/2015
CLASS C SOLUTIONS GROUP,MATERIALS - CAPITAL,"$2,014.87 ",7/20/2015
CLASS C SOLUTIONS GROUP,MATERIALS - INVENTORY,$764.15 ,7/20/2015
CLASS C SOLUTIONS GROUP,MATERIALS - NON-INVENTORY,$368.55 ,7/20/2015
CLASS C SOLUTIONS GROUP,MATERIALS - NON-INVENTORY,"$1,897.87 ",7/20/2015
CLASS C SOLUTIONS GROUP,MATERIALS - NON-INVENTORY,$939.80 ,7/20/2015
CLASS C SOLUTIONS GROUP,MATERIALS - NON-INVENTORY,"$2,054.60 ",7/20/2015
CLASS C SOLUTIONS GROUP,MATERIALS - NON-INVENTORY,"$2,719.90 ",7/21/2015
CLASS C SOLUTIONS GROUP,MATERIALS - NON-INVENTORY,$145.07 ,7/27/2015
CLASS C SOLUTIONS GROUP,MATERIALS - NON-INVENTORY,$71.60 ,7/27/2015
CLASS C SOLUTIONS GROUP,MATERIALS - NON-INVENTORY,"$2,479.50 ",8/3/2015
CLASS C SOLUTIONS GROUP,MATERIALS - NON-INVENTORY,"$2,605.55 ",8/3/2015
CLASS C SOLUTIONS GROUP,MATERIALS - NON-INVENTORY,"$2,524 ",8/3/2015
CLASS C SOLUTIONS GROUP,MATERIALS - NON-INVENTORY,"$1,052.28 ",8/3/2015
CLASS C SOLUTIONS GROUP,MATERIALS - NON-INVENTORY,$753.30 ,8/3/2015
CLASS C SOLUTIONS GROUP,MATERIALS - NON-INVENTORY,$42 ,8/10/2015
CLASS C SOLUTIONS GROUP,MATERIALS - NON-INVENTORY,"$1,803.70 ",8/10/2015
CLASS C SOLUTIONS GROUP,MATERIALS - NON-INVENTORY,"$2,584.97 ",8/11/2015
CLASS C SOLUTIONS GROUP,MATERIALS - NON-INVENTORY,"$1,186.35 ",8/17/2015
CLASS C SOLUTIONS GROUP,MATERIALS - NON-INVENTORY,$557.50 ,8/17/2015
CLASS C SOLUTIONS GROUP,MATERIALS - NON-INVENTORY,$84.30 ,8/17/2015
CLASS C SOLUTIONS GROUP,MATERIALS - NON-INVENTORY,$25.90 ,8/19/2015
CLASS C SOLUTIONS GROUP,MATERIALS - NON-INVENTORY,"$3,220.71 ",8/20/2015
CLASS C SOLUTIONS GROUP,MATERIALS - NON-INVENTORY,"$1,318.96 ",8/24/2015
CLASS C SOLUTIONS GROUP,MATERIALS - CAPITAL,"$1,203.64 ",8/27/2015
CLASS C SOLUTIONS GROUP,OUTSIDE SERVICES - CAPITAL,"$3,208 ",8/27/2015
CLASS C SOLUTIONS GROUP,MATERIALS - NON-INVENTORY,$716.81 ,8/27/2015
CLASS C SOLUTIONS GROUP,MATERIALS - NON-INVENTORY,"$2,062.50 ",8/27/2015
CLASS C SOLUTIONS GROUP,MATERIALS - CAPITAL,"$4,593.52 ",8/31/2015
CLASS C SOLUTIONS GROUP,MATERIALS - NON-INVENTORY,$723.20 ,8/31/2015
CLASS C SOLUTIONS GROUP,MATERIALS - NON-INVENTORY,$564.28 ,8/31/2015
CLASS C SOLUTIONS GROUP,MATERIALS - NON-INVENTORY,"$1,247.71 ",9/1/2015
CLASS C SOLUTIONS GROUP,MATERIALS - NON-INVENTORY,"$4,160.39 ",9/2/2015
CLASS C SOLUTIONS GROUP,MATERIALS - NON-INVENTORY,$684.20 ,9/2/2015
CLASS C SOLUTIONS GROUP,MATERIALS - NON-INVENTORY,"$1,297.79 ",9/2/2015
CLASS C SOLUTIONS GROUP,MATERIALS - NON-INVENTORY,$601.58 ,9/2/2015
CLASS C SOLUTIONS GROUP,MATERIALS - NON-INVENTORY,$166.50 ,9/3/2015
CLASS C SOLUTIONS GROUP,MATERIALS - CAPITAL,"$4,804.96 ",9/8/2015
CLASS C SOLUTIONS GROUP,MATERIALS - NON-INVENTORY,"$5,302.50 ",9/8/2015
CLASS C SOLUTIONS GROUP,MATERIALS - NON-INVENTORY,$44.05 ,9/8/2015
CLASS C SOLUTIONS GROUP,MATERIALS - CAPITAL,$854.55 ,9/10/2015
CLASS C SOLUTIONS GROUP,MATERIALS - NON-INVENTORY,$628.30 ,9/10/2015
CLASS C SOLUTIONS GROUP,MATERIALS - CAPITAL,$216.60 ,9/14/2015
CLASS C SOLUTIONS GROUP,MATERIALS - NON-INVENTORY,$146 ,9/14/2015
CLASS C SOLUTIONS GROUP,MATERIALS - NON-INVENTORY,"$1,901.21 ",9/14/2015
CLASS C SOLUTIONS GROUP,MATERIALS - NON-INVENTORY,"$4,153.60 ",9/14/2015
CLASS C SOLUTIONS GROUP,MATERIALS - NON-INVENTORY,"$2,793.25 ",9/15/2015
CLASS C SOLUTIONS GROUP,MATERIALS - CAPITAL,"$2,156.70 ",9/21/2015
CLASS C SOLUTIONS GROUP,MATERIALS - NON-INVENTORY,$261.67 ,9/21/2015
CLASS C SOLUTIONS GROUP,MATERIALS - NON-INVENTORY,$106.31 ,9/21/2015
CLASS C SOLUTIONS GROUP,MATERIALS - CAPITAL,"$1,561.18 ",9/22/2015
CLASS C SOLUTIONS GROUP,MATERIALS - NON-INVENTORY,"$5,099.70 ",9/22/2015
CLASS C SOLUTIONS GROUP,MATERIALS - CAPITAL,"$1,075.44 ",9/28/2015
CLASS C SOLUTIONS GROUP,MATERIALS - NON-INVENTORY,$717.65 ,9/28/2015
CLASS C SOLUTIONS GROUP,MATERIALS - CAPITAL,"$6,104.57 ",10/5/2015
CLASS C SOLUTIONS GROUP,MATERIALS - NON-INVENTORY,"$2,856.65 ",10/5/2015
CLASS C SOLUTIONS GROUP,MATERIALS - NON-INVENTORY,"$4,902.72 ",10/5/2015
CLASS C SOLUTIONS GROUP,MATERIALS - NON-INVENTORY,$98.60 ,10/5/2015
CLASS C SOLUTIONS GROUP,MATERIALS - NON-INVENTORY,"$2,461.59 ",10/5/2015
CLASS C SOLUTIONS GROUP,MATERIALS - NON-INVENTORY,"$6,268 ",10/8/2015
CLASS C SOLUTIONS GROUP,MATERIALS - CAPITAL,"$1,058.65 ",10/12/2015
CLASS C SOLUTIONS GROUP,MATERIALS - NON-INVENTORY,"$6,721.98 ",10/12/2015
CLASS C SOLUTIONS GROUP,MATERIALS - NON-INVENTORY,$470.55 ,10/12/2015
CLASS C SOLUTIONS GROUP,MATERIALS - NON-INVENTORY,"$1,419.08 ",10/13/2015
CLASS C SOLUTIONS GROUP,MATERIALS - NON-INVENTORY,$94.10 ,10/13/2015
CLASS C SOLUTIONS GROUP,MATERIALS - NON-INVENTORY,"$19,110.72 ",10/13/2015
CLASS C SOLUTIONS GROUP,MATERIALS - CAPITAL,"$1,526.33 ",10/19/2015
CLASS C SOLUTIONS GROUP,MATERIALS - NON-INVENTORY,"$4,636.82 ",10/19/2015
CLASS C SOLUTIONS GROUP,MATERIALS - NON-INVENTORY,$266.76 ,10/19/2015
CLASS C SOLUTIONS GROUP,MATERIALS - NON-INVENTORY,$696.73 ,10/20/2015
CLASS C SOLUTIONS GROUP,MATERIALS - CAPITAL,$56 ,10/26/2015
CLASS C SOLUTIONS GROUP,MATERIALS - NON-INVENTORY,"$2,944.48 ",10/26/2015
CLASS C SOLUTIONS GROUP,MATERIALS - NON-INVENTORY,"$4,259.56 ",10/26/2015
CLASS C SOLUTIONS GROUP,MATERIALS - NON-INVENTORY,$151.50 ,10/26/2015
CLASS C SOLUTIONS GROUP,MATERIALS - NON-INVENTORY,$400.10 ,10/28/2015
CLASS C SOLUTIONS GROUP,MATERIALS - NON-INVENTORY,"$2,286.14 ",10/28/2015
CLASS C SOLUTIONS GROUP,MATERIALS - NON-INVENTORY,$41.36 ,10/29/2015
CLASS C SOLUTIONS GROUP,MATERIALS - NON-INVENTORY,$46.80 ,10/29/2015
CLASS C SOLUTIONS GROUP,MATERIALS - CAPITAL,"$6,150.32 ",11/2/2015
CLASS C SOLUTIONS GROUP,MATERIALS - NON-INVENTORY,$438.96 ,11/2/2015
CLASS C SOLUTIONS GROUP,MATERIALS - NON-INVENTORY,$404.89 ,11/2/2015
CLASS C SOLUTIONS GROUP,MATERIALS - NON-INVENTORY,$447.22 ,11/2/2015
CLASS C SOLUTIONS GROUP,MATERIALS - NON-INVENTORY,$97.43 ,11/2/2015
CLASS C SOLUTIONS GROUP,MATERIALS - CAPITAL,$800.45 ,11/3/2015
CLASS C SOLUTIONS GROUP,MATERIALS - NON-INVENTORY,"$3,133.81 ",11/4/2015
CLASS C SOLUTIONS GROUP,MATERIALS - NON-INVENTORY,"$3,168.03 ",11/4/2015
CLASS C SOLUTIONS GROUP,MATERIALS - NON-INVENTORY,$931.50 ,11/4/2015
CLASS C SOLUTIONS GROUP,MATERIALS - CAPITAL,$933.87 ,11/9/2015
CLASS C SOLUTIONS GROUP,MATERIALS - NON-INVENTORY,$318.65 ,11/9/2015
CLASS C SOLUTIONS GROUP,MATERIALS - NON-INVENTORY,"$8,288.91 ",11/9/2015
CLASS C SOLUTIONS GROUP,MATERIALS - NON-INVENTORY,"$2,904.80 ",11/9/2015
CLASS C SOLUTIONS GROUP,MATERIALS - NON-INVENTORY,"$1,352 ",11/9/2015
CLASS C SOLUTIONS GROUP,MATERIALS - NON-INVENTORY,"$1,826.50 ",11/10/2015
CLASS C SOLUTIONS GROUP,MATERIALS - NON-INVENTORY,$118.83 ,11/10/2015
CLASS C SOLUTIONS GROUP,MATERIALS - NON-INVENTORY,"$1,346.80 ",11/11/2015
CLASS C SOLUTIONS GROUP,MATERIALS - CAPITAL,$17.05 ,11/16/2015
CLASS C SOLUTIONS GROUP,MATERIALS - NON-INVENTORY,$275.76 ,11/16/2015
CLASS C SOLUTIONS GROUP,MATERIALS - NON-INVENTORY,"$3,466.50 ",11/16/2015
CLASS C SOLUTIONS GROUP,MATERIALS - NON-INVENTORY,$340.20 ,11/16/2015
CLASS C SOLUTIONS GROUP,MATERIALS - NON-INVENTORY,"$1,346.80 ",11/16/2015
CLASS C SOLUTIONS GROUP,MATERIALS - NON-INVENTORY,"$1,666.68 ",11/16/2015
CLASS C SOLUTIONS GROUP,MATERIALS - CAPITAL,"$1,357.90 ",11/17/2015
CLASS C SOLUTIONS GROUP,MATERIALS - CAPITAL,$150 ,11/19/2015
CLASS C SOLUTIONS GROUP,MATERIALS - NON-INVENTORY,"$6,268 ",11/23/2015
CLASS C SOLUTIONS GROUP,MATERIALS - NON-INVENTORY,$334.40 ,11/23/2015
CLASS C SOLUTIONS GROUP,MATERIALS - NON-INVENTORY,"$1,914.52 ",11/23/2015
CLASS C SOLUTIONS GROUP,MATERIALS - NON-INVENTORY,$631.42 ,11/23/2015
CLASS C SOLUTIONS GROUP,MATERIALS - NON-INVENTORY,$422.22 ,11/30/2015
CLASS C SOLUTIONS GROUP,MATERIALS - NON-INVENTORY,"$1,374.64 ",11/30/2015
CLASS C SOLUTIONS GROUP,MATERIALS - NON-INVENTORY,$973 ,12/1/2015
CLASS C SOLUTIONS GROUP,MATERIALS - NON-INVENTORY,$434.80 ,12/1/2015
CLASS C SOLUTIONS GROUP,MATERIALS - NON-INVENTORY,"$5,759.46 ",12/1/2015
CLASS C SOLUTIONS GROUP,MATERIALS - NON-INVENTORY,"$2,318.26 ",12/3/2015
CLASS C SOLUTIONS GROUP,MATERIALS - NON-INVENTORY,$30.60 ,12/17/2015
CLASS C SOLUTIONS GROUP,MATERIALS - NON-INVENTORY,"$2,441.69 ",12/17/2015
CLASS C SOLUTIONS GROUP,MATERIALS - NON-INVENTORY,"$4,688.90 ",12/17/2015
CLASS C SOLUTIONS GROUP,MATERIALS - NON-INVENTORY,$584.26 ,12/17/2015
CLASS C SOLUTIONS GROUP,MATERIALS - NON-INVENTORY,$328.90 ,12/21/2015
CLASS C SOLUTIONS GROUP,MATERIALS - NON-INVENTORY,"$5,669.04 ",12/21/2015
CLASS C SOLUTIONS GROUP,MATERIALS - NON-INVENTORY,$857.49 ,12/21/2015
CLASS C SOLUTIONS GROUP,MATERIALS - NON-INVENTORY,"$2,554.37 ",12/21/2015
CLASS C SOLUTIONS GROUP,MATERIALS - NON-INVENTORY,$272.50 ,12/22/2015
CLASS C SOLUTIONS GROUP,MATERIALS - NON-INVENTORY,$243 ,12/28/2015
CLASSIC PARTY RENTALS,OUTSIDE SERVICES,$859.50 ,6/8/2015
CLASSIC PARTY RENTALS,OUTSIDE SERVICES,$777.80 ,8/10/2015
CLEMENTS NATIONAL CO.,MATERIALS - INVENTORY,"$5,255.95 ",1/5/2015
CLEMENTS NATIONAL CO.,MATERIALS - INVENTORY,"$2,987 ",1/6/2015
CLEMENTS NATIONAL CO.,MATERIALS - INVENTORY,"$14,352.35 ",1/12/2015
CLEMENTS NATIONAL CO.,MATERIALS - INVENTORY,"$9,464.85 ",1/20/2015
CLEMENTS NATIONAL CO.,MATERIALS - INVENTORY,"$1,502 ",1/21/2015
CLEMENTS NATIONAL CO.,MATERIALS & ASSETS - CAPITAL,"$141,920.40 ",1/26/2015
CLEMENTS NATIONAL CO.,MATERIALS - INVENTORY,$250 ,1/26/2015
CLEMENTS NATIONAL CO.,MATERIALS & ASSETS - CAPITAL,"$1,125 ",2/2/2015
CLEMENTS NATIONAL CO.,MATERIALS - INVENTORY,"$1,485 ",2/9/2015
CLEMENTS NATIONAL CO.,MATERIALS & ASSETS - CAPITAL,"$18,850 ",2/19/2015
CLEMENTS NATIONAL CO.,MATERIALS - INVENTORY,"$8,712.60 ",2/23/2015
CLEMENTS NATIONAL CO.,MATERIALS - INVENTORY,$926.20 ,2/24/2015
CLEMENTS NATIONAL CO.,MATERIALS - INVENTORY,"$24,938.70 ",3/3/2015
CLEMENTS NATIONAL CO.,MATERIALS - INVENTORY,$59.40 ,3/10/2015
CLEMENTS NATIONAL CO.,MATERIALS & ASSETS - CAPITAL,"$62,258 ",3/23/2015
CLEMENTS NATIONAL CO.,MATERIALS - INVENTORY,"$1,243.80 ",3/23/2015
CLEMENTS NATIONAL CO.,MATERIALS - INVENTORY,"$1,009.10 ",3/24/2015
CLEMENTS NATIONAL CO.,MATERIALS - INVENTORY,"$10,118.20 ",3/26/2015
CLEMENTS NATIONAL CO.,MATERIALS - INVENTORY,"$8,832.55 ",3/30/2015
CLEMENTS NATIONAL CO.,MATERIALS - INVENTORY,"$5,910.90 ",4/6/2015
CLEMENTS NATIONAL CO.,MATERIALS - INVENTORY,$329.55 ,4/13/2015
CLEMENTS NATIONAL CO.,MATERIALS & ASSETS - CAPITAL,"$16,029 ",4/14/2015
CLEMENTS NATIONAL CO.,MATERIALS - INVENTORY,"$6,565.25 ",4/20/2015
CLEMENTS NATIONAL CO.,MATERIALS - INVENTORY,$977.80 ,4/27/2015
CLEMENTS NATIONAL CO.,MATERIALS & ASSETS - CAPITAL,"$11,370 ",5/4/2015
CLEMENTS NATIONAL CO.,MATERIALS - INVENTORY,"$4,937.55 ",5/12/2015
CLEMENTS NATIONAL CO.,MATERIALS - INVENTORY,$260 ,5/27/2015
CLEMENTS NATIONAL CO.,MATERIALS - INVENTORY,"$2,981.80 ",6/1/2015
CLEMENTS NATIONAL CO.,MATERIALS - INVENTORY,"$3,197 ",6/8/2015
CLEMENTS NATIONAL CO.,MATERIALS - INVENTORY,"$4,590.60 ",6/15/2015
CLEMENTS NATIONAL CO.,MATERIALS - INVENTORY,"$12,922.01 ",6/23/2015
CLEMENTS NATIONAL CO.,MATERIALS - INVENTORY,"$16,505 ",6/30/2015
CLEMENTS NATIONAL CO.,MATERIALS - INVENTORY,"$4,197.34 ",7/13/2015
CLEMENTS NATIONAL CO.,MATERIALS - INVENTORY,$377.50 ,7/20/2015
CLEMENTS NATIONAL CO.,MATERIALS - INVENTORY,$473.45 ,7/21/2015
CLEMENTS NATIONAL CO.,MATERIALS - NON-INVENTORY,"$7,400 ",7/23/2015
CLEMENTS NATIONAL CO.,MATERIALS - NON-INVENTORY,"$8,510 ",7/27/2015
CLEMENTS NATIONAL CO.,MATERIALS & ASSETS - CAPITAL,"$16,851 ",8/3/2015
CLEMENTS NATIONAL CO.,MATERIALS - INVENTORY,"$10,611.60 ",8/5/2015
CLEMENTS NATIONAL CO.,MATERIALS & ASSETS - CAPITAL,"$36,020 ",8/20/2015
CLEMENTS NATIONAL CO.,MATERIALS - INVENTORY,$254 ,8/27/2015
CLEMENTS NATIONAL CO.,MATERIALS - NON-INVENTORY,"$21,090 ",8/31/2015
CLEMENTS NATIONAL CO.,MATERIALS & ASSETS - CAPITAL,"$2,980 ",9/8/2015
CLEMENTS NATIONAL CO.,MATERIALS - INVENTORY,"$8,682.50 ",9/14/2015
CLEMENTS NATIONAL CO.,MATERIALS - INVENTORY,"$6,417.50 ",9/21/2015
CLEMENTS NATIONAL CO.,MATERIALS - NON-INVENTORY,"$4,810 ",9/21/2015
CLEMENTS NATIONAL CO.,MATERIALS - NON-INVENTORY,"$2,220 ",9/21/2015
CLEMENTS NATIONAL CO.,MATERIALS - INVENTORY,"$2,955 ",10/26/2015
CLEMENTS NATIONAL CO.,MATERIALS - INVENTORY,"$2,781.20 ",10/27/2015
CLEMENTS NATIONAL CO.,MATERIALS - INVENTORY,"$2,032 ",11/3/2015
CLEMENTS NATIONAL CO.,MATERIALS - INVENTORY,"$12,536 ",12/10/2015
CLEMENTS NATIONAL CO.,MATERIALS - INVENTORY,$525.50 ,12/15/2015
CLEMENTS NATIONAL CO.,MATERIALS - INVENTORY,"$12,992 ",12/21/2015
"CLERK OF THE CIRCUIT COURT,",MISCELLANEOUS OTHER EXPENSE,$192.50 ,8/24/2015
CLOUDSDS INC,MATERIALS & ASSETS - CAPITAL,"$2,500 ",2/18/2015
CLYDE NEACE & ATTORNEYS,CLAIM EXPENSE,"$63,978 ",1/28/2015
CMC HEARTLAND PARTNERS LIQUIDATING,MATERIALS & ASSETS - CAPITAL,"$295,000 ",8/27/2015
CODE 4,MISCELLANEOUS OTHER EXPENSE,"$3,750 ",8/4/2015
COGGNO,PROFESSIONAL SERVICES,$12.95 ,3/19/2015
COGGNO,PROFESSIONAL SERVICES,$14 ,5/21/2015
COLETTE HOLT & ASSOC.,PROFESSIONAL SERVICES,"$20,000 ",5/26/2015
COLETTE HOLT & ASSOC.,PROFESSIONAL SERVICES,"$11,375 ",7/6/2015
COLETTE HOLT & ASSOC.,PROFESSIONAL SERVICES,"$12,550 ",7/9/2015
COLETTE HOLT & ASSOC.,PROFESSIONAL SERVICES,"$17,875 ",8/3/2015
COLETTE HOLT & ASSOC.,PROFESSIONAL SERVICES,"$68,875 ",10/26/2015
COLETTE HOLT & ASSOC.,PROFESSIONAL SERVICES,"$100,350 ",11/24/2015
"COLLINS ENGINEERS, INC.",ENGINEERING & DESIGN,"$58,080.51 ",1/20/2015
"COLLINS ENGINEERS, INC.",MATERIALS - NON-INVENTORY,$177.04 ,3/11/2015
"COLLINS ENGINEERS, INC.",MATERIALS - NON-INVENTORY,"$5,004.46 ",3/16/2015
"COLLINS ENGINEERS, INC.",ENGINEERING & DESIGN,"$6,558.68 ",7/14/2015
"COLLINS ENGINEERS, INC.",ENGINEERING & DESIGN,"$3,458.78 ",8/6/2015
"COLOR IMAGE, INC.",OUTSIDE SERVICES,"$8,066 ",2/23/2015
COLUMBIA PIPE & SUPPLY,MATERIALS - NON-INVENTORY,$546.57 ,6/29/2015
"COM ED-REAL ESTATE DEPT., 4TH FL.",RENTAL EXPENSE,$449.16 ,5/4/2015
"COM ED-REAL ESTATE DEPT., 4TH FL.",RENTAL EXPENSE,$449.16 ,5/12/2015
"COM ED-REAL ESTATE DEPT., 4TH FL.",RENTAL EXPENSE,$449.16 ,6/9/2015
"COM ED-REAL ESTATE DEPT., 4TH FL.",RENTAL EXPENSE,$449.16 ,6/25/2015
"COM ED-REAL ESTATE DEPT., 4TH FL.",RENTAL EXPENSE,$449.16 ,7/27/2015
"COM ED-REAL ESTATE DEPT., 4TH FL.",RENTAL EXPENSE,$449.16 ,8/25/2015
"COM ED-REAL ESTATE DEPT., 4TH FL.",RENTAL EXPENSE,$319.02 ,9/2/2015
"COM ED-REAL ESTATE DEPT., 4TH FL.",RENTAL EXPENSE,$449.16 ,9/28/2015
"COM ED-REAL ESTATE DEPT., 4TH FL.",RENTAL EXPENSE,"$1,500 ",9/29/2015
"COM ED-REAL ESTATE DEPT., 4TH FL.",RENTAL EXPENSE,$449.16 ,10/26/2015
"COM ED-REAL ESTATE DEPT., 4TH FL.",RENTAL EXPENSE,$449.16 ,11/30/2015
"COM ED-REAL ESTATE DEPT., 4TH FL.",RENTAL EXPENSE,$449.16 ,12/28/2015
COMCAST,OUTSIDE SERVICES,$253.91 ,1/14/2015
COMCAST,OUTSIDE SERVICES,$273.02 ,1/20/2015
COMCAST,OUTSIDE SERVICES,$253.91 ,2/4/2015
COMCAST,OUTSIDE SERVICES,$139.51 ,2/5/2015
COMCAST,UTILITIES,$127.69 ,2/5/2015
COMCAST,OUTSIDE SERVICES,$253.91 ,2/17/2015
COMCAST,OUTSIDE SERVICES,$273.02 ,2/19/2015
COMCAST,OUTSIDE SERVICES,$164.01 ,3/2/2015
COMCAST,OUTSIDE SERVICES,$263.41 ,3/3/2015
COMCAST,OUTSIDE SERVICES,$381.73 ,3/5/2015
COMCAST,OUTSIDE SERVICES,$438.15 ,3/9/2015
COMCAST,UTILITIES,$153.72 ,3/11/2015
COMCAST,OUTSIDE SERVICES,$526.93 ,3/16/2015
COMCAST,OUTSIDE SERVICES,$164.01 ,3/19/2015
COMCAST,OUTSIDE SERVICES,$232.01 ,3/30/2015
COMCAST,OUTSIDE SERVICES,$240.55 ,3/30/2015
COMCAST,OUTSIDE SERVICES,$149.01 ,4/6/2015
COMCAST,OUTSIDE SERVICES,$137.19 ,4/7/2015
COMCAST,OUTSIDE SERVICES,$253.95 ,4/15/2015
COMCAST,OUTSIDE SERVICES,$137.19 ,5/11/2015
COMCAST,OUTSIDE SERVICES,"$1,708.67 ",5/12/2015
COMCAST,OUTSIDE SERVICES,"$1,941.02 ",6/3/2015
COMCAST,OUTSIDE SERVICES,"$2,078.17 ",7/9/2015
COMCAST,OUTSIDE SERVICES,"$2,078.21 ",8/12/2015
COMCAST,OUTSIDE SERVICES,"$2,078.29 ",9/14/2015
COMCAST,OUTSIDE SERVICES,"$2,149.05 ",10/8/2015
COMCAST,OUTSIDE SERVICES,"$2,078.32 ",11/5/2015
COMCAST,OUTSIDE SERVICES,$631.63 ,11/30/2015
COMCAST,OUTSIDE SERVICES,"$2,809.99 ",12/16/2015
"COMCAST CABLE COMMUNICATIONS, INC.",OUTSIDE SERVICES,$143.88 ,1/12/2015
"COMCAST CABLE COMMUNICATIONS, INC.",UTILITIES,$130.16 ,1/12/2015
"COMCAST CABLE COMMUNICATIONS, INC.",OUTSIDE SERVICES,$173.51 ,2/26/2015
"COMCAST CABLE COMMUNICATIONS, INC.",OUTSIDE SERVICES,$239.01 ,3/2/2015
"COMCAST CABLE COMMUNICATIONS, INC.",OUTSIDE SERVICES,$152.85 ,3/3/2015
"COMCAST CABLE COMMUNICATIONS, INC.",OUTSIDE SERVICES,$240.55 ,3/9/2015
"COMCAST CABLE COMMUNICATIONS, INC.",OUTSIDE SERVICES,$391.86 ,3/11/2015
"COMCAST CABLE COMMUNICATIONS, INC.",OUTSIDE SERVICES,$263.41 ,3/19/2015
"COMCAST CABLE COMMUNICATIONS, INC.",OUTSIDE SERVICES,$155.35 ,3/30/2015
COMLABS,MISCELLANEOUS OTHER EXPENSE,$598 ,11/30/2015
COMMERCIAL TIRE SERVICE,OUTSIDE SERVICES,$592.19 ,1/5/2015
COMMERCIAL TIRE SERVICE,OUTSIDE SERVICES,$270.85 ,1/13/2015
COMMERCIAL TIRE SERVICE,OUTSIDE SERVICES,"$1,447.80 ",1/20/2015
COMMERCIAL TIRE SERVICE,OUTSIDE SERVICES,$155 ,1/21/2015
COMMERCIAL TIRE SERVICE,OUTSIDE SERVICES,$286 ,2/2/2015
COMMERCIAL TIRE SERVICE,OUTSIDE SERVICES,"$3,845.79 ",2/9/2015
COMMERCIAL TIRE SERVICE,OUTSIDE SERVICES,$792.95 ,3/23/2015
COMMONWEALTH EDISON,UTILITIES,$679.05 ,1/5/2015
COMMONWEALTH EDISON,UTILITIES,"$1,097.82 ",1/6/2015
COMMONWEALTH EDISON,UTILITIES,$185.78 ,1/8/2015
COMMONWEALTH EDISON,UTILITIES,$211.47 ,1/12/2015
COMMONWEALTH EDISON,UTILITIES,$493.11 ,1/22/2015
COMMONWEALTH EDISON,UTILITIES,"$9,940.13 ",1/26/2015
COMMONWEALTH EDISON,UTILITIES,$77.59 ,1/27/2015
COMMONWEALTH EDISON,UTILITIES,$811.80 ,1/29/2015
COMMONWEALTH EDISON,UTILITIES,$460.57 ,2/2/2015
COMMONWEALTH EDISON,UTILITIES,$199.20 ,2/5/2015
COMMONWEALTH EDISON,UTILITIES,"$1,328.67 ",2/9/2015
COMMONWEALTH EDISON,UTILITIES,"$1,238.69 ",2/12/2015
COMMONWEALTH EDISON,UTILITIES,$315.76 ,2/17/2015
COMMONWEALTH EDISON,UTILITIES,"$4,286.82 ",2/19/2015
COMMONWEALTH EDISON,UTILITIES,"$2,670.58 ",2/23/2015
COMMONWEALTH EDISON,UTILITIES,$185.16 ,2/24/2015
COMMONWEALTH EDISON,UTILITIES,"$1,617.87 ",2/26/2015
COMMONWEALTH EDISON,UTILITIES,"$1,113.88 ",3/2/2015
COMMONWEALTH EDISON,UTILITIES,$20.55 ,3/5/2015
COMMONWEALTH EDISON,UTILITIES,"$4,858.10 ",3/9/2015
COMMONWEALTH EDISON,UTILITIES,"$2,332.22 ",3/10/2015
COMMONWEALTH EDISON,UTILITIES,$262.01 ,3/12/2015
COMMONWEALTH EDISON,UTILITIES,"$1,464.59 ",3/16/2015
COMMONWEALTH EDISON,UTILITIES,$419.14 ,3/17/2015
COMMONWEALTH EDISON,UTILITIES,"$2,115.97 ",3/23/2015
COMMONWEALTH EDISON,UTILITIES,$877.38 ,3/25/2015
COMMONWEALTH EDISON,UTILITIES,$331.13 ,3/26/2015
COMMONWEALTH EDISON,UTILITIES,"$3,291.04 ",3/30/2015
COMMONWEALTH EDISON,UTILITIES,$927.71 ,3/31/2015
COMMONWEALTH EDISON,UTILITIES,"$4,237.56 ",4/2/2015
COMMONWEALTH EDISON,UTILITIES,"$1,721.03 ",4/6/2015
COMMONWEALTH EDISON,UTILITIES,"$1,982.33 ",4/9/2015
COMMONWEALTH EDISON,UTILITIES,$737.15 ,4/13/2015
COMMONWEALTH EDISON,UTILITIES,"$1,325.50 ",4/15/2015
COMMONWEALTH EDISON,UTILITIES,$77.29 ,4/16/2015
COMMONWEALTH EDISON,UTILITIES,$799.91 ,4/20/2015
COMMONWEALTH EDISON,UTILITIES,$377.22 ,4/21/2015
COMMONWEALTH EDISON,UTILITIES,"$3,638.79 ",4/23/2015
COMMONWEALTH EDISON,UTILITIES,"$2,535.07 ",4/27/2015
COMMONWEALTH EDISON,UTILITIES,$334.92 ,4/28/2015
COMMONWEALTH EDISON,UTILITIES,$58.97 ,4/29/2015
COMMONWEALTH EDISON,UTILITIES,"$1,267.24 ",5/4/2015
COMMONWEALTH EDISON,UTILITIES,$489.95 ,5/11/2015
COMMONWEALTH EDISON,UTILITIES,$424.97 ,5/12/2015
COMMONWEALTH EDISON,UTILITIES,$223.40 ,5/13/2015
COMMONWEALTH EDISON,UTILITIES,$513.51 ,5/14/2015
COMMONWEALTH EDISON,UTILITIES,$766.35 ,5/18/2015
COMMONWEALTH EDISON,UTILITIES,"$4,111.84 ",5/21/2015
COMMONWEALTH EDISON,UTILITIES,"$2,774.29 ",5/26/2015
COMMONWEALTH EDISON,UTILITIES,"$1,782.53 ",5/28/2015
COMMONWEALTH EDISON,UTILITIES,"$3,568.11 ",6/1/2015
COMMONWEALTH EDISON,UTILITIES,"$1,484.24 ",6/2/2015
COMMONWEALTH EDISON,UTILITIES,$225.58 ,6/8/2015
COMMONWEALTH EDISON,UTILITIES,$589.42 ,6/9/2015
COMMONWEALTH EDISON,UTILITIES,$74.33 ,6/10/2015
COMMONWEALTH EDISON,UTILITIES,$976.94 ,6/11/2015
COMMONWEALTH EDISON,UTILITIES,"$1,099.95 ",6/15/2015
COMMONWEALTH EDISON,UTILITIES,"$4,652.56 ",6/22/2015
COMMONWEALTH EDISON,UTILITIES,"$1,046.07 ",6/23/2015
COMMONWEALTH EDISON,UTILITIES,$62.04 ,6/24/2015
COMMONWEALTH EDISON,UTILITIES,"$1,970.74 ",6/29/2015
COMMONWEALTH EDISON,UTILITIES,$39.81 ,7/2/2015
COMMONWEALTH EDISON,UTILITIES,$523.44 ,7/6/2015
COMMONWEALTH EDISON,UTILITIES,$224.38 ,7/8/2015
COMMONWEALTH EDISON,UTILITIES,$332.08 ,7/9/2015
COMMONWEALTH EDISON,UTILITIES,"$1,116.22 ",7/13/2015
COMMONWEALTH EDISON,UTILITIES,$205.11 ,7/14/2015
COMMONWEALTH EDISON,UTILITIES,$377.56 ,7/20/2015
COMMONWEALTH EDISON,UTILITIES,$464.61 ,7/21/2015
COMMONWEALTH EDISON,UTILITIES,$228.45 ,7/23/2015
COMMONWEALTH EDISON,UTILITIES,"$1,647.81 ",7/27/2015
COMMONWEALTH EDISON,UTILITIES,"$1,534.81 ",7/28/2015
COMMONWEALTH EDISON,UTILITIES,$47.49 ,7/30/2015
COMMONWEALTH EDISON,UTILITIES,$438.90 ,8/3/2015
COMMONWEALTH EDISON,UTILITIES,"$1,168.96 ",8/10/2015
COMMONWEALTH EDISON,UTILITIES,$237.82 ,8/13/2015
COMMONWEALTH EDISON,UTILITIES,$73.33 ,8/17/2015
COMMONWEALTH EDISON,UTILITIES,"$1,346.33 ",8/20/2015
COMMONWEALTH EDISON,UTILITIES,$82.33 ,8/24/2015
COMMONWEALTH EDISON,UTILITIES,$904.96 ,8/25/2015
COMMONWEALTH EDISON,UTILITIES,$997.64 ,8/27/2015
COMMONWEALTH EDISON,UTILITIES,$381.04 ,8/31/2015
COMMONWEALTH EDISON,UTILITIES,"$1,615.34 ",9/3/2015
COMMONWEALTH EDISON,UTILITIES,$861.57 ,9/8/2015
COMMONWEALTH EDISON,UTILITIES,$241.63 ,9/10/2015
COMMONWEALTH EDISON,UTILITIES,$501.02 ,9/14/2015
COMMONWEALTH EDISON,UTILITIES,$450.37 ,9/17/2015
COMMONWEALTH EDISON,UTILITIES,"$1,758.24 ",9/21/2015
COMMONWEALTH EDISON,UTILITIES,$58.43 ,9/22/2015
COMMONWEALTH EDISON,UTILITIES,"$1,565.34 ",9/28/2015
COMMONWEALTH EDISON,UTILITIES,$126.01 ,9/29/2015
COMMONWEALTH EDISON,UTILITIES,$393.80 ,10/1/2015
COMMONWEALTH EDISON,UTILITIES,$385.97 ,10/5/2015
COMMONWEALTH EDISON,UTILITIES,$642.56 ,10/8/2015
COMMONWEALTH EDISON,UTILITIES,$811.28 ,10/12/2015
COMMONWEALTH EDISON,UTILITIES,$70.31 ,10/15/2015
COMMONWEALTH EDISON,UTILITIES,$572.21 ,10/19/2015
COMMONWEALTH EDISON,UTILITIES,$112.15 ,10/22/2015
COMMONWEALTH EDISON,UTILITIES,"$1,707.89 ",10/26/2015
COMMONWEALTH EDISON,UTILITIES,$505.30 ,10/28/2015
COMMONWEALTH EDISON,CONSTRUCTION,"$2,000 ",10/29/2015
COMMONWEALTH EDISON,UTILITIES,$38.62 ,10/29/2015
COMMONWEALTH EDISON,UTILITIES,$365.09 ,11/2/2015
COMMONWEALTH EDISON,UTILITIES,$541.33 ,11/5/2015
COMMONWEALTH EDISON,UTILITIES,$935.72 ,11/9/2015
COMMONWEALTH EDISON,UTILITIES,$134.37 ,11/10/2015
COMMONWEALTH EDISON,UTILITIES,$799.54 ,11/16/2015
COMMONWEALTH EDISON,UTILITIES,$260.92 ,11/17/2015
COMMONWEALTH EDISON,UTILITIES,$972.68 ,11/19/2015
COMMONWEALTH EDISON,UTILITIES,$811.89 ,11/23/2015
COMMONWEALTH EDISON,UTILITIES,$266.31 ,11/24/2015
COMMONWEALTH EDISON,UTILITIES,$304.38 ,11/30/2015
COMMONWEALTH EDISON,UTILITIES,$179.30 ,12/2/2015
COMMONWEALTH EDISON,UTILITIES,$175.69 ,12/3/2015
COMMONWEALTH EDISON,UTILITIES,$985.42 ,12/7/2015
COMMONWEALTH EDISON,UTILITIES,$138.42 ,12/8/2015
COMMONWEALTH EDISON,UTILITIES,$510.65 ,12/15/2015
COMMONWEALTH EDISON,UTILITIES,$293.95 ,12/16/2015
COMMONWEALTH EDISON,UTILITIES,$979.58 ,12/17/2015
COMMONWEALTH EDISON,UTILITIES,"$2,493.89 ",12/21/2015
COMMONWEALTH EDISON,UTILITIES,$137.68 ,12/22/2015
COMMONWEALTH EDISON,UTILITIES,$38.85 ,12/29/2015
COMMONWEALTH EDISON CO.,CONSTRUCTION,"$781,951.23 ",2/18/2015
COMMONWEALTH EDISON CO.,MATERIALS & ASSETS - CAPITAL,"$23,507.90 ",5/13/2015
COMMUNITY CHRISTIAN CHURCH,RENTAL EXPENSE,"$9,000 ",8/25/2015
COMMUNITY CHRISTIAN CHURCH,RENTAL EXPENSE,"$9,000 ",8/25/2015
COMPASS MINERALS AMERICA,MATERIALS - NON-INVENTORY,"$1,514.33 ",2/10/2015
COMPASS MINERALS AMERICA,MATERIALS - NON-INVENTORY,"$1,874.99 ",2/17/2015
COMPASS MINERALS AMERICA,MATERIALS - NON-INVENTORY,"$6,710.47 ",3/12/2015
COMPASS MINERALS AMERICA,MATERIALS - NON-INVENTORY,"$6,669.03 ",4/14/2015
COMPASS MINERALS AMERICA,MATERIALS - NON-INVENTORY,"$1,975.75 ",12/21/2015
COMPUTER INTELLIGENCE ASSOC.,MATERIALS & ASSETS - CAPITAL,"$47,450 ",2/18/2015
COMPUTER SCIENCES CORP,PROFESSIONAL SERVICES,"$34,787.78 ",5/4/2015
COMPUTER TRAINING SOURCE INC.,PROFESSIONAL SERVICES,$708 ,9/29/2015
COMPUWARE CORP.,PROFESSIONAL SERVICES,"$43,326 ",7/15/2015
COMTO,PROFESSIONAL SERVICES,$855 ,5/11/2015
COMTO,MISCELLANEOUS OTHER EXPENSE,$125 ,7/16/2015
COMTO,MISCELLANEOUS OTHER EXPENSE,$375 ,11/30/2015
COMTO,MISCELLANEOUS OTHER EXPENSE,$125 ,12/7/2015
CONCEPT MEDIA & PRINT GROUP,MISCELLANEOUS OTHER EXPENSE,"$1,013.88 ",6/29/2015
CONCEPT MEDIA & PRINT GROUP,MISCELLANEOUS OTHER EXPENSE,"$1,704 ",12/16/2015
CONNECTED PRODUCTIONS,OUTSIDE SERVICES,$533 ,12/16/2015
"CONSTELLATION NEW ENERGY, INC.",MISCELLANEOUS OTHER EXPENSE,"$2,289.88 ",2/9/2015
"CONSTELLATION NEW ENERGY, INC.",UTILITIES,"$17,697.97 ",2/9/2015
"CONSTELLATION NEW ENERGY, INC.",UTILITIES,"$313,260.95 ",2/9/2015
"CONSTELLATION NEW ENERGY, INC.",MISCELLANEOUS OTHER EXPENSE,"$2,796.08 ",3/17/2015
"CONSTELLATION NEW ENERGY, INC.",UTILITIES,"$32,364.72 ",3/17/2015
"CONSTELLATION NEW ENERGY, INC.",UTILITIES,"$356,979.86 ",3/17/2015
"CONSTELLATION NEW ENERGY, INC.",MISCELLANEOUS OTHER EXPENSE,"$3,086.95 ",3/25/2015
"CONSTELLATION NEW ENERGY, INC.",UTILITIES,"$33,161.42 ",3/25/2015
"CONSTELLATION NEW ENERGY, INC.",UTILITIES,"$449,064.14 ",3/25/2015
"CONSTELLATION NEW ENERGY, INC.",MISCELLANEOUS OTHER EXPENSE,"$5,614.57 ",5/11/2015
"CONSTELLATION NEW ENERGY, INC.",UTILITIES,"$42,534.53 ",5/11/2015
"CONSTELLATION NEW ENERGY, INC.",UTILITIES,"$641,990.62 ",5/11/2015
"CONSTELLATION NEW ENERGY, INC.",UTILITIES,"$9,658.11 ",5/26/2015
"CONSTELLATION NEW ENERGY, INC.",UTILITIES,"$153,809.71 ",5/26/2015
"CONSTELLATION NEW ENERGY, INC.",MISCELLANEOUS OTHER EXPENSE,"$1,814.76 ",6/18/2015
"CONSTELLATION NEW ENERGY, INC.",UTILITIES,"$19,801.57 ",6/18/2015
"CONSTELLATION NEW ENERGY, INC.",UTILITIES,"$199,908.49 ",6/18/2015
"CONSTELLATION NEW ENERGY, INC.",MISCELLANEOUS OTHER EXPENSE,"$4,087.44 ",8/12/2015
"CONSTELLATION NEW ENERGY, INC.",UTILITIES,"$51,960.87 ",8/12/2015
"CONSTELLATION NEW ENERGY, INC.",UTILITIES,"$399,362.56 ",8/12/2015
"CONSTELLATION NEW ENERGY, INC.",MISCELLANEOUS OTHER EXPENSE,"$1,999.33 ",9/16/2015
"CONSTELLATION NEW ENERGY, INC.",UTILITIES,"$27,069.17 ",9/16/2015
"CONSTELLATION NEW ENERGY, INC.",UTILITIES,"$263,826.98 ",9/16/2015
"CONTAINMENT SOLUTIONS, INC.",MATERIALS - NON-INVENTORY,$475 ,11/12/2015
CONTROL CASE,PROFESSIONAL SERVICES,"$2,000 ",1/26/2015
"CONVERGINT TECHNOLOGIES, LLC",OUTSIDE SERVICES,"$2,031 ",2/11/2015
"CONVERGINT TECHNOLOGIES, LLC",OUTSIDE SERVICES,"$4,200.54 ",2/19/2015
"CONVERGINT TECHNOLOGIES, LLC",OUTSIDE SERVICES,"$5,985 ",2/19/2015
"CONVERGINT TECHNOLOGIES, LLC",OUTSIDE SERVICES - CAPITAL,"$22,414.44 ",5/11/2015
"CONVERGINT TECHNOLOGIES, LLC",OUTSIDE SERVICES,"$38,616.42 ",5/11/2015
"CONVERGINT TECHNOLOGIES, LLC",MATERIALS & ASSETS - CAPITAL,"$20,678 ",12/10/2015
COOK COUNTRY ASSESSOR'S OFFICE,MISCELLANEOUS OTHER EXPENSE,$60 ,8/19/2015
COOK COUNTY ASSESSOR'S OFFICE,MISCELLANEOUS OTHER EXPENSE,$240 ,9/14/2015
COOK COUNTY ASSESSOR'S OFFICE,MISCELLANEOUS OTHER EXPENSE,$200 ,9/30/2015
COOK COUNTY CLERK,MISCELLANEOUS OTHER EXPENSE,$10 ,6/11/2015
COOK COUNTY STATE'S ATTORNEY'S OFFI,PROFESSIONAL SERVICES,$160 ,9/3/2015
COOLER AFFAIRS INC.,MISCELLANEOUS OTHER EXPENSE,$503.10 ,7/7/2015
COOPER EQUIPMENT CO.,OUTSIDE SERVICES,$75 ,1/20/2015
"CORPORATE IMAGING CONCEPTS,INC.",MISCELLANEOUS OTHER EXPENSE,$362.50 ,10/5/2015
"CORPORATE IMAGING CONCEPTS,INC.",MISCELLANEOUS OTHER EXPENSE,"$5,239.60 ",10/14/2015
"CORPORATE IMAGING CONCEPTS,INC.",MISCELLANEOUS OTHER EXPENSE,"$1,626.50 ",10/26/2015
"CORYS THUNDER, INC.",OUTSIDE SERVICES,"$49,750 ",6/29/2015
"CORYS THUNDER, INC.",OUTSIDE SERVICES,"$24,875 ",7/7/2015
"CORYS THUNDER, INC.",OUTSIDE SERVICES,"$24,875 ",10/5/2015
COSMOPOLITAN CHAMBER OF COMMERCE,MISCELLANEOUS OTHER EXPENSE,$100 ,2/23/2015
CP RAIL SYSTEM,MISCELLANEOUS OTHER EXPENSE,"$136,975.55 ",1/12/2015
CP RAIL SYSTEM,MISCELLANEOUS OTHER EXPENSE,"$139,391.98 ",2/9/2015
CP RAIL SYSTEM,MISCELLANEOUS OTHER EXPENSE,"$120,623.92 ",3/10/2015
CP RAIL SYSTEM,MISCELLANEOUS OTHER EXPENSE,"$116,637.19 ",3/18/2015
CP RAIL SYSTEM,MISCELLANEOUS OTHER EXPENSE,"$112,086.66 ",4/27/2015
CP RAIL SYSTEM,MISCELLANEOUS OTHER EXPENSE,"$94,340.50 ",5/4/2015
CP RAIL SYSTEM,MISCELLANEOUS OTHER EXPENSE,"$85,603.50 ",6/30/2015
CP RAIL SYSTEM,MISCELLANEOUS OTHER EXPENSE,"$92,327.03 ",7/13/2015
CP RAIL SYSTEM,MISCELLANEOUS OTHER EXPENSE,"$84,600.88 ",8/4/2015
CP RAIL SYSTEM,MISCELLANEOUS OTHER EXPENSE,"$261,079.77 ",11/16/2015
CP RAIL SYSTEM,MISCELLANEOUS OTHER EXPENSE,"$87,178.61 ",12/16/2015
CRAIN'S CHICAGO BUSINESS,MISCELLANEOUS OTHER EXPENSE,$59.99 ,7/29/2015
CRAIN'S CHICAGO BUSINESS,MISCELLANEOUS OTHER EXPENSE,$99 ,11/9/2015
CRAINS CHICAGO BUSINESS,MISCELLANEOUS OTHER EXPENSE,$119 ,6/1/2015
CRANE & MACHINERY INC.,OUTSIDE SERVICES,"$1,011.62 ",4/13/2015
CRANE & MACHINERY INC.,OUTSIDE SERVICES,"$1,064.92 ",9/28/2015
CRANE & MACHINERY INC.,MISCELLANEOUS OTHER EXPENSE,$300 ,9/28/2015
CRANE & MACHINERY INC.,OUTSIDE SERVICES,"$4,498 ",11/24/2015
CRANE & MACHINERY INC.,MISCELLANEOUS OTHER EXPENSE,$300 ,11/24/2015
CRANE & MACHINERY INC.,OUTSIDE SERVICES,"$1,083.30 ",12/1/2015
CRANE & MACHINERY INC.,MISCELLANEOUS OTHER EXPENSE,$27.33 ,12/1/2015
CRANE & MACHINERY INC.,MISCELLANEOUS OTHER EXPENSE,"$1,200 ",12/1/2015
CRANEMASTERS INC.,OUTSIDE SERVICES,"$9,161.52 ",1/12/2015
CRANEMASTERS INC.,OUTSIDE SERVICES,"$11,327.68 ",4/28/2015
CRANEMASTERS INC.,OUTSIDE SERVICES,"$21,348.32 ",5/19/2015
CRANEMASTERS INC.,OUTSIDE SERVICES,"$2,614.08 ",8/20/2015
CRANEMASTERS INC.,OUTSIDE SERVICES,"$5,663.84 ",8/31/2015
CREATIVE PROMOTIONAL PRODUCTS,MISCELLANEOUS OTHER EXPENSE,$950 ,5/12/2015
CREATIVE PROMOTIONAL PRODUCTS,MISCELLANEOUS OTHER EXPENSE,"$1,900 ",6/15/2015
CREATIVE PROMOTIONAL PRODUCTS,MISCELLANEOUS OTHER EXPENSE,"$6,972 ",10/20/2015
CREATIVE PROMOTIONAL PRODUCTS,MISCELLANEOUS OTHER EXPENSE,"$1,900 ",10/22/2015
CREATIVE PROMOTIONAL PRODUCTS,MISCELLANEOUS OTHER EXPENSE,"$1,900 ",11/12/2015
"CROWE HORWATH, LLP",MATERIALS & ASSETS - CAPITAL,"$1,028,635.96 ",5/20/2015
"CROWE HORWATH, LLP",MATERIALS & ASSETS - CAPITAL,"$166,000 ",8/27/2015
"CROWE HORWATH, LLP",MATERIALS & ASSETS - CAPITAL,"$102,000 ",8/31/2015
"CROWE HORWATH, LLP",MATERIALS & ASSETS - CAPITAL,"$143,015 ",9/14/2015
"CROWE HORWATH, LLP",MATERIALS & ASSETS - CAPITAL,"$134,000 ",9/24/2015
"CROWE HORWATH, LLP",MATERIALS & ASSETS - CAPITAL,"$267,000 ",11/10/2015
CROWN BATTERY MFG. CO.,MATERIALS - INVENTORY,"$1,528 ",3/16/2015
CROWN BATTERY MFG. CO.,MISCELLANEOUS OTHER EXPENSE,$88 ,3/16/2015
CROWN BATTERY MFG. CO.,MATERIALS - INVENTORY,$170 ,5/18/2015
CROWN BATTERY MFG. CO.,MATERIALS - INVENTORY,$490 ,6/1/2015
CROWN BATTERY MFG. CO.,MATERIALS - INVENTORY,$718 ,11/12/2015
CSX TRANSPORTATION,RENTAL EXPENSE,"$5,500 ",2/11/2015
CULLEN & ASSOC.,PROFESSIONAL SERVICES,"$4,000 ",1/23/2015
CULLEN & ASSOC.,PROFESSIONAL SERVICES,"$8,000 ",3/23/2015
CULLEN & ASSOC.,PROFESSIONAL SERVICES,"$10,000 ",5/15/2015
CULLEN & ASSOC.,PROFESSIONAL SERVICES,"$10,000 ",5/29/2015
CULLEN & ASSOC.,PROFESSIONAL SERVICES,"$15,000 ",8/14/2015
CULLEN & ASSOC.,PROFESSIONAL SERVICES,"$10,000 ",12/4/2015
CUMMINS ALLISON CORP.,MATERIALS & ASSETS - CAPITAL,"$22,280 ",4/13/2015
"CUMMINS NPOWER, LLC",MATERIALS - NON-INVENTORY,$584.84 ,1/21/2015
"CUMMINS NPOWER, LLC",MATERIALS - NON-INVENTORY,$264.81 ,2/3/2015
"CUMMINS NPOWER, LLC",MATERIALS - NON-INVENTORY,$58.21 ,4/21/2015
"CUMMINS NPOWER, LLC",MATERIALS - NON-INVENTORY,$643.34 ,4/27/2015
"CUMMINS NPOWER, LLC",MATERIALS - NON-INVENTORY,$211.99 ,5/4/2015
"CUMMINS NPOWER, LLC",MATERIALS - NON-INVENTORY,$56.83 ,7/9/2015
"CUMMINS NPOWER, LLC",MATERIALS - NON-INVENTORY,$116.63 ,8/10/2015
"CUMMINS NPOWER, LLC",MATERIALS - NON-INVENTORY,"$1,780.26 ",8/31/2015
"CUMMINS NPOWER, LLC",MATERIALS - NON-INVENTORY,$412.05 ,11/23/2015
CVR COMPUTER SUPPLIES,MATERIALS - NON-INVENTORY,$222 ,7/2/2015
CVR COMPUTER SUPPLIES,MATERIALS - NON-INVENTORY,"$10,587 ",11/9/2015
D & S COMMUNICATIONS,OUTSIDE SERVICES,$112.50 ,1/21/2015
D & S COMMUNICATIONS,MATERIALS - NON-INVENTORY,"$1,800 ",2/23/2015
D & S COMMUNICATIONS,MATERIALS - NON-INVENTORY,"$59,526.91 ",3/12/2015
D & S COMMUNICATIONS,OUTSIDE SERVICES,"$1,080 ",3/23/2015
D & S COMMUNICATIONS,MATERIALS - NON-INVENTORY,"$3,418 ",6/24/2015
D & S COMMUNICATIONS,MATERIALS - NON-INVENTORY,"$2,385 ",8/17/2015
D & S COMMUNICATIONS,OUTSIDE SERVICES,$405 ,9/14/2015
D & S COMMUNICATIONS,MATERIALS - NON-INVENTORY,"$2,385 ",10/13/2015
D & S COMMUNICATIONS,MATERIALS - NON-INVENTORY,"$4,370 ",11/9/2015
DANELLA RENTAL SYSTEMS INC.,RENTAL EXPENSE,"$13,000 ",1/15/2015
DANELLA RENTAL SYSTEMS INC.,RENTAL EXPENSE,"$7,020 ",1/21/2015
DANELLA RENTAL SYSTEMS INC.,RENTAL EXPENSE,"$18,850 ",2/19/2015
DANELLA RENTAL SYSTEMS INC.,RENTAL EXPENSE,"$2,726.87 ",2/24/2015
DANELLA RENTAL SYSTEMS INC.,RENTAL EXPENSE,"$20,020 ",3/10/2015
DANELLA RENTAL SYSTEMS INC.,RENTAL EXPENSE,"$20,020 ",3/26/2015
DANELLA RENTAL SYSTEMS INC.,RENTAL EXPENSE,"$20,020 ",5/4/2015
DANELLA RENTAL SYSTEMS INC.,RENTAL EXPENSE,"$1,989 ",5/26/2015
DANELLA RENTAL SYSTEMS INC.,RENTAL EXPENSE,"$8,190 ",5/27/2015
DANELLA RENTAL SYSTEMS INC.,RENTAL EXPENSE,"$13,000 ",6/10/2015
DANELLA RENTAL SYSTEMS INC.,RENTAL EXPENSE,"$20,020 ",7/6/2015
DANELLA RENTAL SYSTEMS INC.,RENTAL EXPENSE,"$1,170 ",7/13/2015
DANELLA RENTAL SYSTEMS INC.,RENTAL EXPENSE,"$21,190 ",7/30/2015
DANELLA RENTAL SYSTEMS INC.,RENTAL EXPENSE,"$1,170 ",9/8/2015
DANELLA RENTAL SYSTEMS INC.,RENTAL EXPENSE,"$20,020 ",9/14/2015
DANELLA RENTAL SYSTEMS INC.,RENTAL EXPENSE,"$24,306.72 ",10/12/2015
DANELLA RENTAL SYSTEMS INC.,RENTAL EXPENSE,"$23,940 ",11/30/2015
DATA DISPLAY PRODUCTS,MATERIALS - INVENTORY,"$3,692 ",3/3/2015
"DATASKILL, INC.",PROFESSIONAL SERVICES,"$213,448.60 ",6/22/2015
"DAVID GROUP, INC.",MISCELLANEOUS OTHER EXPENSE,$400 ,1/14/2015
"DAVID GROUP, INC.",MISCELLANEOUS OTHER EXPENSE,"$13,266.26 ",5/11/2015
"DAVID GROUP, INC.",MISCELLANEOUS OTHER EXPENSE,"$1,845 ",6/15/2015
"DAVID GROUP, INC.",MISCELLANEOUS OTHER EXPENSE,"$15,863.89 ",6/29/2015
"DAVID GROUP, INC.",MISCELLANEOUS OTHER EXPENSE,"$4,186.23 ",7/2/2015
"DAVID GROUP, INC.",MISCELLANEOUS OTHER EXPENSE,"$3,086.82 ",8/6/2015
"DAVID GROUP, INC.",MISCELLANEOUS OTHER EXPENSE,"$7,168.68 ",8/24/2015
"DAVID GROUP, INC.",MISCELLANEOUS OTHER EXPENSE,$216.47 ,8/25/2015
"DAVID GROUP, INC.",MISCELLANEOUS OTHER EXPENSE,$235.29 ,9/24/2015
"DAVID GROUP, INC.",MISCELLANEOUS OTHER EXPENSE,"$1,211.64 ",10/15/2015
DAVIDOFF COMMUNICATIONS LLC,PROFESSIONAL SERVICES,"$13,177.50 ",5/11/2015
DAVIDOFF COMMUNICATIONS LLC,PROFESSIONAL SERVICES,"$18,662.50 ",6/4/2015
DAVIDOFF COMMUNICATIONS LLC,PROFESSIONAL SERVICES,"$8,525 ",6/29/2015
DAVIDOFF COMMUNICATIONS LLC,PROFESSIONAL SERVICES,"$8,453.75 ",7/27/2015
DAVIDOFF COMMUNICATIONS LLC,PROFESSIONAL SERVICES,"$5,687.50 ",9/14/2015
DAVIDOFF COMMUNICATIONS LLC,MISCELLANEOUS OTHER EXPENSE,"$2,281.25 ",11/16/2015
DAVIDOFF COMMUNICATIONS LLC,MISCELLANEOUS OTHER EXPENSE,"$9,666.25 ",12/29/2015
"DAY-N-NITE, INC.",MISCELLANEOUS OTHER EXPENSE,$655.53 ,1/14/2015
"DAY-N-NITE, INC.",MISCELLANEOUS OTHER EXPENSE,$158.25 ,1/21/2015
"DAY-N-NITE, INC.",MISCELLANEOUS OTHER EXPENSE,$506.43 ,2/9/2015
"DAY-N-NITE, INC.",MISCELLANEOUS OTHER EXPENSE,$23 ,2/17/2015
"DAY-N-NITE, INC.",MATERIALS - NON-INVENTORY,$3 ,2/23/2015
"DAY-N-NITE, INC.",MISCELLANEOUS OTHER EXPENSE,$9 ,3/10/2015
"DAY-N-NITE, INC.",MISCELLANEOUS OTHER EXPENSE,$40.50 ,3/16/2015
"DAY-N-NITE, INC.",MISCELLANEOUS OTHER EXPENSE,$71.70 ,3/23/2015
"DAY-N-NITE, INC.",MISCELLANEOUS OTHER EXPENSE,$382.43 ,4/1/2015
"DAY-N-NITE, INC.",MISCELLANEOUS OTHER EXPENSE,$57.50 ,4/6/2015
"DAY-N-NITE, INC.",MISCELLANEOUS OTHER EXPENSE,$325.08 ,4/13/2015
"DAY-N-NITE, INC.",MISCELLANEOUS OTHER EXPENSE,$58.80 ,4/20/2015
"DAY-N-NITE, INC.",MISCELLANEOUS OTHER EXPENSE,$7.75 ,4/27/2015
"DAY-N-NITE, INC.",MISCELLANEOUS OTHER EXPENSE,$9 ,5/4/2015
"DAY-N-NITE, INC.",MISCELLANEOUS OTHER EXPENSE,$393.58 ,5/11/2015
"DAY-N-NITE, INC.",MISCELLANEOUS OTHER EXPENSE,$45.90 ,5/18/2015
"DAY-N-NITE, INC.",MISCELLANEOUS OTHER EXPENSE,$7.50 ,5/26/2015
"DAY-N-NITE, INC.",MISCELLANEOUS OTHER EXPENSE,$86.25 ,6/1/2015
"DAY-N-NITE, INC.",MISCELLANEOUS OTHER EXPENSE,$488.28 ,6/8/2015
"DAY-N-NITE, INC.",MISCELLANEOUS OTHER EXPENSE,$80.45 ,6/15/2015
"DAY-N-NITE, INC.",MISCELLANEOUS OTHER EXPENSE,$9 ,6/22/2015
"DAY-N-NITE, INC.",MISCELLANEOUS OTHER EXPENSE,$178.65 ,6/29/2015
"DAY-N-NITE, INC.",MISCELLANEOUS OTHER EXPENSE,$401.08 ,7/9/2015
"DAY-N-NITE, INC.",MISCELLANEOUS OTHER EXPENSE,$17.50 ,7/13/2015
"DAY-N-NITE, INC.",MISCELLANEOUS OTHER EXPENSE,$51 ,7/20/2015
"DAY-N-NITE, INC.",MISCELLANEOUS OTHER EXPENSE,$5.50 ,8/5/2015
"DAY-N-NITE, INC.",MISCELLANEOUS OTHER EXPENSE,$406.58 ,8/12/2015
"DAY-N-NITE, INC.",MISCELLANEOUS OTHER EXPENSE,$19.50 ,8/17/2015
"DAY-N-NITE, INC.",MISCELLANEOUS OTHER EXPENSE,$56.25 ,8/24/2015
"DAY-N-NITE, INC.",MISCELLANEOUS OTHER EXPENSE,$48 ,9/1/2015
"DAY-N-NITE, INC.",MISCELLANEOUS OTHER EXPENSE,$22.50 ,9/8/2015
"DAY-N-NITE, INC.",MISCELLANEOUS OTHER EXPENSE,$367.13 ,9/14/2015
"DAY-N-NITE, INC.",MISCELLANEOUS OTHER EXPENSE,$66.25 ,9/24/2015
"DAY-N-NITE, INC.",MISCELLANEOUS OTHER EXPENSE,$46.50 ,9/28/2015
"DAY-N-NITE, INC.",MISCELLANEOUS OTHER EXPENSE,$40.50 ,10/5/2015
"DAY-N-NITE, INC.",MISCELLANEOUS OTHER EXPENSE,$420.08 ,10/12/2015
"DAY-N-NITE, INC.",MISCELLANEOUS OTHER EXPENSE,$119 ,10/19/2015
"DAY-N-NITE, INC.",MISCELLANEOUS OTHER EXPENSE,$108.80 ,10/26/2015
"DAY-N-NITE, INC.",MISCELLANEOUS OTHER EXPENSE,$3 ,11/17/2015
"DAY-N-NITE, INC.",MISCELLANEOUS OTHER EXPENSE,$28.50 ,11/23/2015
"DAY-N-NITE, INC.",MISCELLANEOUS OTHER EXPENSE,$70.75 ,12/1/2015
"DAY-N-NITE, INC.",MISCELLANEOUS OTHER EXPENSE,$410.58 ,12/7/2015
"DAY-N-NITE, INC.",MISCELLANEOUS OTHER EXPENSE,$582.85 ,12/29/2015
"DAYTON-PHOENIX GROUP, INC.",MATERIALS - INVENTORY,"$2,038.80 ",3/10/2015
"DAYTON-PHOENIX GROUP, INC.",MATERIALS - NON-INVENTORY,"$4,121.40 ",4/30/2015
"DAYTON-PHOENIX GROUP, INC.",MATERIALS - INVENTORY,"$4,550 ",10/19/2015
DB ROBERTS INC,MATERIALS - NON-INVENTORY,$146 ,1/12/2015
DB ROBERTS INC,OUTSIDE SERVICES,$52.70 ,3/10/2015
DEANGELO BROTHERS INC.,OUTSIDE SERVICES,"$10,657.44 ",1/29/2015
DEANGELO BROTHERS INC.,OUTSIDE SERVICES,"$49,083.97 ",2/23/2015
DEANGELO BROTHERS INC.,OUTSIDE SERVICES,"$14,490.92 ",4/29/2015
DEANGELO BROTHERS INC.,OUTSIDE SERVICES,"$19,434.33 ",6/17/2015
DEANGELO BROTHERS INC.,OUTSIDE SERVICES,"$80,726.01 ",7/6/2015
DEANGELO BROTHERS INC.,OUTSIDE SERVICES,"$58,986.51 ",7/15/2015
DEANGELO BROTHERS INC.,OUTSIDE SERVICES,"$83,479.68 ",7/22/2015
DEANGELO BROTHERS INC.,OUTSIDE SERVICES,"$44,147.12 ",9/14/2015
DEANGELO BROTHERS INC.,OUTSIDE SERVICES,"$34,317.15 ",9/14/2015
DEANGELO BROTHERS INC.,OUTSIDE SERVICES,"$57,725.18 ",10/1/2015
DEANGELO BROTHERS INC.,OUTSIDE SERVICES,"$5,328.75 ",10/7/2015
DELTA INDUSTRIES INC.,OUTSIDE SERVICES,$82.50 ,1/5/2015
DELTA INDUSTRIES INC.,OUTSIDE SERVICES,"$1,786.63 ",1/21/2015
DELTA INDUSTRIES INC.,OUTSIDE SERVICES,"$5,070 ",4/7/2015
DELTA INDUSTRIES INC.,MATERIALS - NON-INVENTORY,"$3,972.54 ",4/13/2015
DELTA INDUSTRIES INC.,OUTSIDE SERVICES,"$3,443.58 ",6/18/2015
DELTA INDUSTRIES INC.,OUTSIDE SERVICES,"$4,492.37 ",6/18/2015
DELTA INDUSTRIES INC.,OUTSIDE SERVICES,$754.36 ,6/23/2015
DELTA INDUSTRIES INC.,OUTSIDE SERVICES,$520.50 ,6/29/2015
DELTA INDUSTRIES INC.,OUTSIDE SERVICES,"$8,587.21 ",8/4/2015
DELTA INDUSTRIES INC.,MATERIALS - NON-INVENTORY,"$3,333.96 ",12/29/2015
DELTA INDUSTRIES INC.,MISCELLANEOUS OTHER EXPENSE,$80 ,12/29/2015
DELTA SONIC CAR WASH SYSTEM INC,OUTSIDE SERVICES,$26 ,1/21/2015
DELTA SONIC CAR WASH SYSTEM INC,OUTSIDE SERVICES,$449.50 ,5/13/2015
DELTA SONIC CAR WASH SYSTEM INC,OUTSIDE SERVICES,$215 ,5/18/2015
DELTA SONIC CAR WASH SYSTEM INC,OUTSIDE SERVICES,$81 ,6/10/2015
DELTA SONIC CAR WASH SYSTEM INC,OUTSIDE SERVICES,$62.50 ,7/13/2015
DELTA SONIC CAR WASH SYSTEM INC,OUTSIDE SERVICES,$65 ,8/10/2015
DELTA SONIC CAR WASH SYSTEM INC,OUTSIDE SERVICES,$203.48 ,9/3/2015
DELTA SONIC CAR WASH SYSTEM INC,OUTSIDE SERVICES,$63 ,10/12/2015
DELTA SONIC CAR WASH SYSTEM INC,OUTSIDE SERVICES,$121.97 ,11/3/2015
DELTA SONIC CAR WASH SYSTEM INC,OUTSIDE SERVICES,$127.99 ,12/15/2015
DEMOULIN BROTHERS & CO.,MISCELLANEOUS OTHER EXPENSE,"$67,307.54 ",1/5/2015
DEMOULIN BROTHERS & CO.,MISCELLANEOUS OTHER EXPENSE,"$75,989.33 ",1/20/2015
DEMOULIN BROTHERS & CO.,MISCELLANEOUS OTHER EXPENSE,"$108,477.45 ",2/23/2015
DEMOULIN BROTHERS & CO.,MISCELLANEOUS OTHER EXPENSE,"$35,971.67 ",4/9/2015
DEMOULIN BROTHERS & CO.,MISCELLANEOUS OTHER EXPENSE,"$12,255.90 ",6/4/2015
DEMOULIN BROTHERS & CO.,MISCELLANEOUS OTHER EXPENSE,"$23,521.66 ",6/8/2015
DEMOULIN BROTHERS & CO.,MISCELLANEOUS OTHER EXPENSE,"$5,547.67 ",6/9/2015
DEMOULIN BROTHERS & CO.,MISCELLANEOUS OTHER EXPENSE,"$31,528.11 ",6/11/2015
DEMOULIN BROTHERS & CO.,MISCELLANEOUS OTHER EXPENSE,"$1,777.91 ",6/29/2015
DEMOULIN BROTHERS & CO.,MISCELLANEOUS OTHER EXPENSE,"$53,680.67 ",7/6/2015
